Workbook

Sheet Formulario 2- Planta
A1: MINISTERIO DE HACIENDA Y CRÉDITO PÚBLICO
A2: Dirección General del Presupuesto Público Nacional
A3: Formulario 2. Anteproyecto Planta de personal
A5: CÓDIGO UEJ | B5: 350200
A6: UNIDAD EJECUTORA | B6: =+IFERROR(VLOOKUP(B5,DESPLEGABLES!$A$2:$C$229,2,0),"") -> SUPERINTENDENCIA DE SOCIEDADES
A7: SECTOR PRESUPUESTAL | B7: =+IFERROR(VLOOKUP(B5,DESPLEGABLES!$A$2:$C$229,3,0),"") -> COMERCIO, INDUSTRIA Y TURISMO
L9: 2025 | O9: (diligenciar en pesos)
D10: =1.06 -> 1.06
A11: DENOMINACIÓN DE CARGOS | B11: Grado | C11: No. Cargos | D11: Salario | X11: Remuneraciones no constitutivas de Factor Salarial | AH11: Contribuciones Inherentes a la Nómina | AS11: Prestaciones sociales relacionadas con el empleo | AV11: Total Gastos de personal
D12: Factores Salariales comunes | R12: Factores Salariales Especiales | W12: Total | X12: Prestaciones sociales según definición legal | AB12: Otras remuneraciones no constitutivas de Factor Salarial | AG12: Total | AH12: Pensiones | AI12: Salud | AJ12: Aportes de Cesantías | AK12: Cajas de Compensación Familiar | AL12: Aportes Generales al Sistema de Riesgos Laborales | AM12: Aportes al ICBF | AN12: Aportes al SENA | AO12: Aportes a la ESAP | AP12: Aportes a escuelas industriales e institutos técnicos | AQ12: Subsidio de vivienda Fuerzas Militares y Policía | AR12: Total | AS12: Incapacidades (No de pensiones) | AT12: Licencias de maternidad y paternidad (No de pensiones) | AU12: Total Transferencia
D13: Sueldo básico | F13: Gastos de representación | G13: Prima técnica salarial | H13: Prima de Alimentación | I13: Auxilio de transporte | J13: Prima de servicio | K13: Bonificación por servicios prestados | L13: Horas extras, dominicales, festivos y recargos | M13: Prima de navidad | N13: Prima de vacaciones | O13: Viáticos de los funcionarios en comisión | P13: Auxilio de conectividad digital | Q13: Subtotal 1 | R13: Reserva Especial del Ahorro | S13: Prima Semestral Junio y Diciembre | T13: Prima por Dependiente | U13: Prima de Actividad | V13: Subtotal 2 | X13: Sueldo de vacaciones | Y13: Indemnización por vacaciones | Z13: Bonificación especial de recreación | AA13: Subtotal 1 | AB13: Prima Técnica No Factor | AC13: Prima Coordinación | AD13: Prima de Matrimonio | AE13: Prima de Nacimiento | AF13: Subtotal 2 | AP13: Institutos | AQ13: Institutos | AR13: Institutos
D14: Mes | E14: Anual | AP14: Técnicos | AQ14: Técnicos | AR14: Técnicos
A15: 1 | B15: 2 | C15: 3 | E15: 4.1 | F15: 4.2 | G15: 4.3 | H15: 4.4 | I15: 4.5 | J15: 4.6 | K15: 4.7 | L15: 4.8 | M15: 4.9 | N15: 4.1 | O15: 4.11 | P15: 4.12 | Q15: 4 | R15: 5.1 | S15: 5.2 | T15: 5.3 | U15: 5.4 | V15: 5 | W15: 4+5= 6 | X15: 7.1 | Y15: 7.2 | Z15: 7.3 | AA15: 7 | AB15: 8.1 | AC15: 8.2 | AD15: 8.3 | AE15: 8.4 | AF15: 8 | AG15: 7+8=9 | AH15: 10.1 | AI15: 10.2 | AJ15: 10.3 | AK15: 10.4 | AL15: 10.5 | AM15: 10.6 | AN15: 10.7 | AO15: 10.8 | AP15: 10.9 | AQ15: 10.1 | AR15: 10 | AS15: 11.1 | AT15: 11.2 | AU15: 11.1+11.2 | AV15: 6+9+10=12
A16: EMPLEADOS PÚBLICOS
A17: NIVEL DIRECTIVO | B17: =SUM(B18:B25) -> 148 | C17: =SUM(C18:C25) -> 36 | D17: =SUM(D18:D25) -> 97764063.94 | E17: =SUM(E18:E25) -> 5498661906 | F17: 0 | G17: 0 | H17: 12528000 | I17: 0 | J17: 0 | K17: 264623104.2 | L17: 0 | M17: 831515118.1 | N17: 399127256.7 | O17: 0 | P17: 0 | Q17: 6993927385 | R17: 3574130239 | S17: 1558323875 | T17: 511925747.3 | U17: 229110912.7 | V17: 3574130239 | W17: 1.056805762e+10 | X17: 0 | Y17: 0 | Z17: 30548121.7 | AA17: 30548121.7 | AB17: 584116621 | AC17: 0 | AD17: 0 | AE17: 0 | AF17: 2896005156 | AG17: 2926553277 | AH17: 1120489830 | AI17: 793680296.1 | AJ17: 1030668368 | AK17: 432387861.4 | AL17: 48741307.6 | AM17: 324290896.1 | AN17: 216193930.7 | AO17: 0 | AP17: 0 | AQ17: 0 | AR17: 3966452489 | AS17: 0 | AT17: 0 | AU17: 0 | AV17: 1.746106339e+10
A18: SUPERINTENDENTE | B18: 25 | C18: 1 | D18: =17336871*D10 -> 18377083.26 | E18: =D18*C18*12 -> 220524999.1 | F18: 0 | G18: 0 | H18: =+C18*$I$127*12 -> 348000 | I18: 0 | J18: 0 | K18: =IF(D18*1.65>$JJ$15,((E18+F18+R18+G18)/12)*0.35,((E18+F18+R18+G18)/12)*0.5) -> 10612765.58 | L18: 0 | M18: =+(E18+H18+F18+I18+K18+N18+G18+R18+U18)/12 -> 33334683.66 | N18: =((E18+F18+G18+H18+I18+K18+R18+U18)/24) -> 16000648.16 | O18: 0 | Q18: =SUM(E18:O18)-H18 -> 280473096.5 | R18: =+(E18+F18)/12*0.65*12 -> 143341249.4 | S18: =(E18+I18+H18+K18+R18)/6 -> 62471169.02 | T18: =+D18*0.15*'PRIMA POR DEPENDIENTE'!C16*12 -> 33078749.87 | U18: =(E18)/24 -> 9188541.63 | V18: =+R18 -> 143341249.4 | W18: =Q18+V18 -> 423814345.9 | Z18: =(E18)/180 -> 1225138.884 | AA18: =SUM(X18:Z18) -> 1225138.884 | AB18: =+(E18+F18)*0.5 -> 110262499.6 | AF18: =SUM(AB18:AE18)+S18+T18+U18+H18 -> 215348960.1 | AG18: =AA18+AF18 -> 216574099 | AH18: =(E18+F18+K18+L18+R18)*0.12 -> 44937481.7 | AI18: =(E18+F18+K18+L18+R18)*0.085 -> 31830716.2 | AJ18: =(E18+F18+I18+H18+K18+N18+M18+R18+L18+U18+S18)/12 -> 41318504.72 | AK18: =+((E18+L18+R18+K18+H18+N18+U18+M18)*0.04) -> 17334035.5 | AL18: =(E18+F18+K18+L18+R18)*0.00522 -> 1954780.454 | AM18: =+((E18+L18+R18+K18+H18+M18+N18+U18)*0.03) -> 13000526.63 | AN18: =+((E18+L18+R18+K18+H18+M18+N18+U18)*0.02) -> 8667017.752 | AR18: =SUM(AH18:AQ18) -> 159043062.9 | AU18: =SUM(AS18:AT18) -> 0 | AV18: =W18+AG18+AR18 -> 799431507.9
A19: SUPERINTENDENTE DELEGADO | B19: 23 | C19: =4+1 -> 5 | D19: =14901073*D10 -> 15795137.38 | E19: =D19*C19*12 -> 947708242.8 | F19: 0 | G19: 0 | H19: =+C19*$I$127*12 -> 1740000 | I19: 0 | J19: 0 | K19: =IF(D19*1.65>$JJ$15,((E19+F19+R19+G19)/12)*0.35,((E19+F19+R19+G19)/12)*0.5) -> 45608459.18 | L19: 0 | M19: =+(E19+H19+F19+I19+K19+N19+G19+R19+U19)/12 -> 143277335.4 | N19: =((E19+F19+G19+H19+I19+K19+R19+U19)/24) -> 68773120.97 | O19: 0 | Q19: =SUM(E19:O19)-H19 -> 1205367158 | R19: =+(E19+F19)/12*0.65*12 -> 616010357.8 | S19: =(E19+I19+H19+K19+R19)/6 -> 268511176.6 | T19: =+D19*0.15*'PRIMA POR DEPENDIENTE'!C17*12 -> 85293741.85 | U19: 39487843.45 | V19: =+R19 -> 616010357.8 | W19: =Q19+V19 -> 1821377516 | Z19: =(E19)/180 -> 5265045.793 | AA19: =SUM(X19:Z19) -> 5265045.793 | AB19: =+(E19+F19)*0.5 -> 473854121.4 | AF19: =SUM(AB19:AE19)+S19+T19+U19+H19 -> 868886883.3 | AG19: =AA19+AF19 -> 874151929.1 | AH19: =(E19+F19+K19+L19+R19)*0.12 -> 193119247.2 | AI19: =(E19+F19+K19+L19+R19)*0.085 -> 136792800.1 | AJ19: =(E19+F19+I19+H19+K19+N19+M19+R19+L19+U19+S19)/12 -> 177593044.7 | AK19: =+((E19+L19+R19+K19+H19+N19+U19+M19)*0.04) -> 74504214.38 | AL19: 8400687.252 | AM19: =+((E19+L19+R19+K19+H19+M19+N19+U19)*0.03) -> 55878160.79 | AN19: =+((E19+L19+R19+K19+H19+M19+N19+U19)*0.02) -> 37252107.19 | AR19: =SUM(AH19:AQ19) -> 683540261.6 | AU19: =SUM(AS19:AT19) -> 0 | AV19: =W19+AG19+AR19 -> 3379069707
A20: SECRETARIO GENERAL | B20: 23 | C20: 1 | D20: =14901073*D10 -> 15795137.38 | E20: 189541648.6 | F20: 0 | G20: 0 | H20: 348000 | I20: 0 | J20: 0 | K20: 9121691.837 | L20: 0 | M20: =+(E20+H20+F20+I20+K20+N20+G20+R20+U20)/12 -> 28655467.07 | N20: 13754624.19 | O20: 0 | Q20: 241073431.7 | R20: =+(E20+F20)/12*0.65*12 -> 123202071.6 | S20: =(E20+I20+H20+K20+R20)/6 -> 53702235.33 | T20: =+D20*0.15*'PRIMA POR DEPENDIENTE'!C18*12 -> 28431247.28 | U20: 7897568.69 | V20: 123202071.6 | W20: 364275503.2 | Z20: 1053009.159 | AA20: 1053009.159 | AF20: 90379051.3 | AG20: 91432060.46 | AH20: 38623849.44 | AI20: 27358560.02 | AJ20: =(E20+F20+I20+H20+K20+N20+M20+R20+L20+U20+S20)/12 -> 35518608.94 | AK20: =+((E20+L20+R20+K20+H20+N20+U20+M20)*0.04) -> 14900842.88 | AL20: 1680137.45 | AM20: =+((E20+L20+R20+K20+H20+M20+N20+U20)*0.03) -> 11175632.16 | AN20: =+((E20+L20+R20+K20+H20+M20+N20+U20)*0.02) -> 7450421.438 | AR20: 136708052.3 | AU20: 0 | AV20: 592415616
A21: DIRECTOR DE SUPERTENDENCIA | B21: 19 | C21: 18 | D21: =10998808*$D$10 -> 11658736.48 | E21: 2518287080 | F21: 0 | G21: 0 | H21: 6264000 | I21: 0 | J21: 0 | K21: 121192565.7 | L21: 0 | M21: 380864485.7 | N21: 182814953.1 | O21: 0 | Q21: 3203159084 | R21: =+(E21+F21+AB21)/12*0.65*12 -> 1636886602 | S21: =(E21+I21+H21+K21+R21+AB21)/6 -> 713771707.9 | T21: =+D21*0.15*'PRIMA POR DEPENDIENTE'!C19*12 -> 209857256.6 | U21: 104928628.3 | V21: 1636886602 | W21: 4840045686 | Z21: 13990483.78 | AA21: 13990483.78 | AB21: 0 | AF21: 1034821593 | AG21: 1048812077 | AH21: 513163949.7 | AI21: 363491131 | AJ21: 472084168.5 | AK21: 198049532.6 | AL21: 22322631.81 | AM21: 148537149.4 | AN21: 99024766.29 | AR21: 1816673329 | AU21: 0 | AV21: 7705531092
A22: DIRECTOR ADMINISTRATIVO, FINANCIERO, TECNICO | B22: 19 | C22: 3 | D22: =10998808*$D$10 -> 11658736.48 | E22: 419714513.3 | F22: 0 | G22: 0 | H22: 1044000 | I22: 0 | J22: 0 | K22: 20198760.95 | L22: 0 | M22: 63477414.29 | N22: 30469158.86 | O22: 0 | Q22: 533859847.4 | R22: 272814433.6 | S22: 118961951.3 | T22: =+D22*0.15*'PRIMA POR DEPENDIENTE'!C20*12 -> 41971451.33 | U22: 17488104.72 | V22: 272814433.6 | W22: 806674281 | Z22: 2331747.296 | AA22: 2331747.296 | AB22: 0 | AF22: 179465507.4 | AG22: 181797254.7 | AH22: 85527324.94 | AI22: 60581855.17 | AJ22: 78680694.75 | AK22: 33008255.43 | AL22: 3720438.635 | AM22: 24756191.57 | AN22: 16504127.71 | AR22: 302778888.2 | AU22: 0 | AV22: 1291250424
A23: JEFE OFICINA | B23: 19 | C23: =1+1 -> 2 | D23: 11658736.48 | E23: 279809675.5 | F23: 0 | G23: 0 | H23: 696000 | I23: 0 | J23: 0 | K23: 13465840.63 | L23: 0 | M23: 42318276.19 | N23: 20312772.57 | O23: 0 | Q23: 355906564.9 | R23: 181876289.1 | S23: 79307967.54 | T23: =+D23*0.15*'PRIMA POR DEPENDIENTE'!C23*12 -> 20985725.66 | U23: 11658736.48 | V23: 181876289.1 | W23: 537782854 | Z23: 1554498.197 | AA23: 1554498.197 | AB23: 0 | AF23: 112648429.7 | AG23: 114202927.9 | AH23: 57018216.63 | AI23: 40387903.45 | AJ23: 52453796.5 | AK23: 22005503.62 | AL23: 2480292.423 | AM23: 16504127.71 | AN23: 11002751.81 | AR23: 201852592.1 | AU23: 0 | AV23: 853838374
A24: INTENDENTE | B24: 20 | C24: 6 | D24: =12094808*D10 -> 12820496.48 | E24: 923075746.6 | F24: 0 | G24: 0 | H24: 2088000 | I24: 0 | J24: 0 | K24: 44423020.3 | L24: 0 | M24: 139587455.9 | N24: 67001978.82 | O24: 0 | Q24: 1174088202 | R24: 599999235.3 | S24: 261597667 | T24: =+D24*0.15*'PRIMA POR DEPENDIENTE'!C24*12 -> 92307574.66 | U24: 38461489.44 | V24: 599999235.3 | W24: 1774087437 | Z24: 5128198.592 | AA24: 5128198.592 | AB24: 0 | AF24: 394454731.1 | AG24: =AA24+AF24 -> 399582929.7 | AH24: 188099760.3 | AI24: 133237330.2 | AJ24: 173019549.4 | AK24: 72585477.05 | AL24: 8182339.571 | AM24: 54439107.79 | AN24: 36292738.52 | AR24: 665856302.8 | AU24: 0 | AV24: 2839526669
H25: =+C25*I134*12 -> 0 | Q25: =SUM(E25:P25) -> 0 | W25: =Q25+V25 -> 0 | AA25: =SUM(X25:Z25) -> 0 | AF25: =SUM(AB25:AE25) -> 0 | AG25: =AA25+AF25 -> 0 | AR25: =SUM(AH25:AQ25) -> 0 | AU25: =SUM(AS25:AT25) -> 0 | AV25: =W25+AG25+AR25 -> 0
A26: NIVEL ASESOR | B26: =SUM(B27:B44) -> 82 | C26: 32 | D26: 74604953.92 | E26: 4425922117 | F26: 0 | G26: 0 | H26: 11136000 | I26: 0 | J26: 0 | K26: 257070522.6 | L26: 0 | M26: 673211062.3 | N26: 323141309.9 | O26: 0 | P26: 0 | Q26: 5679345012 | R26: 2876849376 | S26: 1261829669 | T26: 382750417.2 | U26: 184413421.6 | V26: 2876849376 | W26: 8556194389 | X26: 0 | Y26: 0 | Z26: 24588456.21 | AA26: 24588456.21 | AB26: 0 | AC26: 0 | AD26: 0 | AE26: 0 | AF26: 1840129508 | AG26: 1864717964 | AH26: 907181042 | AI26: 642586571.4 | AJ26: 834464456.6 | AK26: 350069752.4 | AL26: 39462375.33 | AM26: 262552314.3 | AN26: 175034876.2 | AO26: 0 | AP26: 0 | AQ26: 0 | AR26: 3211351388 | AS26: 0 | AT26: 0 | AU26: 0 | AV26: 1.363226374e+10
A27: ASESOR | B27: 16 | C27: =1 -> 1 | D27: =13470323*D10 -> 14278542.38 | E27: =D27*C27*12 -> 171342508.6 | F27: 0 | G27: 0 | H27: =+C27*$I$127*12 -> 348000 | I27: 0 | J27: 0 | K27: =IF(D27*1.65>$JJ$15,((E27+F27+R27+G27)/12)*0.35,((E27+F27+R27+G27)/12)*0.5) -> 8245858.224 | L27: 0 | M27: =+(E27+H27+F27+I27+K27+N27+G27+R27+U27)/12 -> 25906967.76 | N27: =((E27+F27+G27+H27+I27+K27+R27+U27)/24) -> 12435344.52 | O27: 0 | Q27: =SUM(E27:O27)-H27 -> 217930679.1 | R27: =+(E27+F27+AB27)/12*0.65*12 -> 111372630.6 | S27: =(E27+I27+H27+K27+R27+AB27)/6 -> 48551499.56 | T27: =+D27*0.15*'PRIMA POR DEPENDIENTE'!C26*12 -> 25701376.28 | U27: =(E27)/24 -> 7139271.19 | V27: =+R27 -> 111372630.6 | W27: =Q27+V27 -> 329303309.6 | Z27: =(E27)/180 -> 951902.8253 | AA27: =SUM(X27:Z27) -> 951902.8253 | AB27: 0 | AF27: =SUM(AB27:AE27)+S27+T27+U27+H27 -> 81740147.03 | AG27: =+AF27+AA27 -> 82692049.86 | AH27: =(E27+F27+K27+L27+R27)*0.12 -> 34915319.68 | AI27: =(E27+F27+K27+L27+R27)*0.085 -> 24731684.77 | AJ27: =(E27+F27+I27+H27+K27+N27+M27+R27+L27+U27+S27)/12 -> 32111840.03 | AK27: =+((E27+L27+R27+K27+H27+N27+U27+M27)*0.04) -> 13471623.23 | AL27: =(E27+F27+K27+L27+R27)*0.00522 -> 1518816.406 | AM27: =+((E27+L27+R27+K27+H27+M27+N27+U27)*0.03) -> 10103717.42 | AN27: =+((E27+L27+R27+K27+H27+M27+N27+U27)*0.02) -> 6735811.616 | AR27: =SUM(AH27:AQ27) -> 123588813.2 | AU27: =SUM(AS27:AT27) -> 0 | AV27: =W27+AG27+AR27 -> 535584172.7
A28: ASESOR | B28: 15 | C28: 6 | D28: =12258871*D10 -> 12994403.26 | E28: 935597034.7 | F28: 0 | G28: 0 | H28: 2088000 | I28: 0 | J28: 0 | K28: =IF(D28*1.65>$JJ$15,((E28+F28+R28+G28)/12)*0.35,((E28+F28+R28+G28)/12)*0.5) -> 45025607.3 | L28: 0 | M28: 141478465.7 | N28: 67909663.52 | O28: 0 | Q28: 1190010771 | R28: 608138072.6 | S28: 265141452.4 | T28: =+D28*0.15*'PRIMA POR DEPENDIENTE'!C27*12 -> 116949629.3 | U28: 38983209.78 | V28: 608138072.6 | W28: 1798148844 | Z28: 5197761.304 | AA28: =SUM(X28:Z28) -> 5197761.304 | AB28: 0 | AF28: 423162291.6 | AG28: 428360052.9 | AH28: 190651285.8 | AI28: 135044660.7 | AJ28: 175363458.8 | AK28: 73568802.14 | AL28: 8293330.93 | AM28: 55176601.61 | AN28: 36784401.07 | AR28: 674882541.1 | AU28: 0 | AV28: 2901391438
A29: JEFE DE OFIC. ASESORA DE JP.C | B29: 13 | C29: 2 | D29: =11379567*D10 -> 12062341.02 | E29: 289496184.5 | F29: 0 | G29: 0 | H29: 696000 | I29: 0 | J29: 0 | K29: =IF(D30*1.65>$JJ$15,((E29+F29+R29+G29)/12)*0.35,((E29+F29+R29+G29)/12)*0.5) -> 13932003.88 | L29: 0 | M29: 43781167.47 | N29: 21014960.39 | O29: 0 | Q29: 368224316.2 | R29: 188172519.9 | S29: 82049451.38 | T29: =+D29*0.15*'PRIMA POR DEPENDIENTE'!C28*12 -> 21712213.84 | U29: 12062341.02 | V29: 188172519.9 | W29: 556396836.1 | Z29: 1608312.136 | AA29: 1608312.136 | AB29: 0 | AF29: 116520006.2 | AG29: 118128318.4 | AH29: 58992084.99 | AI29: 41786060.2 | AJ29: 54267052.38 | AK29: 22766207.09 | AL29: 2566155.697 | AM29: 17074655.31 | AN29: 11383103.54 | AR29: 208835319.2 | AU29: 0 | AV29: 883360473.7
A30: ASESOR | B30: 14 | C30: =3 -> 3 | D30: =12011750*D10 -> 12732455 | E30: 458368380 | F30: 0 | G30: 0 | H30: 1044000 | I30: 0 | J30: 0 | K30: =IF(D31*1.65>$JJ$15,((E30+F30+R30+G30)/12)*0.35,((E30+F30+R30+G30)/12)*0.5) -> 22058978.29 | L30: 0 | M30: 69315059.7 | N30: 33271228.66 | O30: 0 | Q30: 583013646.6 | R30: 297939447 | S30: 129901800.9 | T30: =+D30*0.15*'PRIMA POR DEPENDIENTE'!C29*12 -> 45836838 | U30: 19098682.5 | V30: 297939447 | W30: 880953093.6 | Z30: 2546491 | AA30: 2546491 | AB30: 0 | AF30: 195881321.4 | AG30: 198427812.4 | AH30: 93404016.63 | AI30: 66161178.45 | AJ30: 85916464.75 | AK30: 36043831.05 | AL30: 4063074.724 | AM30: 27032873.28 | AN30: 18021915.52 | AR30: 330643354.4 | AU30: 0 | AV30: 1410024260
A31: ASESOR | B31: 13 | C31: =3 -> 3 | D31: =11379567*D10 -> 12062341.02 | E31: 434244276.7 | F31: 0 | G31: 0 | H31: 1044000 | I31: 0 | J31: 0 | K31: =IF(D32*1.65>$JJ$15,((E31+F31+R31+G31)/12)*0.35,((E31+F31+R31+G31)/12)*0.5) -> 20898005.82 | L31: 0 | M31: 65671751.21 | N31: 31522440.58 | O31: 0 | Q31: 552336474.3 | R31: 282258779.9 | S31: 123074177.1 | T31: =+D31*0.15*'PRIMA POR DEPENDIENTE'!C30*12 -> 21712213.84 | U31: 18093511.53 | V31: 282258779.9 | W31: 834595254.2 | Z31: 2412468.204 | AA31: 2412468.204 | AB31: 0 | AF31: 163923902.4 | AG31: 166336370.6 | AH31: 88488127.49 | AI31: 62679090.3 | AJ31: 81400578.57 | AK31: 34149310.63 | AL31: 3849233.546 | AM31: 25611982.97 | AN31: 17074655.31 | AR31: 313252978.8 | AU31: 0 | AV31: 1314184604
A32: ASESOR | B32: 11 | C32: 17 | D32: =9881954*D10 -> 10474871.24 | E32: 2136873733 | F32: 0 | G32: 0 | H32: 5916000 | I32: 0 | J32: 0 | K32: =IF(D33*1.65>$JJ$15,((E32+F32+R32+G32)/12)*0.35,((E32+F32+R32+G32)/12)*0.5) -> 146910069.1 | L32: 0 | M32: 327057650.5 | N32: 156987672.3 | O32: 0 | Q32: 2767829125 | R32: 1388967926 | S32: 613111288.1 | T32: =+D32*0.15*'PRIMA POR DEPENDIENTE'!C31*12 -> 150838145.9 | U32: 89036405.54 | V32: 1388967926 | W32: 4156797051 | Z32: 11871520.74 | AA32: 11871520.74 | AB32: 0 | AF32: 858901839.5 | AG32: 870773360.2 | AH32: 440730207.4 | AI32: 312183896.9 | AJ32: 405405062.1 | AK32: 170069978.3 | AL32: 19171764.02 | AM32: 127552483.7 | AN32: 85034989.14 | AR32: 1560148382 | AU32: 0 | AV32: 6587718793
Q33: =SUM(E33:P33) -> 0 | V33: =SUM(R33:U33) -> 0 | W33: =Q33+V33 -> 0 | AA33: =SUM(X33:Z33) -> 0 | AF33: 0 | AG33: =AA33+AF33 -> 0 | AR33: =SUM(AH33:AQ33) -> 0 | AU33: =SUM(AS33:AT33) -> 0 | AV33: =W33+AG33+AR33 -> 0
Q34: 0 | V34: 0 | W34: 0 | AA34: 0 | AF34: =SUM(AB34:AE34) -> 0 | AG34: 0 | AR34: 0 | AU34: 0 | AV34: 0
Q35: 0 | V35: 0 | W35: 0 | AA35: 0 | AF35: 0 | AG35: 0 | AR35: 0 | AU35: 0 | AV35: 0
Q36: 0 | V36: 0 | W36: 0 | AA36: 0 | AF36: 0 | AG36: 0 | AR36: 0 | AU36: 0 | AV36: 0
Q37: 0 | V37: 0 | W37: 0 | AA37: 0 | AF37: 0 | AG37: 0 | AR37: 0 | AU37: 0 | AV37: 0
Q38: 0 | V38: 0 | W38: 0 | AA38: 0 | AF38: 0 | AG38: 0 | AR38: 0 | AU38: 0 | AV38: 0
Q39: 0 | V39: 0 | W39: 0 | AA39: 0 | AF39: 0 | AG39: 0 | AR39: 0 | AU39: 0 | AV39: 0
Q40: =SUM(E40:P40) -> 0 | V40: =SUM(R40:U40) -> 0 | W40: =Q40+V40 -> 0 | AA40: =SUM(X40:Z40) -> 0 | AF40: =SUM(AB40:AE40) -> 0 | AG40: 0 | AR40: =SUM(AH40:AQ40) -> 0 | AU40: =SUM(AS40:AT40) -> 0 | AV40: =W40+AG40+AR40 -> 0
Q41: 0 | V41: 0 | W41: 0 | AA41: =SUM(X41:Z41) -> 0 | AF41: 0 | AG41: 0 | AR41: 0 | AU41: =SUM(AS41:AT41) -> 0 | AV41: 0
Q42: 0 | V42: 0 | W42: 0 | AA42: =SUM(X42:Z42) -> 0 | AF42: =SUM(AB42:AE42) -> 0 | AG42: 0 | AR42: 0 | AU42: 0 | AV42: 0
Q43: 0 | V43: 0 | W43: 0 | AA43: =SUM(X43:Z43) -> 0 | AF43: 0 | AG43: 0 | AR43: 0 | AU43: 0 | AV43: 0
Q44: =SUM(E44:P44) -> 0 | V44: 0 | W44: 0 | AA44: 0 | AF44: =SUM(AB44:AE44) -> 0 | AG44: 0 | AR44: 0 | AU44: 0 | AV44: 0
A45: NIVEL EJECUTIVO | B45: =SUM(B46:B52) -> 0 | C45: =SUM(C46:C52) -> 0 | D45: =SUM(D46:D52) -> 0 | E45: =SUM(E46:E52) -> 0 | F45: 0 | G45: 0 | H45: 0 | I45: 0 | J45: 0 | K45: 0 | L45: 0 | M45: 0 | N45: 0 | O45: 0 | P45: 0 | Q45: 0 | R45: 0 | S45: 0 | T45: 0 | U45: 0 | V45: 0 | W45: 0 | X45: 0 | Y45: 0 | Z45: 0 | AA45: 0 | AB45: 0 | AC45: 0 | AD45: 0 | AE45: 0 | AF45: 0 | AG45: 0 | AH45: 0 | AI45: 0 | AJ45: 0 | AK45: 0 | AL45: 0 | AM45: 0 | AN45: 0 | AO45: 0 | AP45: 0 | AQ45: 0 | AR45: 0 | AS45: 0 | AT45: 0 | AU45: 0 | AV45: 0
Q46: =SUM(E46:P46) -> 0 | V46: =SUM(R46:U46) -> 0 | W46: =Q46+V46 -> 0 | AA46: =SUM(X46:Z46) -> 0 | AF46: =SUM(AB46:AE46) -> 0 | AG46: =AA46+AF46 -> 0 | AR46: =SUM(AH46:AQ46) -> 0 | AU46: =SUM(AS46:AT46) -> 0 | AV46: =W46+AG46+AR46 -> 0
Q47: =SUM(E47:P47) -> 0 | V47: =SUM(R47:U47) -> 0 | W47: =Q47+V47 -> 0 | AA47: =SUM(X47:Z47) -> 0 | AF47: =SUM(AB47:AE47) -> 0 | AG47: 0 | AR47: =SUM(AH47:AQ47) -> 0 | AU47: =SUM(AS47:AT47) -> 0 | AV47: =W47+AG47+AR47 -> 0
Q48: 0 | V48: 0 | W48: 0 | AA48: 0 | AF48: 0 | AG48: 0 | AR48: 0 | AU48: 0 | AV48: 0
Q49: 0 | V49: 0 | W49: 0 | AA49: 0 | AF49: 0 | AG49: 0 | AR49: 0 | AU49: 0 | AV49: 0
Q50: 0 | V50: 0 | W50: 0 | AA50: 0 | AF50: 0 | AG50: 0 | AR50: 0 | AU50: 0 | AV50: 0
Q51: 0 | V51: 0 | W51: 0 | AA51: 0 | AF51: 0 | AG51: 0 | AR51: 0 | AU51: 0 | AV51: 0
Q52: 0 | V52: 0 | W52: 0 | AA52: 0 | AF52: 0 | AG52: 0 | AR52: 0 | AU52: 0 | AV52: 0
A53: NIVEL PROFESIONAL | B53: =SUM(B54:B77) -> 87 | C53: =SUM(C54:C77) -> 468 | D53: =SUM(D54:D77) -> 41592957.34 | E53: =SUM(E54:E77) -> 2.693713197e+10 | F53: 0 | G53: 0 | H53: 162864000 | I53: 0 | J53: 0 | K53: 1296349476 | L53: 0 | M53: 4082279663 | N53: =SUM(N54:N77) -> 1959494238 | O53: 0 | P53: 0 | Q53: =SUM(Q54:Q77) -> 3.427525534e+10 | R53: 1.750913578e+10 | S53: 7650913537 | T53: 1752994378 | U53: 1122380499 | V53: 1.750913578e+10 | W53: 5.178439112e+10 | X53: 0 | Y53: 0 | Z53: 149650733.1 | AA53: 149650733.1 | AB53: 0 | AC53: 1106278374 | AD53: 0 | AE53: 0 | AF53: 1.179543079e+10 | AG53: 1.194508152e+10 | AH53: 5489114067 | AI53: 3888122464 | AJ53: 5060045763 | AK53: 2122785425 | AL53: 238776461.9 | AM53: 1592089069 | AN53: 1061392712 | AO53: 0 | AP53: 0 | AQ53: 0 | AR53: 1.945232596e+10 | AS53: 0 | AT53: 0 | AU53: 0 | AV53: 8.31817986e+10
A54: PROFESIONAL ESPECIALIZADO | B54: 20 | C54: 31 | D54: =8639898*D10 -> 9158291.88 | E54: =D54*C54*12 -> 3406884579 | F54: 0 | G54: 0 | H54: =+C54*$I$127*12 -> 10788000 | I54: 0 | J54: 0 | K54: =IF(D54*1.65>$JJ$15,((E54+F54+R54+G54)/12)*0.35,((E54+F54+R54+G54)/12)*0.5) -> 163956320.4 | L54: 0 | M54: =+(E54+H54+F54+I54+K54+N54+G54+R54+U54)/12 -> 515456371.6 | N54: =((E54+F54+G54+H54+I54+K54+R54+U54)/24) -> 247419058.4 | O54: 0 | Q54: =SUM(E54:O54)-H54 -> 4333716330 | R54: =+(E54+F54+AB54)/12*0.65*12 -> 2214474977 | S54: =(E54+I54+H54+K54+R54+AB54)/6 -> 966017312.7 | T54: =+D54*0.15*'PRIMA POR DEPENDIENTE'!C41*12 -> 280243731.5 | U54: =(E54)/24 -> 141953524.1 | V54: =+R54 -> 2214474977 | W54: =Q54+V54 -> 6548191306 | Z54: =(E54)/180 -> 18927136.55 | AA54: =SUM(X54:Z54) -> 18927136.55 | AB54: 0 | AC54: =+(((E54+R54)*20%)/C54)*'CARGOS CON COORDINACION'!C41 -> 253867850.9 | AF54: =SUM(AB54:AE54)+S54+T54+U54+H54 -> 1652870419 | AG54: =AA54+AF54 -> 1671797556 | AH54: =(E54+F54+K54+L54+R54)*0.12 -> 694237905.2 | AI54: =(E54+F54+K54+L54+R54)*0.085 -> 491751849.5 | AJ54: =(E54+F54+I54+H54+K54+N54+M54+R54+L54+U54+S54)/12 -> 638912511.9 | AK54: =+((E54+L54+R54+K54+H54+N54+U54+M54)*0.04) -> 268037313.2 | AL54: =(E54+F54+K54+L54+R54)*0.00522 -> 30199348.87 | AM54: =+((E54+L54+R54+K54+H54+M54+N54+U54)*0.03) -> 201027984.9 | AN54: =+((E54+L54+R54+K54+H54+M54+N54+U54)*0.02) -> 134018656.6 | AR54: =SUM(AH54:AQ54) -> 2458185570 | AU54: =SUM(AS54:AT54) -> 0 | AV54: =W54+AG54+AR54 -> 1.067817443e+10
A55: PROFESIONAL ESPECIALIZADO | B55: 18 | C55: 14 | D55: =7461595*D10 -> 7909290.7 | E55: =D55*C55*12 -> 1328760838 | G55: 0 | H55: 4872000 | I55: 0 | J55: 0 | K55: 63946615.31 | L55: 0 | M55: 201097138.2 | N55: 96526626.34 | O55: 0 | Q55: 1690331217 | R55: 863694544.4 | S55: 376878999.6 | T55: =+D55*0.15*'PRIMA POR DEPENDIENTE'!C42*12 -> 142367232.6 | U55: 55365034.9 | V55: 863694544.4 | W55: =Q55+V55 -> 2554025762 | Z55: 7382004.653 | AA55: =SUM(X55:Z55) -> 7382004.653 | AB55: 0 | AC55: =+(((E55+R55)*20%)/C55)*'CARGOS CON COORDINACION'!C42 -> 125283164.7 | AF55: 704766431.7 | AG55: =AA55+AF55 -> 712148436.4 | AH55: 270768239.7 | AI55: 191794169.8 | AJ55: 249261816.4 | AK55: 104570511.9 | AL55: 11778418.43 | AM55: 78427883.9 | AN55: 52285255.94 | AR55: =SUM(AH55:AQ55) -> 958886296 | AU55: 0 | AV55: 4225060494
A56: PROFESIONAL ESPECIALIZADO | B56: 16 | C56: =38 -> 38 | D56: =6587097*D10 -> 6982322.82 | E56: 3183939206 | F56: 0 | G56: 0 | H56: 13224000 | I56: 0 | J56: 0 | K56: 153227074.3 | L56: 0 | M56: 481997821 | N56: 231358954.1 | O56: 0 | Q56: 4050523055 | R56: 2069560484 | S56: 903325127.3 | T56: =+D56*0.15*'PRIMA POR DEPENDIENTE'!C43*12 -> 213659078.3 | U56: 132664133.6 | V56: 2069560484 | W56: 6120083539 | Z56: 17688551.14 | AA56: 17688551.14 | AB56: 0 | AC56: =+(((E56+R56)*20%)/C56)*'CARGOS CON COORDINACION'!C43 -> 138249991.8 | AF56: 1401122331 | AG56: 1418810882 | AH56: 648807211.7 | AI56: 459571774.9 | AJ56: 597441400 | AK56: 250638866.9 | AL56: 28223113.71 | AM56: 187979150.2 | AN56: 125319433.5 | AR56: 2297980951 | AU56: 0 | AV56: 9836875372
A57: PROFESIONAL ESPECIALIZADO | B57: 14 | C57: 37 | D57: =5526100*D10 -> 5857666 | E57: 2600803704 | F57: 0 | G57: 0 | H57: 12876000 | I57: 0 | J57: 0 | K57: 125163678.3 | L57: 0 | M57: 393900400.2 | N57: 189072192.1 | O57: 0 | Q57: 3308939975 | R57: 1690522408 | S57: 738227631.6 | T57: =+D57*0.15*'PRIMA POR DEPENDIENTE'!C44*12 -> 189788378.4 | U57: 108366821 | V57: 1690522408 | W57: 4999462382 | Z57: 14448909.47 | AA57: 14448909.47 | AB57: 0 | AC57: =+(((E57+R57)*20%)/C57)*'CARGOS CON COORDINACION'!C44 -> 115981786.8 | AF57: 1165240618 | AG57: 1179689527 | AH57: 529978774.8 | AI57: 375401632.1 | AJ57: 488244402.9 | AK57: 204828208.1 | AL57: 23054076.7 | AM57: 153621156.1 | AN57: 102414104.1 | AR57: 1877542355 | AU57: 0 | AV57: 8056694264
A58: PROFESIONAL UNIVERSITARIO | B58: 11 | C58: =104+4 -> 108 | D58: =4492340*D10 -> 4761880.4 | E58: 6171396998 | F58: 0 | G58: 0 | H58: 37584000 | I58: 0 | J58: 0 | K58: 296998480.5 | L58: 0 | M58: 935288981.7 | N58: 448938711.2 | O58: 0 | Q58: 7852623172 | R58: 4011408049 | S58: 1752897921 | T58: =+D58*0.15*'PRIMA POR DEPENDIENTE'!C45*12 -> 359998158.2 | U58: 257141541.6 | V58: 4011408049 | W58: 1.186403122e+10 | Z58: 34285538.88 | AA58: 34285538.88 | AB58: 0 | AC58: =+(((E58+R58)*20%)/C58)*'CARGOS CON COORDINACION'!C45 -> 226284556.6 | AF58: 2633906178 | AG58: 2668191717 | AH58: 1257576423 | AI58: 890783299.9 | AJ58: 1159304557 | AK58: 486350270.5 | AL58: 54704574.42 | AM58: 364762702.9 | AN58: 243175135.2 | AR58: 4456656963 | AU58: 0 | AV58: 1.89888799e+10
A59: PROFESIONAL UNIVERSITARIO | B59: 7 | C59: =115+25 -> 140 | D59: =3807272*D10 -> 4035708.32 | E59: 6779989978 | F59: 0 | G59: 0 | H59: 48720000 | I59: 0 | J59: 0 | K59: 326287017.7 | L59: 0 | M59: 1028167540 | N59: 493520419.3 | O59: 0 | Q59: 8627964955 | R59: 4406993485 | S59: 1926998413 | T59: =+D59*0.15*'PRIMA POR DEPENDIENTE'!C46*12 -> 385006573.7 | U59: 282499582.4 | V59: 4406993485 | W59: 1.303495844e+10 | Z59: 37666610.99 | AA59: 37666610.99 | AB59: 0 | AC59: =+(((E59+R59)*20%)/C59)*'CARGOS CON COORDINACION'!C46 -> 223739669.3 | AF59: 2866964239 | AG59: 2904630850 | AH59: 1381592458 | AI59: 978627990.9 | AJ59: 1274431370 | AK59: 534647120.9 | AL59: 60099271.91 | AM59: 400985340.7 | AN59: 267323560.5 | AR59: 4897707112 | AU59: 0 | AV59: 2.08372964e+10
A60: PROFESIONAL UNIVERSITARIO | B60: 1 | C60: =10+67+23 -> 100 | D60: =2724337*D10 -> 2887797.22 | E60: 3465356664 | F60: 0 | G60: 0 | H60: 34800000 | I60: 0 | J60: 0 | K60: 166770289.5 | L60: 0 | M60: 526371410.2 | N60: 252658276.9 | O60: 0 | Q60: 4411156641 | R60: 2252481832 | S60: 986568130.8 | T60: =+D60*0.15*'PRIMA POR DEPENDIENTE'!C47*12 -> 181931224.9 | U60: 144389861 | V60: 2252481832 | W60: 6663638472 | Z60: 19251981.47 | AA60: 19251981.47 | AB60: 0 | AC60: =+(((E60+R60)*20%)/C60)*'CARGOS CON COORDINACION'!C47 -> 22871353.98 | AF60: 1370560571 | AG60: 1389812552 | AH60: 706153054.2 | AI60: 500191746.7 | AJ60: 652449705.3 | AK60: 273713133.3 | AL60: 30717657.86 | AM60: 205284850 | AN60: 136856566.7 | AR60: 2505366714 | AU60: 0 | AV60: 1.055881774e+10
Q61: =SUM(E61:P61) -> 0 | V61: =SUM(R61:U61) -> 0 | W61: =Q61+V61 -> 0 | AA61: =SUM(X61:Z61) -> 0 | AF61: =SUM(AB61:AE61) -> 0 | AG61: =AA61+AF61 -> 0 | AR61: =SUM(AH61:AQ61) -> 0 | AU61: =SUM(AS61:AT61) -> 0 | AV61: =W61+AG61+AR61 -> 0
Q62: 0 | V62: 0 | W62: 0 | AA62: 0 | AF62: 0 | AG62: 0 | AR62: 0 | AU62: 0 | AV62: 0
Q63: 0 | V63: 0 | W63: 0 | AA63: 0 | AF63: 0 | AG63: 0 | AR63: 0 | AU63: 0 | AV63: 0
Q64: 0 | V64: 0 | W64: 0 | AA64: 0 | AF64: 0 | AG64: 0 | AR64: 0 | AU64: 0 | AV64: 0
Q65: 0 | V65: 0 | W65: 0 | AA65: 0 | AF65: 0 | AG65: 0 | AR65: 0 | AU65: 0 | AV65: 0
Q66: 0 | V66: 0 | W66: 0 | AA66: 0 | AF66: 0 | AG66: 0 | AR66: 0 | AU66: 0 | AV66: 0
Q67: 0 | V67: 0 | W67: 0 | AA67: 0 | AF67: 0 | AG67: 0 | AR67: 0 | AU67: 0 | AV67: 0
Q68: 0 | V68: 0 | W68: 0 | AA68: 0 | AF68: 0 | AG68: 0 | AR68: 0 | AU68: 0 | AV68: 0
Q69: 0 | V69: 0 | W69: 0 | AA69: 0 | AF69: 0 | AG69: 0 | AR69: 0 | AU69: 0 | AV69: 0
Q70: 0 | V70: 0 | W70: 0 | AA70: 0 | AF70: 0 | AG70: 0 | AR70: 0 | AU70: 0 | AV70: 0
Q71: 0 | V71: 0 | W71: 0 | AA71: 0 | AF71: 0 | AG71: 0 | AR71: 0 | AU71: 0 | AV71: 0
Q72: 0 | V72: 0 | W72: 0 | AA72: 0 | AF72: 0 | AG72: 0 | AR72: 0 | AU72: 0 | AV72: 0
Q73: 0 | V73: 0 | W73: 0 | AA73: 0 | AF73: 0 | AG73: 0 | AR73: 0 | AU73: 0 | AV73: 0
Q74: 0 | V74: 0 | W74: 0 | AA74: 0 | AF74: 0 | AG74: 0 | AR74: 0 | AU74: 0 | AV74: 0
Q75: 0 | V75: 0 | W75: 0 | AA75: 0 | AF75: 0 | AG75: 0 | AR75: 0 | AU75: 0 | AV75: 0
Q76: 0 | V76: 0 | W76: 0 | AA76: 0 | AF76: 0 | AG76: 0 | AR76: 0 | AU76: 0 | AV76: 0
Q77: 0 | V77: 0 | W77: 0 | AA77: 0 | AF77: 0 | AG77: 0 | AR77: 0 | AU77: 0 | AV77: 0
A78: NIVEL TÉCNICO | B78: =SUM(B79:B86) -> 121 | C78: =SUM(C79:C85) -> 68 | D78: =SUM(D79:D85) -> 6961450.36 | E78: =SUM(E79:E85) -> 2840271747 | F78: 0 | G78: 0 | H78: 23664000 | I78: 0 | J78: 0 | K78: 136688077.8 | L78: 0 | M78: 431002180.2 | N78: 206881046.5 | O78: 0 | P78: 0 | Q78: =SUM(Q79:Q85) -> 3614843051 | R78: 1846176635 | S78: 807800076.7 | T78: 190037361 | U78: 118344656.1 | V78: 1846176635 | W78: 5461019687 | X78: 0 | Y78: 0 | Z78: 15779287.48 | AA78: 15779287.48 | AB78: 0 | AC78: 0 | AD78: 0 | AE78: 0 | AF78: 1139846094 | AG78: 1155625381 | AH78: 578776375.2 | AI78: 409966599.1 | AJ78: 534235701.6 | AK78: 224121133.7 | AL78: 25176772.32 | AM78: 168090850.3 | AN78: 112060566.9 | AO78: 0 | AP78: 0 | AQ78: 0 | AR78: 2052427999 | AS78: 0 | AT78: 0 | AU78: 0 | AV78: 8669073067
A79: TECNICO ADMINISTRATIVO | B79: 16 | C79: 34 | D79: =3556004*D10 -> 3769364.24 | E79: =D79*C79*12 -> 1537900610 | F79: 0 | G79: 0 | H79: =+C79*$I$127*12 -> 11832000 | I79: 0 | J79: 0 | K79: =IF(D79*1.65>$JJ$15,((E79+F79+R79+G79)/12)*0.35,((E79+F79+R79+G79)/12)*0.5) -> 74011466.85 | L79: 0 | M79: =+(E79+H79+F79+I79+K79+N79+G79+R79+U79)/12 -> 233286342.5 | N79: =((E79+F79+G79+H79+I79+K79+R79+U79)/24) -> 111977444.4 | O79: 0 | Q79: =SUM(E79:O79)-H79 -> 1957175864 | R79: =+(E79+F79+AB79)/12*0.65*12 -> 999635396.4 | S79: =(E79+I79+H79+K79+R79+AB79)/6 -> 437229912.2 | T79: =+D79*0.15*+'PRIMA POR DEPENDIENTE'!C49*12 -> 115342545.7 | U79: =(E79)/24 -> 64079192.08 | V79: =+R79 -> 999635396.4 | W79: =Q79+V79 -> 2956811260 | Z79: =(E79)/180 -> 8543892.277 | AA79: =SUM(X79:Z79) -> 8543892.277 | AB79: 0 | AF79: =SUM(AB79:AE79)+S79+T79+U79+H79 -> 628483650 | AG79: =AA79+AF79 -> 637027542.3 | AH79: =(E79+F79+K79+L79+R79)*0.12 -> 313385696.8 | AI79: =(E79+F79+K79+L79+R79)*0.085 -> 221981535.2 | AJ79: =(E79+F79+I79+H79+K79+N79+M79+R79+L79+U79+S79)/12 -> 289162697 | AK79: =+((E79+L79+R79+K79+H79+N79+U79+M79)*0.04) -> 121308898.1 | AL79: =(E79+F79+K79+L79+R79)*0.00522 -> 13632277.81 | AM79: =+((E79+L79+R79+K79+H79+M79+N79+U79)*0.03) -> 90981673.56 | AN79: =+((E79+L79+R79+K79+H79+M79+N79+U79)*0.02) -> 60654449.04 | AR79: =SUM(AH79:AQ79) -> 1111107228 | AU79: =SUM(AS79:AT79) -> 0 | AV79: =W79+AG79+AR79 -> 4704946030
A80: TECNICO OPERATIVO | B80: 14 | C80: 34 | D80: =3011402*D10 -> 3192086.12 | E80: =D80*C80*12 -> 1302371137 | F80: 0 | G80: 0 | H80: 11832000 | I80: 0 | J80: 0 | K80: =IF(D80*1.65>$JJ$15,((E80+F80+R80+G80)/12)*0.35,((E80+F80+R80+G80)/12)*0.5) -> 62676610.97 | L80: 0 | M80: 197715837.8 | N80: =((E80+F80+G80+H80+I80+K80+R80+U80)/24) -> 94903602.12 | O80: 0 | Q80: 1657667188 | R80: 846541239 | S80: 370570164.5 | T80: =+D80*0.15*+'PRIMA POR DEPENDIENTE'!C50*12 -> 74694815.21 | U80: =(E80)/24 -> 54265464.04 | V80: 846541239 | W80: =Q80+V80 -> 2504208427 | Z80: =(E80)/180 -> 7235395.205 | AA80: =SUM(X80:Z80) -> 7235395.205 | AB80: 0 | AF80: 511362443.7 | AG80: =AA80+AF80 -> 518597838.9 | AH80: 265390678.4 | AI80: 187985063.9 | AJ80: 245073004.6 | AK80: 102812235.6 | AL80: 11544494.51 | AM80: 77109176.73 | AN80: 51406117.82 | AR80: =SUM(AH80:AQ80) -> 941320771.6 | AU80: =SUM(AS80:AT80) -> 0 | AV80: =W80+AG80+AR80 -> 3964127037
Q81: =SUM(E81:P81) -> 0 | V81: =SUM(R81:U81) -> 0 | W81: =Q81+V81 -> 0 | AA81: =SUM(X81:Z81) -> 0 | AF81: =SUM(AB81:AE81) -> 0 | AG81: =AA81+AF81 -> 0 | AR81: =SUM(AH81:AQ81) -> 0 | AU81: =SUM(AS81:AT81) -> 0 | AV81: =W81+AG81+AR81 -> 0
Q82: 0 | V82: 0 | W82: 0 | AA82: 0 | AF82: 0 | AG82: 0 | AR82: 0 | AU82: 0 | AV82: 0
Q83: 0 | V83: 0 | W83: 0 | AA83: 0 | AF83: 0 | AG83: 0 | AR83: 0 | AU83: 0 | AV83: 0
Q84: 0 | V84: 0 | W84: 0 | AA84: 0 | AF84: 0 | AG84: 0 | AR84: 0 | AU84: 0 | AV84: 0
Q85: 0 | V85: 0 | W85: =Q85+V85 -> 0 | AA85: 0 | AF85: 0 | AG85: 0 | AR85: 0 | AU85: 0 | AV85: 0
A86: NIVEL ASISTENCIAL | B86: =SUM(B87:B92) -> 91 | C86: =SUM(C87:C92) -> 143 | D86: =SUM(D87:D92) -> 14155891.9 | E86: =SUM(E87:E92) -> 3870619387 | F86: 0 | G86: 0 | H86: 49764000 | I86: 46203263.04 | J86: 0 | K86: 186273558 | L86: 82654745.8 | M86: 592885296.7 | N86: 284584942.4 | O86: 0 | P86: 0 | Q86: 5063221193 | R86: 2515902602 | S86: 1111460468 | T86: 246672706.2 | U86: 161275807.8 | V86: 2515902602 | W86: 7579123795 | X86: 0 | Y86: 0 | Z86: 21503441.04 | AA86: 21503441.04 | AB86: 0 | AC86: 0 | AD86: 153000 | AE86: 260000 | AF86: 1569585982 | AG86: 1591089423 | AH86: 798654035.2 | AI86: 565713274.9 | AJ86: 741802006 | AK86: 309758413.6 | AL86: 34741450.53 | AM86: 232318810.2 | AN86: 154879206.8 | AO86: 0 | AP86: 0 | AQ86: 0 | AR86: 2837867197 | AS86: 0 | AT86: 0 | AU86: 0 | AV86: 1.200808042e+10
A87: SECRETARIO EJECUTIVO | B87: 22 | C87: 9 | D87: =2850336*D10 -> 3021356.16 | E87: =D87*C87*12 -> 326306465.3 | F87: 0 | G87: 0 | H87: =+C87*$I$127*12 -> 3132000 | J87: 0 | K87: =IF(D87*1.65>$JJ$15,((E87+F87+R87+G87)/12)*0.35,((E87+F87+R87+G87)/12)*0.5) -> 15703498.64 | L87: 0 | M87: =+(E87+H87+F87+I87+K87+N87+G87+R87+U87)/12 -> 49551846.27 | N87: =((E87+F87+G87+H87+I87+K87+R87+U87)/24) -> 23784886.21 | O87: 0 | Q87: =SUM(E87:O87)-H87 -> 415346696.4 | R87: =+(E87+F87+AB87)/12*0.65*12 -> 212099202.4 | S87: =(E87+I87+H87+K87+R87+AB87)/6 -> 92873527.73 | T87: =+D87*0.15*'PRIMA POR DEPENDIENTE'!C52*12 -> 27192205.44 | U87: =(E87)/24 -> 13596102.72 | V87: =+R87 -> 212099202.4 | W87: =Q87+V87 -> 627445898.8 | Z87: =(E87)/180 -> 1812813.696 | AA87: =SUM(X87:Z87) -> 1812813.696 | AB87: 0 | AF87: =SUM(AB87:AE87)+S87+T87+U87+H87 -> 136793835.9 | AG87: =AA87+AF87 -> 138606649.6 | AH87: =(E87+F87+K87+L87+R87)*0.12 -> 66493099.96 | AI87: =(E87+F87+K87+L87+R87)*0.085 -> 47099279.14 | AJ87: =(E87+F87+I87+H87+K87+N87+M87+R87+L87+U87+S87)/12 -> 61420627.44 | AK87: =+((E87+L87+R87+K87+H87+N87+U87+M87)*0.04) -> 25766960.06 | AL87: =(E87+F87+K87+L87+R87)*0.00522 -> 2892449.848 | AM87: =+((E87+L87+R87+K87+H87+M87+N87+U87)*0.03) -> 19325220.05 | AN87: =+((E87+L87+R87+K87+H87+M87+N87+U87)*0.02) -> 12883480.03 | AR87: =SUM(AH87:AQ87) -> 235881116.5 | AU87: =SUM(AS87:AT87) -> 0 | AV87: =W87+AG87+AR87+AU87 -> 1001933665
A88: SECRETARO EJECUTIVO | B88: 18 | C88: 25 | D88: =2436984*D10 -> 2583203.04 | E88: =D88*C88*12 -> 774960912 | F88: 0 | G88: 0 | H88: 8700000 | J88: 0 | K88: 37294993.89 | L88: 0 | M88: 117792581.3 | N88: 56540439.03 | O88: 0 | Q88: 986588926.2 | R88: 503724592.8 | S88: 220780083.1 | T88: =+D88*0.15*'PRIMA POR DEPENDIENTE'!C53*12 -> 51147420.19 | U88: 32290038 | V88: 503724592.8 | W88: =Q88+V88 -> 1490313519 | Z88: 4305338.4 | AA88: =SUM(X88:Z88) -> 4305338.4 | AB88: 0 | AF88: 312917541.3 | AG88: =AA88+AF88 -> 317222879.7 | AH88: 157917659.8 | AI88: 111858342.4 | AJ88: 146006970 | AK88: 61252142.28 | AL88: 6869418.203 | AM88: 45939106.71 | AN88: 30626071.14 | AR88: =SUM(AH88:AQ88) -> 560469710.6 | AU88: =SUM(AS88:AT88) -> 0 | AV88: =W88+AG88+AR88+AU88 -> 2368006109
A89: SECRETARO EJECUTIVO | B89: 15 | C89: 32 | D89: =2229680*D10 -> 2363460.8 | E89: 907568947.2 | F89: 0 | G89: 0 | H89: 11136000 | J89: 0 | K89: 43676755.58 | L89: 0 | M89: 138030980.1 | N89: 66254870.47 | O89: 0 | Q89: 1155531553 | R89: 589919815.7 | S89: 258716919.7 | T89: =+D89*0.15*'PRIMA POR DEPENDIENTE'!C54*12 -> 55304982.72 | U89: 37815372.8 | V89: 589919815.7 | W89: 1745451369 | Z89: 5042049.707 | AA89: 5042049.707 | AB89: 0 | AF89: 362973275.3 | AG89: 368015325 | AH89: 184939862.2 | AI89: 130999069.1 | AJ89: 171093305.1 | AK89: 71776109.68 | AL89: 8044884.006 | AM89: 53832082.26 | AN89: 35888054.84 | AR89: 656573367.2 | AU89: 0 | AV89: 2770040061
A90: CONDUCTOR MECANICO | B90: 14 | C90: =8+1 -> 9 | D90: =2162467*D10 -> 2292215.02 | E90: 247559222.2 | F90: 0 | G90: 0 | H90: 3132000 | J90: 0 | K90: 11913787.57 | L90: =75140678*1.1 -> 82654745.8 | M90: 37659155.53 | N90: 18076394.66 | O90: 0 | Q90: 397863305.7 | R90: 160913494.4 | S90: 70586417.36 | T90: =+D90*0.15*'PRIMA POR DEPENDIENTE'!C56*12 -> 28881909.25 | U90: 10314967.59 | V90: 160913494.4 | W90: 558776800.1 | Z90: 1375329.012 | AA90: 1375329.012 | AB90: 0 | AF90: 112915294.2 | AG90: 114290623.2 | AH90: 60364949.99 | AI90: 42758506.24 | AJ90: 53567515.42 | AK90: 22888950.71 | AL90: 2625875.325 | AM90: 17166713.03 | AN90: 11444475.35 | AR90: 210816986.1 | AU90: 0 | AV90: 883884409.4
A91: AUXILIAR ADMINISTRATIVO | B91: 14 | C91: 37 | D91: =2162467*D10 -> 2292215.02 | E91: 1017743469 | F91: 0 | G91: 0 | H91: 12876000 | J91: 0 | K91: 48978904.44 | L91: 0 | M91: 154820972.7 | N91: 74314066.92 | O91: 0 | Q91: 1295857413 | R91: 661533254.8 | S91: 290188604.7 | T91: =+D91*0.15*'PRIMA POR DEPENDIENTE'!C57*12 -> 49511844.43 | U91: 42405977.87 | V91: 661533254.8 | W91: 1957390668 | Z91: 5654130.383 | AA91: 5654130.383 | AB91: 0 | AF91: 394982427 | AG91: 400636557.4 | AH91: 207390675.4 | AI91: 146901728.4 | AJ91: 191905104.2 | AK91: 80506905.82 | AL91: 9021494.379 | AM91: 60380179.37 | AN91: 40253452.91 | AR91: 736359540.4 | AU91: 0 | AV91: 3094386766
A92: AUXILIAR SERVICIOS GENERALES | B92: 8 | C92: 31 | D92: =1512681*D10 -> 1603441.86 | E92: 596480371.9 | F92: 0 | G92: 0 | H92: 10788000 | I92: =I125*C92*12 -> 46203263.04 | J92: 0 | K92: 28705617.9 | L92: 0 | M92: 95029760.71 | N92: 45614285.14 | O92: 0 | Q92: 812033298.7 | R92: 387712241.7 | S92: 178314915.8 | T92: =+D92*0.15*'PRIMA POR DEPENDIENTE'!C58*12 -> 34634344.18 | U92: 24853348.83 | V92: 387712241.7 | W92: 1199745540 | Z92: 3313779.844 | AA92: 3313779.844 | AB92: 0 | AD92: 153000 | AE92: 260000 | AF92: 249003608.8 | AG92: 252317388.6 | AH92: 121547787.8 | AI92: 86096349.68 | AJ92: 117808483.8 | AK92: 47567345.05 | AL92: 5287328.769 | AM92: 35675508.79 | AN92: 23783672.53 | AR92: 437766476.4 | AU92: 0 | AV92: 1889829405
A93: TOTAL EMPLEADOS PÚBLICOS | C93: =C86+C78+C53+C45+C26+C17 -> 747 | D93: =D17+D26+D45+D53+D78+D86 -> 235079317.5 | E93: 4.357260712e+10 | F93: 0 | G93: 0 | H93: 259956000 | I93: 46203263.04 | J93: 0 | K93: 2141004739 | L93: 82654745.8 | M93: 6610893321 | N93: 3173228794 | O93: 0 | Q93: =SUM(E93:P93)-H93 -> 5.562659199e+10 | R93: =R17+R26+R45+R53+R78+R86 -> 2.832219463e+10 | S93: =S17+S26+S45+S53+S78+S86 -> 1.239032763e+10 | T93: =T17+T26+T45+T53+T78+T86 -> 3084380609 | U93: =U17+U26+U45+U53+U78+U86 -> 1815525297 | V93: =V17+V26+V45+V53+V78+V86 -> 2.832219463e+10 | W93: =Q93+V93 -> 8.394878662e+10 | X93: =X17+X26+X45+X53+X78+X86 -> 0 | Y93: =Y17+Y26+Y45+Y53+Y78+Y86 -> 0 | Z93: =Z17+Z26+Z45+Z53+Z78+Z86 -> 242070039.6 | AA93: =SUM(X93:Z93) -> 242070039.6 | AB93: =AB17+AB26+AB45+AB53+AB78+AB86 -> 584116621 | AC93: =AC17+AC26+AC45+AC53+AC78+AC86 -> 1106278374 | AD93: =AD17+AD26+AD45+AD53+AD78+AD86 -> 153000 | AE93: =AE17+AE26+AE45+AE53+AE78+AE86 -> 260000 | AF93: =AF17+AF26+AF45+AF53+AF78+AF86 -> 1.924099753e+10 | AG93: =AA93+AF93 -> 1.948306757e+10 | AH93: =AH17+AH26+AH45+AH53+AH78+AH86 -> 8894215349 | AI93: 6300069205 | AJ93: 8201216295 | AK93: 3439122586 | AL93: 386898367.7 | AM93: 2579341940 | AN93: 1719561293 | AO93: 0 | AP93: 0 | AQ93: 0 | AR93: =SUM(AH93:AQ93) -> 3.152042504e+10 | AS93: =AS17+AS26+AS45+AS53+AS78+AS86 -> 0 | AT93: =AT17+AT26+AT45+AT53+AT78+AT86 -> 0 | AU93: =SUM(AS93:AT93) -> 0 | AV93: =W93+AG93+AR93 -> 1.349522792e+11
A94: TRABAJADORES OFICIALES
Q95: =SUM(E95:P95) -> 0 | V95: =SUM(R95:U95) -> 0 | W95: =Q95+V95 -> 0 | AA95: =SUM(X95:Z95) -> 0 | AF95: =SUM(AB95:AE95) -> 0 | AG95: =AA95+AF95 -> 0 | AR95: =SUM(AH95:AQ95) -> 0 | AU95: =SUM(AS95:AT95) -> 0 | AV95: =W95+AG95+AR95 -> 0
Q96: =SUM(E96:P96) -> 0 | V96: 0 | W96: =Q96+V96 -> 0 | AA96: =SUM(X96:Z96) -> 0 | AF96: =SUM(AB96:AE96) -> 0 | AG96: 0 | AR96: =SUM(AH96:AQ96) -> 0 | AU96: =SUM(AS96:AT96) -> 0 | AV96: 0
Q97: 0 | V97: 0 | W97: 0 | AA97: 0 | AF97: 0 | AG97: 0 | AR97: 0 | AU97: 0 | AV97: 0
Q98: 0 | V98: 0 | W98: 0 | AA98: 0 | AF98: 0 | AG98: 0 | AR98: 0 | AU98: 0 | AV98: 0
Q99: 0 | V99: 0 | W99: 0 | AA99: 0 | AF99: 0 | AG99: 0 | AR99: 0 | AU99: 0 | AV99: 0
Q100: 0 | V100: 0 | W100: 0 | AA100: 0 | AF100: 0 | AG100: 0 | AR100: 0 | AU100: 0 | AV100: 0
Q101: 0 | V101: 0 | W101: 0 | AA101: 0 | AF101: 0 | AG101: 0 | AR101: 0 | AU101: 0 | AV101: 0
Q102: 0 | V102: 0 | W102: 0 | AA102: 0 | AF102: 0 | AG102: 0 | AR102: 0 | AU102: 0 | AV102: 0
Q103: 0 | V103: 0 | W103: 0 | AA103: 0 | AF103: 0 | AG103: 0 | AR103: 0 | AU103: 0 | AV103: 0
Q104: 0 | V104: 0 | W104: 0 | AA104: 0 | AF104: 0 | AG104: 0 | AR104: 0 | AU104: 0 | AV104: 0
Q105: 0 | V105: 0 | W105: 0 | AA105: 0 | AF105: 0 | AG105: 0 | AR105: 0 | AU105: 0 | AV105: 0
Q106: 0 | V106: 0 | W106: 0 | AA106: 0 | AF106: 0 | AG106: 0 | AR106: 0 | AU106: 0 | AV106: 0
Q107: 0 | V107: 0 | W107: =Q107+V107 -> 0 | AA107: 0 | AF107: 0 | AG107: 0 | AR107: 0 | AU107: 0 | AV107: 0
A108: TOTAL TRABAJADORES OFICIALES | C108: =SUM(C95:C107) -> 0 | D108: =SUM(D95:D107) -> 0 | E108: =SUM(E95:E107) -> 0 | F108: =SUM(F95:F107) -> 0 | G108: 0 | H108: 0 | I108: 0 | J108: 0 | K108: 0 | L108: 0 | M108: 0 | N108: 0 | O108: 0 | Q108: =SUM(Q95:Q107) -> 0 | R108: =SUM(R95:R107) -> 0 | S108: =SUM(S95:S107) -> 0 | T108: =SUM(T95:T107) -> 0 | U108: =SUM(U95:U107) -> 0 | V108: =SUM(V95:V107) -> 0 | W108: =SUM(W95:W107) -> 0 | X108: =SUM(X95:X107) -> 0 | Y108: =SUM(Y95:Y107) -> 0 | Z108: =SUM(Z95:Z107) -> 0 | AA108: =SUM(AA95:AA107) -> 0 | AB108: =SUM(AB95:AB107) -> 0 | AC108: =SUM(AC95:AC107) -> 0 | AD108: =SUM(AD95:AD107) -> 0 | AE108: =SUM(AE95:AE107) -> 0 | AF108: =SUM(AF95:AF107) -> 0 | AG108: =SUM(AG95:AG107) -> 0 | AH108: =SUM(AH95:AH107) -> 0 | AI108: =SUM(AI95:AI107) -> 0 | AJ108: =SUM(AJ95:AJ107) -> 0 | AK108: =SUM(AK95:AK107) -> 0 | AL108: =SUM(AL95:AL107) -> 0 | AM108: =SUM(AM95:AM107) -> 0 | AN108: =SUM(AN95:AN107) -> 0 | AO108: =SUM(AO95:AO107) -> 0 | AP108: =SUM(AP95:AP107) -> 0 | AQ108: =SUM(AQ95:AQ107) -> 0 | AR108: =SUM(AR95:AR107) -> 0 | AS108: =SUM(AS95:AS107) -> 0 | AT108: =SUM(AT95:AT107) -> 0 | AU108: =SUM(AU95:AU107) -> 0 | AV108: =W108+AG108+AR108 -> 0
A109: TOTAL PLANTA DE PERSONAL | B109: =B93+B108 -> 0 | C109: =C93+C108 -> 747 | D109: =D93+D108 -> 235079317.5 | E109: =E93+E108 -> 4.357260712e+10 | F109: =F93+F108 -> 0 | G109: 0 | H109: 259956000 | I109: 46203263.04 | J109: 0 | K109: 2141004739 | L109: 82654745.8 | M109: 6610893321 | N109: 3173228794 | O109: 0 | Q109: =SUM(E109:O109) -> 5.588654799e+10 | R109: =R93+R108 -> 2.832219463e+10 | S109: =S93+S108 -> 1.239032763e+10 | T109: =T93+T108 -> 3084380609 | U109: =U93+U108 -> 1815525297 | V109: =SUM(R109:U109) -> 4.561242816e+10 | W109: =Q109+V109 -> 1.014989761e+11 | X109: =X93+X108 -> 0 | Y109: =Y93+Y108 -> 0 | Z109: =Z93+Z108 -> 242070039.6 | AA109: =SUM(X109:Z109) -> 242070039.6 | AB109: =AB93+AB108 -> 584116621 | AC109: =AC93+AC108 -> 1106278374 | AD109: =AD93+AD108 -> 153000 | AE109: =AE93+AE108 -> 260000 | AF109: =SUM(AB109:AE109) -> 1690807995 | AG109: =AA109+AF109 -> 1932878035 | AH109: =AH93+AH108 -> 8894215349 | AI109: =AI93+AI108 -> 6300069205 | AJ109: =AJ93+AJ108 -> 8201216295 | AK109: =AK93+AK108 -> 3439122586 | AL109: =AL93+AL108 -> 386898367.7 | AM109: =AM93+AM108 -> 2579341940 | AN109: =AN93+AN108 -> 1719561293 | AO109: =AO93+AO108 -> 0 | AP109: =AP93+AP108 -> 0 | AQ109: =AQ93+AQ108 -> 0 | AR109: =SUM(AH109:AQ109) -> 3.152042504e+10 | AS109: =AS93+AS108 -> 0 | AT109: =AT93+AT108 -> 0 | AU109: =SUM(AS109:AT109) -> 0 | AV109: =W109+AG109+AR109 -> 1.349522792e+11
H125: AUX TRANSP | I125: =117172*D10 -> 124202.32
H126: SALARIO MINIMO | I126: 1300000
H127: Prima de Alimentación | I127: 29000
C138: RESUMEN - ANTEPROYECTO PLANTA DE PERSONAL
C140: CUENTA | G140: TOTAL | M140: TOTAL PLANTA DE PERSONAL
G141: ELPLEADOS PÚBLICOS | J141: TRABAJADORES OFICIALES
C143: GASTOS DE PERSONAL | G143: =G145+G151+G157 -> 1.349522792e+11 | J143: =J145+J151+J157 -> 0 | M143: =M145+M151+M157 -> 1.349522792e+11
C145: Salario | G145: =G147+G149 -> 8.394878662e+10 | J145: =J147+J149 -> 0 | M145: =SUM(M147:O150) -> 8.394878662e+10
C147: Factores salariales comunes | G147: =Q93 -> 5.562659199e+10 | J147: =Q108 -> 0 | M147: =G147+J147 -> 5.562659199e+10
C149: Factores salariales especiales | G149: =V93 -> 2.832219463e+10 | J149: =V108 -> 0 | M149: =G149+J149 -> 2.832219463e+10
C151: Remuneraciones no constitutivas de factor salarial | G151: =G153+G155 -> 1.948306757e+10 | J151: =J153+J155 -> 0 | M151: =SUM(M153:O156) -> 1.948306757e+10
C153: Prestaciones sociales según definición legal | G153: =AA93 -> 242070039.6 | J153: =AA108 -> 0 | M153: =G153+J153 -> 242070039.6
C155: Otras prestaciones no constitutivas de factor salarial | G155: =AF93 -> 1.924099753e+10 | J155: =AF108 -> 0 | M155: =G155+J155 -> 1.924099753e+10
C157: Contribuciones inherentes a la nómina | G157: =AR93 -> 3.152042504e+10 | J157: =AR108 -> 0 | M157: =G157+J157 -> 3.152042504e+10
C159: TRANSFERENCIAS CORRIENTES | G159: =G161 -> 0 | J159: =J161 -> 0 | M159: =M161 -> 0
C161: Prestaciones sociales relacionadas con el empleo | G161: =G163+G165 -> 0 | J161: =J163+J165 -> 0 | M161: =G161+J161 -> 0
C163: Incapacidades | G163: =AS93 -> 0 | J163: =AS108 -> 0 | M163: =G163+J163 -> 0
C165: Licencias de maternidad y paternidad | G165: =AT93 -> 0 | J165: =AT108 -> 0 | M165: =G165+J165 -> 0

Sheet Formulario 2A - Nómina
A1: MINISTERIO DE HACIENDA Y CRÉDITO PÚBLICO
A2: Dirección General del Presupuesto Público Nacional
A3: Formulario 2A Certificación de Nómina
B5: CÓDIGO UEJ | C5: =+'Formulario 2- Planta'!B5 -> 350200
B6: UNIDAD EJECUTORA | C6: =+IFERROR(VLOOKUP(C5,DESPLEGABLES!$A$2:$C$229,2,0),"") -> SUPERINTENDENCIA DE SOCIEDADES
B7: SECTOR PRESUPUESTAL | C7: =+IFERROR(VLOOKUP(C5,DESPLEGABLES!$A$2:$C$229,3,0),"") -> COMERCIO, INDUSTRIA Y TURISMO
B9: ANTEPROYECTO COSTO DE NÓMINA - VIGENCIA | F9: 2025
B11: DENOMINACIÓN DE CARGO | C11: Grado | D11: Planta Actual | E11: Nómina Provista | H11: Total Cargos Provistos | I11: Cargos Vacantes
E12: Libre Nombramiento | F12: Carrera Administrativa
F13: Propiedad | G13: Provisionales
D14: 1 | E14: 2 | F14: 3 | G14: 4 | H14: 5=2+3+4 | I14: 6=1-5
B15: Empleados Públicos
B16: SUPERINTENDENTE | C16: 25 | D16: 1 | E16: 1 | F16: 0 | G16: 0 | H16: =F16+E16+G16 -> 1 | I16: =D16-H16 -> 0
B17: SUPERINTENDENTE DELEGADO | C17: 23 | D17: =4+1 -> 5 | E17: 5 | F17: 0 | G17: 0 | H17: 5 | I17: 0
B18: SECRETARIO GENERAL | C18: 23 | D18: 1 | E18: 1 | F18: 0 | G18: 0 | H18: 1 | I18: 0
B19: DIRECTOR DE SUPERTENDENCIA | C19: 19 | D19: =17+1 -> 18 | E19: 16 | F19: 0 | G19: 0 | H19: 16 | I19: 2
B20: DIRECTOR ADMINISTRATIVO | C20: 19 | D20: 1 | E20: 1 | F20: 0 | G20: 0 | H20: 1 | I20: 0
B21: DIRECTOR FINANCIERO | C21: 19 | D21: 1 | E21: 1 | F21: 0 | G21: 0 | H21: 1 | I21: 0
B22: DIRECTOR TECNICO | C22: 19 | D22: 1 | E22: 0 | F22: 0 | G22: 0 | H22: 0 | I22: 1
B23: JEFE OFICINA | C23: 19 | D23: =1+1 -> 2 | E23: 2 | F23: 0 | G23: 0 | H23: 2 | I23: 0
B24: INTENDENTE | C24: 20 | D24: 6 | E24: 6 | F24: 0 | G24: 0 | H24: 6 | I24: 0
B25: ASESOR | C25: 16 | D25: =1 -> 1 | E25: 1 | F25: 0 | G25: 0 | H25: 1 | I25: 0
B26: ASESOR | C26: 15 | D26: 6 | E26: 6 | F26: 0 | G26: 0 | H26: 6 | I26: 0
B27: JEFE DE OFIC. ASESORA DE JP.C | C27: 13 | D27: 2 | E27: 2 | F27: 0 | G27: 0 | H27: 2 | I27: 0
B28: ASESOR | C28: 14 | D28: =3 -> 3 | E28: 3 | F28: 0 | G28: 0 | H28: 3 | I28: 0
B29: ASESOR | C29: 13 | D29: =3 -> 3 | E29: 3 | F29: 0 | G29: 0 | H29: 3 | I29: 0
B30: ASESOR | C30: 11 | D30: =6+8+3 -> 17 | E30: 14 | F30: 0 | G30: 0 | H30: 14 | I30: 3
B31: PROFESIONAL ESPECIALIZADO | C31: 20 | D31: 31 | E31: 0 | F31: 27 | G31: 1 | H31: 28 | I31: 3
B32: PROFESIONAL ESPECIALIZADO | C32: 18 | D32: 14 | E32: 0 | F32: 12 | G32: 1 | H32: 13 | I32: 1
B33: PROFESIONAL ESPECIALIZADO | C33: 16 | D33: =38 -> 38 | E33: 0 | F33: 30 | G33: 5 | H33: 35 | I33: 3
B34: PROFESIONAL ESPECIALIZADO | C34: 14 | D34: 37 | E34: 0 | F34: 22 | G34: 8 | H34: 30 | I34: 7
B35: PROFESIONAL UNIVERSITARIO | C35: 11 | D35: =104+4 -> 108 | E35: 0 | F35: 54 | G35: 47 | H35: 101 | I35: 7
B36: PROFESIONAL UNIVERSITARIO | C36: 7 | D36: =115+25 -> 140 | E36: 0 | F36: 11 | G36: 116 | H36: 127 | I36: 13
B37: PROFESIONAL UNIVERSITARIO | C37: 1 | D37: =10+67+23 -> 100 | E37: 0 | F37: 1 | G37: 95 | H37: 96 | I37: 4
B38: TECNICO ADMINISTRATIVO | C38: 16 | D38: 34 | E38: 0 | F38: 12 | G38: 19 | H38: 31 | I38: 3
B39: TECNICO OPERATIVO | C39: 14 | D39: 34 | E39: 2 | F39: 16 | G39: 15 | H39: 33 | I39: 1
B40: SECRETARIO EJECUTIVO | C40: 22 | D40: =9 -> 9 | E40: 1 | F40: 6 | G40: 1 | H40: 8 | I40: 1
B41: SECRETARO EJECUTIVO | C41: 18 | D41: 25 | E41: 0 | F41: 12 | G41: 11 | H41: 23 | I41: 2
B42: SECRETARO EJECUTIVO | C42: 15 | D42: =28+4 -> 32 | E42: 0 | F42: 4 | G42: 27 | H42: 31 | I42: 1
B43: SECRETARIO | C43: 14 | D43: 1 | E43: 0 | F43: 0 | G43: 1 | H43: 1 | I43: 0
B44: CONDUCTOR MECANICO | C44: 14 | D44: =8+1 -> 9 | E44: 2 | F44: 2 | G44: 5 | H44: 9 | I44: 0
B45: AUXILIAR ADMINISTRATIVO | C45: 14 | D45: 36 | E45: 1 | F45: 3 | G45: 30 | H45: 34 | I45: 2
B46: AUXILIAR SERVICIOS GENERALES | C46: 8 | D46: 31 | E46: 0 | F46: 2 | G46: 29 | H46: 31 | I46: 0
H47: 0 | I47: 0
H48: =F48+E48+G48 -> 0 | I48: =D48-H48 -> 0
B49: Total Empleados Públicos | D49: =SUM(D16:D48) -> 747 | E49: =SUM(E16:E48) -> 68 | F49: 214 | G49: 411 | H49: 693 | I49: 54
B50: Trabajadores Oficiales
H51: =E51+F51+G51 -> 0 | I51: =D51-H51 -> 0
H52: =E52+F52+G52 -> 0 | I52: =D52-H52 -> 0
H53: =E53+F53+G53 -> 0 | I53: 0
H54: 0 | I54: 0
H55: 0 | I55: 0
H56: 0 | I56: =D56-H56 -> 0
H57: =E57+F57+G57 -> 0 | I57: =D57-H57 -> 0
H58: 0 | I58: 0
H59: 0 | I59: 0
H60: 0 | I60: 0
H61: 0 | I61: 0
H62: 0 | I62: 0
H63: 0 | I63: 0
B64: Total Trabajadores Oficiales | D64: =SUM(D51:D63) -> 0 | E64: =SUM(E51:E63) -> 0 | F64: 0 | G64: 0 | H64: =SUM(H51:H63) -> 0 | I64: =SUM(I51:I63) -> 0
B65: Total Personal | D65: =D49+D64 -> 747 | E65: =E49+E64 -> 68 | F65: =F49+F64 -> 214 | G65: 411 | H65: =H49+H64 -> 693 | I65: =I49+I64 -> 54
B72: Bogotá D.C.; 29 de febrero de 2024
B73: Ciudad y fecha | H73: Jefe de Personal

Sheet Formulario 2B- Programático
A1: MINISTERIO DE HACIENDA Y CRÉDITO PÚBLICO
A2: Dirección General del Presupuesto Público Nacional
A3: Formulario 2B. Anteproyecto Planta de personal - Clasificador Programatico
A5: CÓDIGO UEJ | B5: =+'Formulario 2- Planta'!B5 -> 350200
A6: UNIDAD EJECUTORA | B6: =+IFERROR(VLOOKUP(B5,DESPLEGABLES!$A$2:$C$229,2,0),"") -> SUPERINTENDENCIA DE SOCIEDADES
A7: SECTOR PRESUPUESTAL | B7: =+IFERROR(VLOOKUP(B5,DESPLEGABLES!$A$2:$C$229,3,0),"") -> COMERCIO, INDUSTRIA Y TURISMO
A10: DENOMINACIÓN DE CARGOS | B10: Grado | C10: No. Cargos | D10: Total Salario | F10: Total Remuneraciones no constitutivas de Factor Salarial | H10: Total Contribuciones Inherentes a la Nómina | J10: Total Gastos de personal | K10: Dependencias con fines programaticos | S10: CHECK
E11: Porc. Unit. Salarios | G11: Porc. Unit. Remuneraciones | I11: Porc. Unit. Contribuciones | K11: Alta gerencia | L11: Secretaria general y dependencias de apoyo | M11: Oficinas asesoras | N11: Delegatura de Asuntos Económicos y Societarios | O11: Delegatura de Supervisión Societaria | P11: Delegatura de Procedimientos de Insolvencia | Q11: Delegatura de Procedimientos Mercantiles | R11: Delegatura de Intervención y
A12: EMPLEADOS PÚBLICOS
A13: NIVEL DIRECTIVO | B13: =+'Formulario 2- Planta'!B17 -> 148 | C13: =+'Formulario 2- Planta'!C17 -> 36 | D13: =+'Formulario 2- Planta'!W17 -> 1.056805762e+10 | E13: =IFERROR((D13/C13)/($D$105),0) -> 0.003496860027 | F13: =+'Formulario 2- Planta'!AG17 -> 2926553277 | G13: =IFERROR((F13/C13)/$F$105,0) -> 0.004172502421 | H13: =SUM(H14:H21) -> 3966452489 | I13: =IFERROR((H13/C13)/$H$105,0) -> 0.003495486996 | J13: =SUM(J14:J21) -> 1.746106339e+10 | K13: =+SUM(K14:K21) -> 9 | L13: =+SUM(L14:L21) -> 3 | M13: =+SUM(M14:M21) -> 0 | N13: 3 | O13: 4 | P13: 6 | Q13: 5 | R13: 3 | S13: =+SUM(K13:R13) -> 33 | T13: =+S13=C13 -> FALSE
A14: =+'Formulario 2- Planta'!A18 -> SUPERINTENDENTE | B14: =+'Formulario 2- Planta'!B18 -> 25 | C14: =+'Formulario 2- Planta'!C18 -> 1 | D14: =+'Formulario 2- Planta'!W18 -> 423814345.9 | E14: =IFERROR((D14/C14)/($D$105),0) -> 0.005048486858 | F14: =+'Formulario 2- Planta'!AG18 -> 216574099 | G14: =IFERROR((F14/C14)/$F$105,0) -> 0.01111601642 | H14: =+'Formulario 2- Planta'!AR18 -> 159043062.9 | I14: =IFERROR((H14/C14)/$H$105,0) -> 0.005045714414 | J14: =D14+F14+H14 -> 799431507.9 | K14: 1 | S14: =+SUM(K14:R14) -> 1 | T14: =+S14=C14 -> TRUE
A15: =+'Formulario 2- Planta'!A19 -> SUPERINTENDENTE DELEGADO | B15: =+'Formulario 2- Planta'!B19 -> 23 | C15: =+'Formulario 2- Planta'!C19 -> 5 | D15: =+'Formulario 2- Planta'!W19 -> 1821377516 | E15: =IFERROR((D15/C15)/($D$105),0) -> 0.004339258706 | F15: =+'Formulario 2- Planta'!AG19 -> 874151929.1 | G15: =IFERROR((F15/C15)/$F$105,0) -> 0.008973452729 | H15: =+'Formulario 2- Planta'!AR19 -> 683540261.6 | I15: =IFERROR((H15/C15)/$H$105,0) -> 0.004337125916 | J15: =D15+F15+H15 -> 3379069707 | N15: 1 | O15: 1 | P15: 1 | Q15: 1 | R15: 1 | S15: 5 | T15: TRUE
A16: =+'Formulario 2- Planta'!A20 -> SECRETARIO GENERAL | B16: =+'Formulario 2- Planta'!B20 -> 23 | C16: =+'Formulario 2- Planta'!C20 -> 1 | D16: =+'Formulario 2- Planta'!W20 -> 364275503.2 | E16: 0.004339258706 | F16: =+'Formulario 2- Planta'!AG20 -> 91432060.46 | G16: 0.004692898598 | H16: =+'Formulario 2- Planta'!AR20 -> 136708052.3 | I16: 0.004337125916 | J16: 592415616 | L16: 1 | S16: =+SUM(K16:R16) -> 1 | T16: TRUE
A17: =+'Formulario 2- Planta'!A21 -> DIRECTOR DE SUPERTENDENCIA | B17: =+'Formulario 2- Planta'!B21 -> 19 | C17: =+'Formulario 2- Planta'!C21 -> 18 | D17: =+'Formulario 2- Planta'!W21 -> 4840045686 | E17: 0.003203041257 | F17: =+'Formulario 2- Planta'!AG21 -> 1048812077 | G17: 0.002990665479 | H17: =+'Formulario 2- Planta'!AR21 -> 1816673329 | I17: 0.003201933221 | J17: 7705531092 | N17: 2 | O17: 3 | P17: 5 | Q17: 4 | R17: 2 | S17: 16 | T17: FALSE
A18: =+'Formulario 2- Planta'!A22 -> DIRECTOR ADMINISTRATIVO, FINANCIERO, TECNICO | B18: =+'Formulario 2- Planta'!B22 -> 19 | C18: =+'Formulario 2- Planta'!C22 -> 3 | D18: =+'Formulario 2- Planta'!W22 -> 806674281 | E18: 0.003203041257 | F18: =+'Formulario 2- Planta'!AG22 -> 181797254.7 | G18: 0.003110346185 | H18: =+'Formulario 2- Planta'!AR22 -> 302778888.2 | I18: 0.003201933221 | J18: 1291250424 | L18: 2 | S18: 2 | T18: FALSE
A19: =+'Formulario 2- Planta'!A23 -> JEFE OFICINA | B19: =+'Formulario 2- Planta'!B23 -> 19 | C19: =+'Formulario 2- Planta'!C23 -> 2 | D19: =+'Formulario 2- Planta'!W23 -> 537782854 | E19: 0.003203041257 | F19: =+'Formulario 2- Planta'!AG23 -> 114202927.9 | G19: 0.002930825125 | H19: =+'Formulario 2- Planta'!AR23 -> 201852592.1 | I19: 0.003201933221 | J19: 853838374 | K19: 2 | S19: 2 | T19: TRUE
A20: =+'Formulario 2- Planta'!A24 -> INTENDENTE | B20: =+'Formulario 2- Planta'!B24 -> 20 | C20: =+'Formulario 2- Planta'!C24 -> 6 | D20: =+'Formulario 2- Planta'!W24 -> 1774087437 | E20: 0.003522162158 | F20: =+'Formulario 2- Planta'!AG24 -> 399582929.7 | G20: 0.003418206847 | H20: =+'Formulario 2- Planta'!AR24 -> 665856302.8 | I20: 0.003520766308 | J20: 2839526669 | K20: 6 | S20: 6 | T20: TRUE
A21: =+'Formulario 2- Planta'!A25 -> 0 | B21: =+'Formulario 2- Planta'!B25 -> 0 | C21: =+'Formulario 2- Planta'!C25 -> 0 | D21: =+'Formulario 2- Planta'!W25 -> 0 | E21: 0 | F21: =+'Formulario 2- Planta'!AG25 -> 0 | G21: 0 | H21: =+'Formulario 2- Planta'!AR25 -> 0 | I21: 0 | J21: 0 | S21: 0 | T21: TRUE
A22: NIVEL ASESOR | B22: =+'Formulario 2- Planta'!B26 -> 82 | C22: =+'Formulario 2- Planta'!C26 -> 32 | D22: =+'Formulario 2- Planta'!W26 -> 8556194389 | E22: 0.003185049903 | F22: =+'Formulario 2- Planta'!AG26 -> 1864717964 | G22: 0.002990927183 | H22: =+'Formulario 2- Planta'!AR26 -> 3211351388 | I22: 0.003183800053 | J22: 1.363226374e+10 | K22: =+SUM(K23:K40) -> 27 | L22: =+SUM(L23:L40) -> 0 | M22: =+SUM(M23:M40) -> 2 | N22: 0 | O22: 0 | P22: 0 | Q22: 0 | R22: 0 | S22: 29 | T22: FALSE
A23: =+'Formulario 2- Planta'!A27 -> ASESOR | B23: =+'Formulario 2- Planta'!B27 -> 16 | C23: =+'Formulario 2- Planta'!C27 -> 1 | D23: =+'Formulario 2- Planta'!W27 -> 329303309.6 | E23: 0.003922669081 | F23: =+'Formulario 2- Planta'!AG27 -> 82692049.86 | G23: 0.004244303397 | H23: =+'Formulario 2- Planta'!AR27 -> 123588813.2 | I23: 0.003920912013 | J23: 535584172.7 | K23: 1 | S23: 1 | T23: TRUE
A24: =+'Formulario 2- Planta'!A28 -> ASESOR | B24: =+'Formulario 2- Planta'!B28 -> 15 | C24: =+'Formulario 2- Planta'!C28 -> 6 | D24: =+'Formulario 2- Planta'!W28 -> 1798148844 | E24: 0.00356993217 | F24: =+'Formulario 2- Planta'!AG28 -> 428360052.9 | G24: 0.003664378923 | H24: =+'Formulario 2- Planta'!AR28 -> 674882541.1 | I24: 0.003568493235 | J24: 2901391438 | K24: 6 | S24: =+SUM(K24:R24) -> 6 | T24: =+S24=C24 -> TRUE
A25: =+'Formulario 2- Planta'!A29 -> JEFE DE OFIC. ASESORA DE JP.C | B25: =+'Formulario 2- Planta'!B29 -> 13 | C25: =+'Formulario 2- Planta'!C29 -> 2 | D25: =+'Formulario 2- Planta'!W29 -> 556396836.1 | E25: 0.003313906362 | F25: =+'Formulario 2- Planta'!AG29 -> 118128318.4 | G25: 0.003031563638 | H25: =+'Formulario 2- Planta'!AR29 -> 208835319.2 | I25: 0.003312698337 | J25: 883360473.7 | M25: 2 | S25: 2 | T25: TRUE
A26: =+'Formulario 2- Planta'!A30 -> ASESOR | B26: =+'Formulario 2- Planta'!B30 -> 14 | C26: =+'Formulario 2- Planta'!C30 -> 3 | D26: =+'Formulario 2- Planta'!W30 -> 880953093.6 | E26: 0.003497978268 | F26: =+'Formulario 2- Planta'!AG30 -> 198427812.4 | G26: 0.003394876289 | H26: =+'Formulario 2- Planta'!AR30 -> 330643354.4 | I26: 0.003496604229 | J26: 1410024260 | K26: 3 | S26: 3 | T26: TRUE
A27: =+'Formulario 2- Planta'!A31 -> ASESOR | B27: =+'Formulario 2- Planta'!B31 -> 13 | C27: =+'Formulario 2- Planta'!C31 -> 3 | D27: =+'Formulario 2- Planta'!W31 -> 834595254.2 | E27: 0.003313906362 | F27: =+'Formulario 2- Planta'!AG31 -> 166336370.6 | G27: 0.00284582788 | H27: =+'Formulario 2- Planta'!AR31 -> 313252978.8 | I27: 0.003312698337 | J27: 1314184604 | K27: 3 | S27: 3 | T27: TRUE
A28: =+'Formulario 2- Planta'!A32 -> ASESOR | B28: =+'Formulario 2- Planta'!B32 -> 11 | C28: =+'Formulario 2- Planta'!C32 -> 17 | D28: =+'Formulario 2- Planta'!W32 -> 4156797051 | E28: 0.002912698128 | F28: =+'Formulario 2- Planta'!AG32 -> 870773360.2 | G28: 0.002629050184 | H28: =+'Formulario 2- Planta'!AR32 -> 1560148382 | I28: 0.002911554464 | J28: 6587718793 | K28: 14 | S28: 14 | T28: FALSE
A29: =+'Formulario 2- Planta'!A33 -> 0 | B29: =+'Formulario 2- Planta'!B33 -> 0 | C29: =+'Formulario 2- Planta'!C33 -> 0 | D29: =+'Formulario 2- Planta'!W33 -> 0 | E29: 0 | F29: =+'Formulario 2- Planta'!AG33 -> 0 | G29: 0 | H29: =+'Formulario 2- Planta'!AR33 -> 0 | I29: 0 | J29: 0 | S29: 0 | T29: TRUE
A30: =+'Formulario 2- Planta'!A34 -> 0 | B30: =+'Formulario 2- Planta'!B34 -> 0 | C30: =+'Formulario 2- Planta'!C34 -> 0 | D30: =+'Formulario 2- Planta'!W34 -> 0 | E30: 0 | F30: =+'Formulario 2- Planta'!AG34 -> 0 | G30: 0 | H30: =+'Formulario 2- Planta'!AR34 -> 0 | I30: 0 | J30: 0 | S30: 0 | T30: TRUE
A31: =+'Formulario 2- Planta'!A35 -> 0 | B31: =+'Formulario 2- Planta'!B35 -> 0 | C31: =+'Formulario 2- Planta'!C35 -> 0 | D31: =+'Formulario 2- Planta'!W35 -> 0 | E31: 0 | F31: =+'Formulario 2- Planta'!AG35 -> 0 | G31: 0 | H31: =+'Formulario 2- Planta'!AR35 -> 0 | I31: 0 | J31: 0 | S31: 0 | T31: TRUE
A32: =+'Formulario 2- Planta'!A36 -> 0 | B32: =+'Formulario 2- Planta'!B36 -> 0 | C32: =+'Formulario 2- Planta'!C36 -> 0 | D32: =+'Formulario 2- Planta'!W36 -> 0 | E32: 0 | F32: =+'Formulario 2- Planta'!AG36 -> 0 | G32: 0 | H32: =+'Formulario 2- Planta'!AR36 -> 0 | I32: 0 | J32: 0 | S32: 0 | T32: TRUE
A33: =+'Formulario 2- Planta'!A37 -> 0 | B33: =+'Formulario 2- Planta'!B37 -> 0 | C33: =+'Formulario 2- Planta'!C37 -> 0 | D33: =+'Formulario 2- Planta'!W37 -> 0 | E33: 0 | F33: =+'Formulario 2- Planta'!AG37 -> 0 | G33: 0 | H33: =+'Formulario 2- Planta'!AR37 -> 0 | I33: 0 | J33: 0 | S33: 0 | T33: TRUE
A34: =+'Formulario 2- Planta'!A38 -> 0 | B34: =+'Formulario 2- Planta'!B38 -> 0 | C34: =+'Formulario 2- Planta'!C38 -> 0 | D34: =+'Formulario 2- Planta'!W38 -> 0 | E34: 0 | F34: =+'Formulario 2- Planta'!AG38 -> 0 | G34: 0 | H34: =+'Formulario 2- Planta'!AR38 -> 0 | I34: 0 | J34: 0 | S34: 0 | T34: TRUE
A35: =+'Formulario 2- Planta'!A39 -> 0 | B35: =+'Formulario 2- Planta'!B39 -> 0 | C35: =+'Formulario 2- Planta'!C39 -> 0 | D35: =+'Formulario 2- Planta'!W39 -> 0 | E35: 0 | F35: =+'Formulario 2- Planta'!AG39 -> 0 | G35: 0 | H35: =+'Formulario 2- Planta'!AR39 -> 0 | I35: 0 | J35: 0 | S35: 0 | T35: TRUE
A36: =+'Formulario 2- Planta'!A40 -> 0 | B36: =+'Formulario 2- Planta'!B40 -> 0 | C36: =+'Formulario 2- Planta'!C40 -> 0 | D36: =+'Formulario 2- Planta'!W40 -> 0 | E36: 0 | F36: =+'Formulario 2- Planta'!AG40 -> 0 | G36: 0 | H36: =+'Formulario 2- Planta'!AR40 -> 0 | I36: 0 | J36: 0 | S36: 0 | T36: TRUE
A37: =+'Formulario 2- Planta'!A41 -> 0 | B37: =+'Formulario 2- Planta'!B41 -> 0 | C37: =+'Formulario 2- Planta'!C41 -> 0 | D37: =+'Formulario 2- Planta'!W41 -> 0 | E37: 0 | F37: =+'Formulario 2- Planta'!AG41 -> 0 | G37: 0 | H37: =+'Formulario 2- Planta'!AR41 -> 0 | I37: 0 | J37: 0 | S37: 0 | T37: TRUE
A38: =+'Formulario 2- Planta'!A42 -> 0 | B38: =+'Formulario 2- Planta'!B42 -> 0 | C38: =+'Formulario 2- Planta'!C42 -> 0 | D38: =+'Formulario 2- Planta'!W42 -> 0 | E38: 0 | F38: =+'Formulario 2- Planta'!AG42 -> 0 | G38: 0 | H38: =+'Formulario 2- Planta'!AR42 -> 0 | I38: 0 | J38: 0 | S38: 0 | T38: TRUE
A39: =+'Formulario 2- Planta'!A43 -> 0 | B39: =+'Formulario 2- Planta'!B43 -> 0 | C39: =+'Formulario 2- Planta'!C43 -> 0 | D39: =+'Formulario 2- Planta'!W43 -> 0 | E39: 0 | F39: =+'Formulario 2- Planta'!AG43 -> 0 | G39: 0 | H39: =+'Formulario 2- Planta'!AR43 -> 0 | I39: 0 | J39: 0 | S39: 0 | T39: TRUE
A40: =+'Formulario 2- Planta'!A44 -> 0 | B40: =+'Formulario 2- Planta'!B44 -> 0 | C40: =+'Formulario 2- Planta'!C44 -> 0 | D40: =+'Formulario 2- Planta'!W44 -> 0 | E40: 0 | F40: =+'Formulario 2- Planta'!AG44 -> 0 | G40: 0 | H40: =+'Formulario 2- Planta'!AR44 -> 0 | I40: 0 | J40: 0 | S40: 0 | T40: TRUE
A41: NIVEL EJECUTIVO | B41: =+'Formulario 2- Planta'!B45 -> 0 | C41: =+'Formulario 2- Planta'!C45 -> 0 | D41: =+'Formulario 2- Planta'!W45 -> 0 | E41: 0 | F41: =+'Formulario 2- Planta'!AG45 -> 0 | G41: 0 | H41: =+'Formulario 2- Planta'!AR45 -> 0 | I41: 0 | J41: 0 | K41: =+SUM(K42:K48) -> 0 | S41: 0 | T41: TRUE
A42: =+'Formulario 2- Planta'!A46 -> 0 | B42: =+'Formulario 2- Planta'!B46 -> 0 | C42: =+'Formulario 2- Planta'!C46 -> 0 | D42: =+'Formulario 2- Planta'!W46 -> 0 | E42: 0 | F42: =+'Formulario 2- Planta'!AG46 -> 0 | G42: 0 | H42: =+'Formulario 2- Planta'!AR46 -> 0 | I42: 0 | J42: 0 | S42: =+SUM(K42:R42) -> 0 | T42: TRUE
A43: =+'Formulario 2- Planta'!A47 -> 0 | B43: =+'Formulario 2- Planta'!B47 -> 0 | C43: =+'Formulario 2- Planta'!C47 -> 0 | D43: =+'Formulario 2- Planta'!W47 -> 0 | E43: 0 | F43: =+'Formulario 2- Planta'!AG47 -> 0 | G43: 0 | H43: =+'Formulario 2- Planta'!AR47 -> 0 | I43: 0 | J43: 0 | S43: 0 | T43: TRUE
A44: =+'Formulario 2- Planta'!A48 -> 0 | B44: =+'Formulario 2- Planta'!B48 -> 0 | C44: =+'Formulario 2- Planta'!C48 -> 0 | D44: =+'Formulario 2- Planta'!W48 -> 0 | E44: 0 | F44: =+'Formulario 2- Planta'!AG48 -> 0 | G44: 0 | H44: =+'Formulario 2- Planta'!AR48 -> 0 | I44: 0 | J44: 0 | S44: 0 | T44: TRUE
A45: =+'Formulario 2- Planta'!A49 -> 0 | B45: =+'Formulario 2- Planta'!B49 -> 0 | C45: =+'Formulario 2- Planta'!C49 -> 0 | D45: =+'Formulario 2- Planta'!W49 -> 0 | E45: 0 | F45: =+'Formulario 2- Planta'!AG49 -> 0 | G45: 0 | H45: =+'Formulario 2- Planta'!AR49 -> 0 | I45: 0 | J45: 0 | S45: =+SUM(K45:R45) -> 0 | T45: TRUE
A46: =+'Formulario 2- Planta'!A50 -> 0 | B46: =+'Formulario 2- Planta'!B50 -> 0 | C46: =+'Formulario 2- Planta'!C50 -> 0 | D46: =+'Formulario 2- Planta'!W50 -> 0 | E46: 0 | F46: =+'Formulario 2- Planta'!AG50 -> 0 | G46: 0 | H46: =+'Formulario 2- Planta'!AR50 -> 0 | I46: 0 | J46: 0 | S46: 0 | T46: TRUE
A47: =+'Formulario 2- Planta'!A51 -> 0 | B47: =+'Formulario 2- Planta'!B51 -> 0 | C47: =+'Formulario 2- Planta'!C51 -> 0 | D47: =+'Formulario 2- Planta'!W51 -> 0 | E47: 0 | F47: =+'Formulario 2- Planta'!AG51 -> 0 | G47: 0 | H47: =+'Formulario 2- Planta'!AR51 -> 0 | I47: 0 | J47: 0 | S47: 0 | T47: TRUE
A48: =+'Formulario 2- Planta'!A52 -> 0 | B48: =+'Formulario 2- Planta'!B52 -> 0 | C48: =+'Formulario 2- Planta'!C52 -> 0 | D48: =+'Formulario 2- Planta'!W52 -> 0 | E48: 0 | F48: =+'Formulario 2- Planta'!AG52 -> 0 | G48: 0 | H48: =+'Formulario 2- Planta'!AR52 -> 0 | I48: 0 | J48: 0 | S48: 0 | T48: TRUE
A49: NIVEL PROFESIONAL | B49: =+'Formulario 2- Planta'!B53 -> 87 | C49: =+'Formulario 2- Planta'!C53 -> 468 | D49: =+'Formulario 2- Planta'!W53 -> 5.178439112e+10 | E49: 0.001318070372 | F49: =+'Formulario 2- Planta'!AG53 -> 1.194508152e+10 | G49: 0.001310044138 | H49: =+'Formulario 2- Planta'!AR53 -> 1.945232596e+10 | I49: 0.001318662392 | J49: 8.31817986e+10 | K49: =+SUM(K50:K73) -> 90 | L49: =+SUM(L50:L73) -> 78 | M49: =+SUM(M50:M73) -> 28 | N49: 39 | O49: 87 | P49: 66 | Q49: 17 | R49: 25 | S49: 430 | T49: FALSE
A50: =+'Formulario 2- Planta'!A54 -> PROFESIONAL ESPECIALIZADO | B50: =+'Formulario 2- Planta'!B54 -> 20 | C50: =+'Formulario 2- Planta'!C54 -> 31 | D50: =+'Formulario 2- Planta'!W54 -> 6548191306 | E50: 0.002516200485 | F50: =+'Formulario 2- Planta'!AG54 -> 1671797556 | G50: 0.002767990884 | H50: =+'Formulario 2- Planta'!AR54 -> 2458185570 | I50: 0.002515711911 | J50: 1.067817443e+10 | K50: 1 | L50: 7 | M50: 2 | N50: 1 | O50: 9 | P50: 4 | Q50: 2 | R50: 2 | S50: 28 | T50: FALSE
A51: =+'Formulario 2- Planta'!A55 -> PROFESIONAL ESPECIALIZADO | B51: =+'Formulario 2- Planta'!B55 -> 18 | C51: =+'Formulario 2- Planta'!C55 -> 14 | D51: =+'Formulario 2- Planta'!W55 -> 2554025762 | E51: 0.002173115526 | F51: =+'Formulario 2- Planta'!AG55 -> 712148436.4 | G51: 0.002610869427 | H51: =+'Formulario 2- Planta'!AR55 -> 958886296 | I51: 0.00217293638 | J51: 4225060494 | K51: 3 | L51: 2 | M51: 2 | O51: 3 | P51: 2 | R51: 1 | S51: =+SUM(K51:R51) -> 13 | T51: =+S51=C51 -> FALSE
A52: =+'Formulario 2- Planta'!A56 -> PROFESIONAL ESPECIALIZADO | B52: =+'Formulario 2- Planta'!B56 -> 16 | C52: =+'Formulario 2- Planta'!C56 -> 38 | D52: =+'Formulario 2- Planta'!W56 -> 6120083539 | E52: 0.001918489075 | F52: =+'Formulario 2- Planta'!AG56 -> 1418810882 | G52: 0.001916388595 | H52: =+'Formulario 2- Planta'!AR56 -> 2297980951 | I52: 0.001918539577 | J52: 9836875372 | K52: 7 | L52: 6 | M52: 5 | N52: 3 | O52: 8 | P52: 3 | Q52: 2 | R52: 1 | S52: 35 | T52: FALSE
A53: =+'Formulario 2- Planta'!A57 -> PROFESIONAL ESPECIALIZADO | B53: =+'Formulario 2- Planta'!B57 -> 14 | C53: =+'Formulario 2- Planta'!C57 -> 37 | D53: =+'Formulario 2- Planta'!W57 -> 4999462382 | E53: 0.001609559952 | F53: =+'Formulario 2- Planta'!AG57 -> 1179689527 | G53: 0.001636472318 | H53: =+'Formulario 2- Planta'!AR57 -> 1877542355 | I53: 0.001609889077 | J53: 8056694264 | K53: =3+6 -> 9 | L53: 1 | N53: 7 | O53: 3 | P53: 4 | Q53: 1 | R53: 5 | S53: 30 | T53: FALSE
A54: =+'Formulario 2- Planta'!A58 -> PROFESIONAL UNIVERSITARIO | B54: =+'Formulario 2- Planta'!B58 -> 11 | C54: =+'Formulario 2- Planta'!C58 -> 108 | D54: =+'Formulario 2- Planta'!W58 -> 1.186403122e+10 | E54: 0.00130856139 | F54: =+'Formulario 2- Planta'!AG58 -> 2668191717 | G54: 0.001268048718 | H54: =+'Formulario 2- Planta'!AR58 -> 4456656963 | I54: 0.001309161986 | J54: 1.89888799e+10 | K54: 16 | L54: 18 | M54: 3 | N54: 10 | O54: 26 | P54: 21 | Q54: 2 | R54: 5 | S54: 101 | T54: FALSE
A55: =+'Formulario 2- Planta'!A59 -> PROFESIONAL UNIVERSITARIO | B55: =+'Formulario 2- Planta'!B59 -> 7 | C55: =+'Formulario 2- Planta'!C59 -> 140 | D55: =+'Formulario 2- Planta'!W59 -> 1.303495844e+10 | E55: 0.001109091027 | F55: =+'Formulario 2- Planta'!AG59 -> 2904630850 | G55: 0.001064892022 | H55: =+'Formulario 2- Planta'!AR59 -> 4897707112 | I55: 0.001109871526 | J55: 2.08372964e+10 | K55: 35 | L55: 23 | M55: 9 | N55: 12 | O55: 19 | P55: 16 | Q55: 7 | R55: 6 | S55: 127 | T55: FALSE
A56: =+'Formulario 2- Planta'!A60 -> PROFESIONAL UNIVERSITARIO | B56: =+'Formulario 2- Planta'!B60 -> 1 | C56: =+'Formulario 2- Planta'!C60 -> 100 | D56: =+'Formulario 2- Planta'!W60 -> 6663638472 | E56: 0.0007937742451 | F56: =+'Formulario 2- Planta'!AG60 -> 1389812552 | G56: 0.0007133438035 | H56: =+'Formulario 2- Planta'!AR60 -> 2505366714 | I56: 0.0007948391277 | J56: 1.055881774e+10 | K56: 19 | L56: 21 | M56: 7 | N56: 6 | O56: 19 | P56: 16 | Q56: 3 | R56: 5 | S56: 96 | T56: FALSE
A57: =+'Formulario 2- Planta'!A61 -> 0 | B57: =+'Formulario 2- Planta'!B61 -> 0 | C57: =+'Formulario 2- Planta'!C61 -> 0 | D57: =+'Formulario 2- Planta'!W61 -> 0 | E57: 0 | F57: =+'Formulario 2- Planta'!AG61 -> 0 | G57: 0 | H57: =+'Formulario 2- Planta'!AR61 -> 0 | I57: 0 | J57: 0 | S57: 0 | T57: TRUE
A58: =+'Formulario 2- Planta'!A62 -> 0 | B58: =+'Formulario 2- Planta'!B62 -> 0 | C58: =+'Formulario 2- Planta'!C62 -> 0 | D58: =+'Formulario 2- Planta'!W62 -> 0 | E58: 0 | F58: =+'Formulario 2- Planta'!AG62 -> 0 | G58: 0 | H58: =+'Formulario 2- Planta'!AR62 -> 0 | I58: 0 | J58: 0 | S58: 0 | T58: TRUE
A59: =+'Formulario 2- Planta'!A63 -> 0 | B59: =+'Formulario 2- Planta'!B63 -> 0 | C59: =+'Formulario 2- Planta'!C63 -> 0 | D59: =+'Formulario 2- Planta'!W63 -> 0 | E59: 0 | F59: =+'Formulario 2- Planta'!AG63 -> 0 | G59: 0 | H59: =+'Formulario 2- Planta'!AR63 -> 0 | I59: 0 | J59: 0 | S59: 0 | T59: TRUE
A60: =+'Formulario 2- Planta'!A64 -> 0 | B60: =+'Formulario 2- Planta'!B64 -> 0 | C60: =+'Formulario 2- Planta'!C64 -> 0 | D60: =+'Formulario 2- Planta'!W64 -> 0 | E60: 0 | F60: =+'Formulario 2- Planta'!AG64 -> 0 | G60: 0 | H60: =+'Formulario 2- Planta'!AR64 -> 0 | I60: 0 | J60: 0 | S60: 0 | T60: TRUE
A61: =+'Formulario 2- Planta'!A65 -> 0 | B61: =+'Formulario 2- Planta'!B65 -> 0 | C61: =+'Formulario 2- Planta'!C65 -> 0 | D61: =+'Formulario 2- Planta'!W65 -> 0 | E61: 0 | F61: =+'Formulario 2- Planta'!AG65 -> 0 | G61: 0 | H61: =+'Formulario 2- Planta'!AR65 -> 0 | I61: 0 | J61: 0 | S61: 0 | T61: TRUE
A62: =+'Formulario 2- Planta'!A66 -> 0 | B62: =+'Formulario 2- Planta'!B66 -> 0 | C62: =+'Formulario 2- Planta'!C66 -> 0 | D62: =+'Formulario 2- Planta'!W66 -> 0 | E62: 0 | F62: =+'Formulario 2- Planta'!AG66 -> 0 | G62: 0 | H62: =+'Formulario 2- Planta'!AR66 -> 0 | I62: 0 | J62: 0 | S62: 0 | T62: TRUE
A63: =+'Formulario 2- Planta'!A67 -> 0 | B63: =+'Formulario 2- Planta'!B67 -> 0 | C63: =+'Formulario 2- Planta'!C67 -> 0 | D63: =+'Formulario 2- Planta'!W67 -> 0 | E63: 0 | F63: =+'Formulario 2- Planta'!AG67 -> 0 | G63: 0 | H63: =+'Formulario 2- Planta'!AR67 -> 0 | I63: 0 | J63: 0 | S63: 0 | T63: TRUE
A64: =+'Formulario 2- Planta'!A68 -> 0 | B64: =+'Formulario 2- Planta'!B68 -> 0 | C64: =+'Formulario 2- Planta'!C68 -> 0 | D64: =+'Formulario 2- Planta'!W68 -> 0 | E64: 0 | F64: =+'Formulario 2- Planta'!AG68 -> 0 | G64: 0 | H64: =+'Formulario 2- Planta'!AR68 -> 0 | I64: 0 | J64: 0 | S64: 0 | T64: TRUE
A65: =+'Formulario 2- Planta'!A69 -> 0 | B65: =+'Formulario 2- Planta'!B69 -> 0 | C65: =+'Formulario 2- Planta'!C69 -> 0 | D65: =+'Formulario 2- Planta'!W69 -> 0 | E65: 0 | F65: =+'Formulario 2- Planta'!AG69 -> 0 | G65: 0 | H65: =+'Formulario 2- Planta'!AR69 -> 0 | I65: 0 | J65: 0 | S65: 0 | T65: TRUE
A66: =+'Formulario 2- Planta'!A70 -> 0 | B66: =+'Formulario 2- Planta'!B70 -> 0 | C66: =+'Formulario 2- Planta'!C70 -> 0 | D66: =+'Formulario 2- Planta'!W70 -> 0 | E66: 0 | F66: =+'Formulario 2- Planta'!AG70 -> 0 | G66: 0 | H66: =+'Formulario 2- Planta'!AR70 -> 0 | I66: 0 | J66: 0 | S66: 0 | T66: TRUE
A67: =+'Formulario 2- Planta'!A71 -> 0 | B67: =+'Formulario 2- Planta'!B71 -> 0 | C67: =+'Formulario 2- Planta'!C71 -> 0 | D67: =+'Formulario 2- Planta'!W71 -> 0 | E67: 0 | F67: =+'Formulario 2- Planta'!AG71 -> 0 | G67: 0 | H67: =+'Formulario 2- Planta'!AR71 -> 0 | I67: 0 | J67: 0 | S67: 0 | T67: TRUE
A68: =+'Formulario 2- Planta'!A72 -> 0 | B68: =+'Formulario 2- Planta'!B72 -> 0 | C68: =+'Formulario 2- Planta'!C72 -> 0 | D68: =+'Formulario 2- Planta'!W72 -> 0 | E68: 0 | F68: =+'Formulario 2- Planta'!AG72 -> 0 | G68: 0 | H68: =+'Formulario 2- Planta'!AR72 -> 0 | I68: 0 | J68: 0 | S68: 0 | T68: TRUE
A69: =+'Formulario 2- Planta'!A73 -> 0 | B69: =+'Formulario 2- Planta'!B73 -> 0 | C69: =+'Formulario 2- Planta'!C73 -> 0 | D69: =+'Formulario 2- Planta'!W73 -> 0 | E69: 0 | F69: =+'Formulario 2- Planta'!AG73 -> 0 | G69: 0 | H69: =+'Formulario 2- Planta'!AR73 -> 0 | I69: 0 | J69: 0 | S69: 0 | T69: TRUE
A70: =+'Formulario 2- Planta'!A74 -> 0 | B70: =+'Formulario 2- Planta'!B74 -> 0 | C70: =+'Formulario 2- Planta'!C74 -> 0 | D70: =+'Formulario 2- Planta'!W74 -> 0 | E70: 0 | F70: =+'Formulario 2- Planta'!AG74 -> 0 | G70: 0 | H70: =+'Formulario 2- Planta'!AR74 -> 0 | I70: 0 | J70: 0 | S70: 0 | T70: TRUE
A71: =+'Formulario 2- Planta'!A75 -> 0 | B71: =+'Formulario 2- Planta'!B75 -> 0 | C71: =+'Formulario 2- Planta'!C75 -> 0 | D71: =+'Formulario 2- Planta'!W75 -> 0 | E71: 0 | F71: =+'Formulario 2- Planta'!AG75 -> 0 | G71: 0 | H71: =+'Formulario 2- Planta'!AR75 -> 0 | I71: 0 | J71: 0 | S71: 0 | T71: TRUE
A72: =+'Formulario 2- Planta'!A76 -> 0 | B72: =+'Formulario 2- Planta'!B76 -> 0 | C72: =+'Formulario 2- Planta'!C76 -> 0 | D72: =+'Formulario 2- Planta'!W76 -> 0 | E72: 0 | F72: =+'Formulario 2- Planta'!AG76 -> 0 | G72: 0 | H72: =+'Formulario 2- Planta'!AR76 -> 0 | I72: 0 | J72: 0 | S72: 0 | T72: TRUE
A73: =+'Formulario 2- Planta'!A77 -> 0 | B73: =+'Formulario 2- Planta'!B77 -> 0 | C73: =+'Formulario 2- Planta'!C77 -> 0 | D73: =+'Formulario 2- Planta'!W77 -> 0 | E73: 0 | F73: =+'Formulario 2- Planta'!AG77 -> 0 | G73: 0 | H73: =+'Formulario 2- Planta'!AR77 -> 0 | I73: 0 | J73: 0 | S73: 0 | T73: TRUE
A74: NIVEL TÉCNICO | B74: =+'Formulario 2- Planta'!B78 -> 121 | C74: =+'Formulario 2- Planta'!C78 -> 68 | D74: =+'Formulario 2- Planta'!W78 -> 5461019687 | E74: 0.0009566441193 | F74: =+'Formulario 2- Planta'!AG78 -> 1155625381 | G74: 0.0008722697718 | H74: =+'Formulario 2- Planta'!AR78 -> 2052427999 | I74: 0.0009575621096 | J74: 8669073067 | K74: =+SUM(K75:K81) -> 18 | L74: =+SUM(L75:L81) -> 24 | M74: 0 | N74: 5 | O74: 12 | P74: 2 | Q74: 2 | R74: 1 | S74: 64 | T74: FALSE
A75: =+'Formulario 2- Planta'!A79 -> TECNICO ADMINISTRATIVO | B75: =+'Formulario 2- Planta'!B79 -> 16 | C75: =+'Formulario 2- Planta'!C79 -> 34 | D75: =+'Formulario 2- Planta'!W79 -> 2956811260 | E75: 0.001035929649 | F75: =+'Formulario 2- Planta'!AG79 -> 637027542.3 | G75: 0.0009616608946 | H75: =+'Formulario 2- Planta'!AR79 -> 1111107228 | I75: 0.001036776132 | J75: 4704946030 | K75: =3+5 -> 8 | L75: 11 | N75: 2 | O75: 8 | P75: 1 | Q75: 1 | S75: =+SUM(K75:R75) -> 31 | T75: =+S75=C75 -> FALSE
A76: =+'Formulario 2- Planta'!A80 -> TECNICO OPERATIVO | B76: =+'Formulario 2- Planta'!B80 -> 14 | C76: =+'Formulario 2- Planta'!C80 -> 34 | D76: =+'Formulario 2- Planta'!W80 -> 2504208427 | E76: 0.0008773585896 | F76: =+'Formulario 2- Planta'!AG80 -> 518597838.9 | G76: 0.000782878649 | H76: =+'Formulario 2- Planta'!AR80 -> 941320771.6 | I76: 0.0008783480875 | J76: 3964127037 | K76: =4+6 -> 10 | L76: 13 | N76: 3 | O76: 4 | P76: 1 | Q76: 1 | R76: 1 | S76: 33 | T76: FALSE
A77: =+'Formulario 2- Planta'!A81 -> 0 | B77: =+'Formulario 2- Planta'!B81 -> 0 | C77: =+'Formulario 2- Planta'!C81 -> 0 | D77: =+'Formulario 2- Planta'!W81 -> 0 | E77: 0 | F77: =+'Formulario 2- Planta'!AG81 -> 0 | G77: 0 | H77: =+'Formulario 2- Planta'!AR81 -> 0 | I77: 0 | J77: 0 | S77: 0 | T77: TRUE
A78: =+'Formulario 2- Planta'!A82 -> 0 | B78: =+'Formulario 2- Planta'!B82 -> 0 | C78: =+'Formulario 2- Planta'!C82 -> 0 | D78: =+'Formulario 2- Planta'!W82 -> 0 | E78: 0 | F78: =+'Formulario 2- Planta'!AG82 -> 0 | G78: 0 | H78: =+'Formulario 2- Planta'!AR82 -> 0 | I78: 0 | J78: 0 | S78: 0 | T78: TRUE
A79: =+'Formulario 2- Planta'!A83 -> 0 | B79: =+'Formulario 2- Planta'!B83 -> 0 | C79: =+'Formulario 2- Planta'!C83 -> 0 | D79: =+'Formulario 2- Planta'!W83 -> 0 | E79: =IFERROR((D79/C79)/($D$105),0) -> 0 | F79: =+'Formulario 2- Planta'!AG83 -> 0 | G79: =IFERROR((F79/C79)/$F$105,0) -> 0 | H79: =+'Formulario 2- Planta'!AR83 -> 0 | I79: =IFERROR((H79/C79)/$H$105,0) -> 0 | J79: =D79+F79+H79 -> 0 | S79: 0 | T79: TRUE
A80: =+'Formulario 2- Planta'!A84 -> 0 | B80: =+'Formulario 2- Planta'!B84 -> 0 | C80: =+'Formulario 2- Planta'!C84 -> 0 | D80: =+'Formulario 2- Planta'!W84 -> 0 | E80: 0 | F80: =+'Formulario 2- Planta'!AG84 -> 0 | G80: 0 | H80: =+'Formulario 2- Planta'!AR84 -> 0 | I80: 0 | J80: 0 | S80: 0 | T80: TRUE
A81: =+'Formulario 2- Planta'!A85 -> 0 | B81: =+'Formulario 2- Planta'!B85 -> 0 | C81: =+'Formulario 2- Planta'!C85 -> 0 | D81: =+'Formulario 2- Planta'!W85 -> 0 | E81: 0 | F81: =+'Formulario 2- Planta'!AG85 -> 0 | G81: 0 | H81: =+'Formulario 2- Planta'!AR85 -> 0 | I81: 0 | J81: 0 | S81: 0 | T81: TRUE
A82: NIVEL ASISTENCIAL | B82: =+'Formulario 2- Planta'!B86 -> 91 | C82: =+'Formulario 2- Planta'!C86 -> 143 | D82: =+'Formulario 2- Planta'!W86 -> 7579123795 | E82: 0.0006313476089 | F82: =+'Formulario 2- Planta'!AG86 -> 1591089423 | G82: 0.0005710856069 | H82: =+'Formulario 2- Planta'!AR86 -> 2837867197 | I82: 0.0006295989071 | J82: 1.200808042e+10 | K82: =+SUM(K83:K88) -> 33 | L82: =+SUM(L83:L88) -> 66 | M82: 2 | N82: 6 | O82: 12 | P82: 7 | Q82: 8 | R82: 3 | S82: 137 | T82: FALSE
A83: =+'Formulario 2- Planta'!A87 -> SECRETARIO EJECUTIVO | B83: =+'Formulario 2- Planta'!B87 -> 22 | C83: =+'Formulario 2- Planta'!C87 -> 9 | D83: =+'Formulario 2- Planta'!W87 -> 627445898.8 | E83: 0.0008304612108 | F83: =+'Formulario 2- Planta'!AG87 -> 138606649.6 | G83: 0.000790467866 | H83: =+'Formulario 2- Planta'!AR87 -> 235881116.5 | I83: 0.0008314930055 | J83: 1001933665 | K83: 2 | L83: 5 | P83: 1 | S83: =+SUM(K83:R83) -> 8 | T83: =+S83=C83 -> FALSE
A84: =+'Formulario 2- Planta'!A88 -> SECRETARO EJECUTIVO | B84: =+'Formulario 2- Planta'!B88 -> 18 | C84: =+'Formulario 2- Planta'!C88 -> 25 | D84: =+'Formulario 2- Planta'!W88 -> 1490313519 | E84: 0.000710106044 | F84: =+'Formulario 2- Planta'!AG88 -> 317222879.7 | G84: 0.0006512791245 | H84: =+'Formulario 2- Planta'!AR88 -> 560469710.6 | I84: 0.000711246387 | J84: 2368006109 | K84: =4+3 -> 7 | L84: 9 | N84: 1 | O84: 4 | Q84: 2 | S84: 23 | T84: FALSE
A85: =+'Formulario 2- Planta'!A89 -> SECRETARO EJECUTIVO | B85: =+'Formulario 2- Planta'!B89 -> 15 | C85: =+'Formulario 2- Planta'!C89 -> 32 | D85: =+'Formulario 2- Planta'!W89 -> 1745451369 | E85: 0.0006497456066 | F85: =+'Formulario 2- Planta'!AG89 -> 368015325 | G85: 0.0005902807074 | H85: =+'Formulario 2- Planta'!AR89 -> 656573367.2 | I85: 0.0006509403887 | J85: 2770040061 | K85: 7 | L85: 13 | M85: 1 | N85: 2 | O85: 5 | P85: 1 | R85: 2 | S85: 31 | T85: FALSE
A86: =+'Formulario 2- Planta'!A90 -> CONDUCTOR MECANICO | B86: =+'Formulario 2- Planta'!B90 -> 14 | C86: =+'Formulario 2- Planta'!C90 -> 9 | D86: =+'Formulario 2- Planta'!W90 -> 558776800.1 | E86: 0.0007395736571 | F86: =+'Formulario 2- Planta'!AG90 -> 114290623.2 | G86: 0.000651794595 | H86: =+'Formulario 2- Planta'!AR90 -> 210816986.1 | I86: 0.0007431406632 | J86: 883884409.4 | K86: 1 | L86: 3 | N86: 1 | O86: 1 | P86: 1 | Q86: 1 | R86: 1 | S86: 9 | T86: TRUE
A87: =+'Formulario 2- Planta'!A91 -> AUXILIAR ADMINISTRATIVO | B87: =+'Formulario 2- Planta'!B91 -> 14 | C87: =+'Formulario 2- Planta'!C91 -> 37 | D87: =+'Formulario 2- Planta'!W91 -> 1957390668 | E87: 0.0006301752844 | F87: =+'Formulario 2- Planta'!AG91 -> 400636557.4 | G87: 0.0005557654115 | H87: =+'Formulario 2- Planta'!AR91 -> 736359540.4 | I87: 0.000631387717 | J87: 3094386766 | K87: 8 | L87: 15 | M87: 1 | N87: 2 | O87: 2 | P87: 4 | Q87: 3 | S87: 35 | T87: FALSE
A88: =+'Formulario 2- Planta'!A92 -> AUXILIAR SERVICIOS GENERALES | B88: =+'Formulario 2- Planta'!B92 -> 8 | C88: =+'Formulario 2- Planta'!C92 -> 31 | D88: =+'Formulario 2- Planta'!W92 -> 1199745540 | E88: 0.0004610128461 | F88: =+'Formulario 2- Planta'!AG92 -> 252317388.6 | G88: 0.0004177612469 | H88: =+'Formulario 2- Planta'!AR92 -> 437766476.4 | I88: 0.0004480110665 | J88: 1889829405 | K88: 8 | L88: 21 | Q88: 2 | S88: 31 | T88: TRUE
A89: TOTAL PLANTA DE PERSONAL | B89: =B82+B74+B49+B41+B22+B13 -> 529 | C89: =C82+C74+C49+C41+C22+C13 -> 747 | D89: =+D13+D22+D41+D49+D74+D82 -> 8.394878662e+10 | E89: =IFERROR((D89/C89)/($D$105),0) -> 0.001338688086 | F89: =+F13+F22+F41+F49+F74+F82 -> 1.948306757e+10 | G89: =IFERROR((F89/C89)/$F$105,0) -> 0.001338688086 | H89: =+H13+H22+H41+H49+H74+H82 -> 3.152042504e+10 | I89: =IFERROR((H89/C89)/$H$105,0) -> 0.001338688086 | J89: 1.349522792e+11 | K89: =+K13+K22+K41+K49+K74+K82 -> 177 | L89: =+L13+L22+L41+L49+L74+L82 -> 171 | M89: 32 | N89: 53 | O89: 115 | P89: 81 | Q89: 32 | R89: 32 | S89: =+SUM(K89:R89) -> 693 | T89: =+S89=C89 -> FALSE
A90: TRABAJADORES OFICIALES | E90: 0 | G90: 0 | I90: 0 | K90: 0
A91: =+'Formulario 2A - Nómina'!B51 -> 0 | E91: 0 | G91: 0 | I91: 0
A92: =+'Formulario 2A - Nómina'!B52 -> 0 | E92: 0 | G92: 0 | I92: 0
A93: =+'Formulario 2A - Nómina'!B53 -> 0 | E93: 0 | G93: 0 | I93: 0
A94: =+'Formulario 2A - Nómina'!B54 -> 0 | E94: 0 | G94: 0 | I94: 0
A95: =+'Formulario 2A - Nómina'!B55 -> 0 | E95: 0 | G95: 0 | I95: 0
A96: =+'Formulario 2A - Nómina'!B56 -> 0 | E96: 0 | G96: 0 | I96: 0
A97: =+'Formulario 2A - Nómina'!B57 -> 0 | E97: 0 | G97: 0 | I97: 0
A98: =+'Formulario 2A - Nómina'!B58 -> 0 | E98: 0 | G98: 0 | I98: 0
A99: =+'Formulario 2A - Nómina'!B59 -> 0 | E99: 0 | G99: 0 | I99: 0
A100: =+'Formulario 2A - Nómina'!B60 -> 0 | E100: 0 | G100: 0 | I100: 0
A101: =+'Formulario 2A - Nómina'!B61 -> 0 | E101: 0 | G101: 0 | I101: 0
A102: =+'Formulario 2A - Nómina'!B62 -> 0 | E102: 0 | G102: 0 | I102: 0
A103: =+'Formulario 2A - Nómina'!B63 -> 0 | E103: 0 | G103: 0 | I103: 0
A104: TOTAL TRABAJADORES OFICIALES | C104: =SUM(C91:C103) -> 0 | D104: =SUM(D91:D103) -> 0 | E104: 0 | F104: =SUM(F91:F103) -> 0 | G104: 0 | H104: =SUM(H91:H103) -> 0 | I104: 0 | J104: =D104+F104+H104 -> 0
A105: TOTAL PLANTA DE PERSONAL | C105: =+C89+C104 -> 747 | D105: =+D89+D104 -> 8.394878662e+10 | E105: 0.001338688086 | F105: =+F89+F104 -> 1.948306757e+10 | G105: 0.001338688086 | H105: =+H89+H104 -> 3.152042504e+10 | I105: 0.001338688086 | J105: =+J89+J104 -> 1.349522792e+11 | K105: 177 | L105: 171 | M105: 32 | N105: 53 | O105: 115 | P105: 81 | Q105: 32 | R105: 32 | S105: =+SUM(K105:R105) -> 693 | T105: =+S105=C105 -> FALSE
A108: % Partipicación dependencias | K108: =+K109/$S$109 -> 0.2910717106 | L108: 0.1887874436 | M108: 0.05029681272 | N108: 0.07661431091 | O108: 0.167045075 | P108: 0.1215362995 | Q108: 0.05184088628 | R108: 0.05280746149 | S108: =SUM(K108:R108) -> 1
A109: COSTO DE PLANTA POR DEPENDENCIA | K109: =K110+K111+K112 -> 3.614901748e+10 | L109: =L110+L111+L112 -> 2.34460456e+10 | M109: 6246503168 | N109: 9514947567 | O109: 2.074579946e+10 | P109: 1.509393615e+10 | Q109: 6438266023 | R109: 6558307727 | S109: =+SUM(K109:R109) -> 1.241928232e+11 | T109: =+J105=S109 -> FALSE
A110: SALARIO | K110: =($E14*$D$105*K14)+($E15*$D$105*K15)+($E16*$D$105*K16)+($E17*$D$105*K17)+($E18*$D$105*K18)+($E19*$D$105*K19)+($E20*$D$105*K20)+($E21*$D$105*K21)+($E23*$D$105*K23)+($E24*$D$105*K24)+($E25*$D$105*K25)+($E26*$D$105*K26)+($E27*$D$105*K27)+($E28*$D$105*K28)+($E29*$D$105*K29)+($E30*$D$105*K30)+($E31*$D$105*K31)+($E32*$D$105*K32)+($E33*$D$105*K33)+($E34*$D$105*K34)+($E35*$D$105*K35)+($E36*$D$105*K36)+($E37*$D$105*K37)+($E38*$D$105*K38)+($E39*$D$105*K39)+($E40*$D$105*K40)+($E42*$D$105*K42)+($E43*$D$105*K43)+($E44*$D$105*K44)+($E45*$D$105*K45)+($E46*$D$105*K46)+($E47*$D$105*K47)+($E48*$D$105*K48)+($E50*$D$105*K50)+($E51*$D$105*K51)+($E52*$D$105*K52)+($E53*$D$105*K53)+($E54*$D$105*K54)+($E55*$D$105*K55)+($E56*$D$105*K56)+($E57*$D$105*K57)+($E58*$D$105*K58)+($E59*$D$105*K59)+($E60*$D$105*K60)+($E61*$D$105*K61)+($E62*$D$105*K62)+($E63*$D$105*K63)+($E64*$D$105*K64)+($E65*$D$105*K65)+($E66*$D$105*K66)+($E67*$D$105*K67)+($E68*$D$105*K68)+($E69*$D$105*K69)+($E70*$D$105*K70)+($E71*$D$105*K71)+($E72*$D$105*K72)+($E73*$D$105*K73)+($E75*$D$105*K75)+($E76*$D$105*K76)+($E77*$D$105*K77)+($E78*$D$105*K78)+($E79*$D$105*K79)+($E80*$D$105*K80)+($E81*$D$105*K81)+($E83*$D$105*K83)+($E84*$D$105*K84)+($E85*$D$105*K85)+($E86*$D$105*K86)+($E87*$D$105*K87)+($E88*$D$105*K88)+($E91*$D$105*K91)+($E92*$D$105*K92)+($E93*$D$105*K93)+($E94*$D$105*K94)+($E95*$D$105*K95)+($E96*$D$105*K96)+($E97*$D$105*K97)+($E98*$D$105*K98)+($E99*$D$105*K99)+($E100*$D$105*K100)+($E101*$D$105*K101)+($E102*$D$105*K102)+($E103*$D$105*K103) -> 2.255209496e+10 | L110: 1.466596963e+10 | M110: 3890416300 | N110: 5889405034 | O110: 1.287380752e+10 | P110: 9363530838 | Q110: 3968936698 | R110: 4029524494 | S110: =+SUM(K110:R110) -> 7.723368547e+10 | T110: =+D105=S110 -> FALSE
A111: REMUNERACIONES NO CONSTITUTIVAS DE FACTOR SALARIAL | K111: =($G14*$F$105*K14)+($G15*$F$105*K15)+($G16*$F$105*K16)+($G17*$F$105*K17)+($G18*$F$105*K18)+($G19*$F$105*K19)+($G20*$F$105*K20)+($G21*$F$105*K21)+($G23*$F$105*K23)+($G24*$F$105*K24)+($G25*$F$105*K25)+($G26*$F$105*K26)+($G27*$F$105*K27)+($G28*$F$105*K28)+($G29*$F$105*K29)+($G30*$F$105*K30)+($G31*$F$105*K31)+($G32*$F$105*K32)+($G33*$F$105*K33)+($G34*$F$105*K34)+($G35*$F$105*K35)+($G36*$F$105*K36)+($G37*$F$105*K37)+($G38*$F$105*K38)+($G39*$F$105*K39)+($G40*$F$105*K40)+($G42*$F$105*K42)+($G43*$F$105*K43)+($G44*$F$105*K44)+($G45*$F$105*K45)+($G46*$F$105*K46)+($G47*$F$105*K47)+($G48*$F$105*K48)+($G50*$F$105*K50)+($G51*$F$105*K51)+($G52*$F$105*K52)+($G53*$F$105*K53)+($G54*$F$105*K54)+($G55*$F$105*K55)+($G56*$F$105*K56)+($G57*$F$105*K57)+($G58*$F$105*K58)+($G59*$F$105*K59)+($G60*$F$105*K60)+($G61*$F$105*K61)+($G62*$F$105*K62)+($G63*$F$105*K63)+($G64*$F$105*K64)+($G65*$F$105*K65)+($G66*$F$105*K66)+($G67*$F$105*K67)+($G68*$F$105*K68)+($G69*$F$105*K69)+($G70*$F$105*K70)+($G71*$F$105*K71)+($G72*$F$105*K72)+($G73*$F$105*K73)+($G75*$F$105*K75)+($G76*$F$105*K76)+($G77*$F$105*K77)+($G78*$F$105*K78)+($G79*$F$105*K79)+($G80*$F$105*K80)+($G81*$F$105*K81)+($G83*$F$105*K83)+($G84*$F$105*K84)+($G85*$F$105*K85)+($G86*$F$105*K86)+($G87*$F$105*K87)+($G88*$F$105*K88)+($G91*$F$105*K91)+($G92*$F$105*K92)+($G93*$F$105*K93)+($G94*$F$105*K94)+($G95*$F$105*K95)+($G96*$F$105*K96)+($G97*$F$105*K97)+($G98*$F$105*K98)+($G99*$F$105*K99)+($G100*$F$105*K100)+($G101*$F$105*K101)+($G102*$F$105*K102)+($G103*$F$105*K103) -> 5130619160 | L111: 3278059771 | M111: 894865436.6 | N111: 1413177508 | O111: 3036063869 | P111: 2213207860 | Q111: 979480634.2 | R111: 1015300340 | S111: =+SUM(K111:R111) -> 1.796077458e+10 | T111: =+F105=S111 -> FALSE
A112: CONTRIBUCIONES INHERENTES A LA NÓMINA | K112: =($I14*$H$105*K14)+($I15*$H$105*K15)+($I16*$H$105*K16)+($I17*$H$105*K17)+($I18*$H$105*K18)+($I19*$H$105*K19)+($I20*$H$105*K20)+($I21*$H$105*K21)+($I23*$H$105*K23)+($I24*$H$105*K24)+($I25*$H$105*K25)+($I26*$H$105*K26)+($I27*$H$105*K27)+($I28*$H$105*K28)+($I29*$H$105*K29)+($I30*$H$105*K30)+($I31*$H$105*K31)+($I32*$H$105*K32)+($I33*$H$105*K33)+($I34*$H$105*K34)+($I35*$H$105*K35)+($I36*$H$105*K36)+($I37*$H$105*K37)+($I38*$H$105*K38)+($I39*$H$105*K39)+($I40*$H$105*K40)+($I42*$H$105*K42)+($I43*$H$105*K43)+($I44*$H$105*K44)+($I45*$H$105*K45)+($I46*$H$105*K46)+($I47*$H$105*K47)+($I48*$H$105*K48)+($I50*$H$105*K50)+($I51*$H$105*K51)+($I52*$H$105*K52)+($I53*$H$105*K53)+($I54*$H$105*K54)+($I55*$H$105*K55)+($I56*$H$105*K56)+($I57*$H$105*K57)+($I58*$H$105*K58)+($I59*$H$105*K59)+($I60*$H$105*K60)+($I61*$H$105*K61)+($I62*$H$105*K62)+($I63*$H$105*K63)+($I64*$H$105*K64)+($I65*$H$105*K65)+($I66*$H$105*K66)+($I67*$H$105*K67)+($I68*$H$105*K68)+($I69*$H$105*K69)+($I70*$H$105*K70)+($I71*$H$105*K71)+($I72*$H$105*K72)+($I73*$H$105*K73)+($I75*$H$105*K75)+($I76*$H$105*K76)+($I77*$H$105*K77)+($I78*$H$105*K78)+($I79*$H$105*K79)+($I80*$H$105*K80)+($I81*$H$105*K81)+($I83*$H$105*K83)+($I84*$H$105*K84)+($I85*$H$105*K85)+($I86*$H$105*K86)+($I87*$H$105*K87)+($I88*$H$105*K88)+($I91*$H$105*K91)+($I92*$H$105*K92)+($I93*$H$105*K93)+($I94*$H$105*K94)+($I95*$H$105*K95)+($I96*$H$105*K96)+($I97*$H$105*K97)+($I98*$H$105*K98)+($I99*$H$105*K99)+($I100*$H$105*K100)+($I101*$H$105*K101)+($I102*$H$105*K102)+($I103*$H$105*K103) -> 8466303361 | L112: 5502016204 | M112: 1461221432 | N112: 2212365025 | O112: 4835928063 | P112: 3517197448 | Q112: 1489848691 | R112: 1513482893 | S112: =+SUM(K112:R112) -> 2.899836312e+10 | T112: =+H105=S112 -> FALSE
A115: RELACIÓN DEPENDENCIAS - PROGRAMAS PRESUPUESTALES
E117: CONCEPTOS RELACIÓN PROGRAMATICO | F117: =IF(VLOOKUP(B7,Programático!$T$3:$AG$32,14,FALSE)=2,_xlfn._xlws.FILTER(Programático!U2:V32,Programático!T2:T32=B7),IF(VLOOKUP(B7,Programático!$T$3:$AG$32,14,FALSE)=3,_xlfn._xlws.FILTER(Programático!U2:W32,Programático!T2:T32=B7),IF(VLOOKUP(B7,Programático!$T$3:$AG$32,14,FALSE)=4,_xlfn._xlws.FILTER(Programático!U2:X32,Programático!T2:T32=B7),IF(VLOOKUP(B7,Programático!$T$3:$AG$32,14,FALSE)=5,_xlfn._xlws.FILTER(Programático!U2:Y32,Programático!T2:T32=B7),IF(VLOOKUP(B7,Programático!$T$3:$AG$32,14,FALSE)=6,_xlfn._xlws.FILTER(Programático!U2:Z32,Programático!T2:T32=B7),IF(VLOOKUP(B7,Programático!$T$3:$AG$32,14,FALSE)=7,_xlfn._xlws.FILTER(Programático!U2:AA32,Programático!T2:T32=B7),IF(VLOOKUP(B7,Programático!$T$3:$AG$32,14,FALSE)=8,_xlfn._xlws.FILTER(Programático!U2:AB32,Programático!T2:T32=B7),IF(VLOOKUP(B7,Programático!$T$3:$AG$32,14,FALSE)=10,_xlfn._xlws.FILTER(Programático!U2:AD32,Programático!T2:T32=B7),IF(VLOOKUP(B7,Programático!$T$3:$AG$32,14,FALSE)=11,_xlfn._xlws.FILTER(Programático!U2:AE32,Programático!T2:T32=B7),_xlfn._xlws.FILTER(Programático!U2:AF32,Programático!T2:T32=B7)))))))))) ->  | U117: CHECK
E118: =+$K$11 -> Alta gerencia | U118: =+SUM(F118:T118) -> 0
E119: =+$L$11 -> Secretaria general y dependencias de apoyo | U119: 0
E120: =+$M$11 -> Oficinas asesoras | U120: 0
E121: =+$N$11 -> Delegatura de Asuntos Económicos y Societarios | U121: 0
E122: =+$O$11 -> Delegatura de Supervisión Societaria | U122: 0
E123: =+$P$11 -> Delegatura de Procedimientos de Insolvencia | U123: 0
E124: =+$Q$11 -> Delegatura de Procedimientos Mercantiles | U124: 0
E125: =+$R$11 -> Delegatura de Intervención y | U125: 0
E126: SALARIO | F126: =(F118*$K$110)+(F119*$L$110)+(F120*$M$110)+(F121*$N$110)+(F122*$O$110)+(F123*$P$110)+(F124*$Q$110)+(F125*$R$110) -> 0 | G126: =(G118*$K$110)+(G119*$L$110)+(G120*$M$110)+(G121*$N$110)+(G122*$O$110)+(G123*$P$110)+(G124*$Q$110)+(G125*$R$110) -> 0 | H126: =(H118*$K$110)+(H119*$L$110)+(H120*$M$110)+(H121*$N$110)+(H122*$O$110)+(H123*$P$110)+(H124*$Q$110)+(H125*$R$110) -> 0 | I126: =(I118*$K$110)+(I119*$L$110)+(I120*$M$110)+(I121*$N$110)+(I122*$O$110)+(I123*$P$110)+(I124*$Q$110)+(I125*$R$110) -> 0 | J126: 0 | K126: 0 | L126: 0 | M126: 0 | N126: 0 | O126: 0 | P126: 0 | Q126: 0 | R126: 0 | S126: 0 | T126: 0 | U126: =+SUM(F126:T126)=S110 -> FALSE
E127: REMUNERACIONES NO CONSTITUTIVAS DE FACTOR SALARIAL | F127: =(F118*$K$111)+(F119*$L$111)+(F120*$M$111)+(F121*$N$111)+(F122*$O$111)+(F123*$P$111)+(F124*$Q$111)+(F125*$R$111) -> 0 | G127: =(G118*$K$111)+(G119*$L$111)+(G120*$M$111)+(G121*$N$111)+(G122*$O$111)+(G123*$P$111)+(G124*$Q$111)+(G125*$R$111) -> 0 | H127: 0 | I127: 0 | J127: 0 | K127: 0 | L127: 0 | M127: 0 | N127: 0 | O127: 0 | P127: 0 | Q127: 0 | R127: 0 | S127: 0 | T127: 0 | U127: =+SUM(F127:T127)=S111 -> FALSE
E128: CONTRIBUCIONES INHERENTES A LA NÓMINA | F128: =(F118*$K$112)+(F119*$L$112)+(F120*$M$112)+(F121*$N$112)+(F122*$O$112)+(F123*$P$112)+(F124*$Q$112)+(F125*$R$112) -> 0 | G128: =(G118*$K$112)+(G119*$L$112)+(G120*$M$112)+(G121*$N$112)+(G122*$O$112)+(G123*$P$112)+(G124*$Q$112)+(G125*$R$112) -> 0 | H128: 0 | I128: 0 | J128: 0 | K128: 0 | L128: 0 | M128: 0 | N128: 0 | O128: 0 | P128: 0 | Q128: 0 | R128: 0 | S128: 0 | T128: 0 | U128: =+SUM(F128:T128)=S112 -> FALSE
E129: TOTAL | F129: =+F126+F127+F128 -> 0 | G129: =+G126+G127+G128 -> 0 | H129: 0 | I129: 0 | J129: 0 | K129: 0 | L129: 0 | M129: 0 | N129: 0 | O129: 0 | P129: 0 | Q129: 0 | R129: 0 | S129: 0 | T129: 0 | U129: =+SUM(F129:T129)=S109 -> FALSE
E130: Porcentaje Prorrateo | F130: =IF(F129=0,0,F129/SUM($F$129:$T$129)) -> 0 | G130: =IF(G129=0,0,G129/SUM($F$129:$T$129)) -> 0 | H130: 0 | I130: 0 | J130: 0 | K130: 0 | L130: 0 | M130: 0 | N130: 0 | O130: 0 | P130: 0 | Q130: 0 | R130: 0 | S130: 0 | T130: 0
A133: DENOMINACIÓN DEPENDENCIAS MISIONALES (Especificación de las dependencias que hacen parte de cada agregación)
A135: Alta gerencia
A136: Secretaria general y dependencias de apoyo:
A137: =+$M$11 -> Oficinas asesoras
A138: =+$N$11 -> Delegatura de Asuntos Económicos y Societarios
A139: =+$O$11 -> Delegatura de Supervisión Societaria
A140: =+$P$11 -> Delegatura de Procedimientos de Insolvencia
A141: =+$Q$11 -> Delegatura de Procedimientos Mercantiles
A142: =+$R$11 -> Delegatura de Intervención y

Sheet CARGOS CON COORDINACION
A9: DENOMINACIÓN DE CARGOS | B9: Grado | D9: Mesnsual | E9: Anual
C10: Cargos
C11: Con
C12: Coordinación
A13: 1 | B13: 2
A14: EMPLEADOS PÚBLICOS
A15: NIVEL DIRECTIVO | C15: =SUM(C16:C24) -> 0 | D15: =SUM(D16:D24) -> 0 | E15: 0
A16: SUPERINTENDENTE | B16: 25 | D16: =+E16/12 -> 0 | E16: =+'[4] PLANTA 2024 CON AUMENTO'!AC16 -> 0
A17: SUPERINTENDENTE DELEGADO | B17: 23 | D17: =+E17/12 -> 0 | E17: =+'[4] PLANTA 2024 CON AUMENTO'!AC17 -> 0
A18: SECRETARIO GENERAL | B18: 23 | D18: 0 | E18: =+'[4] PLANTA 2024 CON AUMENTO'!AC18 -> 0
A19: DIRECTOR DE SUPERTENDENCIA | B19: 19 | D19: 0 | E19: =+'[4] PLANTA 2024 CON AUMENTO'!AC19 -> 0
A20: DIRECTOR ADMINISTRATIVO | B20: 19 | D20: 0 | E20: =+'[4] PLANTA 2024 CON AUMENTO'!AC20 -> 0
A21: DIRECTOR FINANCIERO | B21: 19 | D21: 0 | E21: =+'[4] PLANTA 2024 CON AUMENTO'!AC21 -> 0
A22: DIRECTOR TECNICO | B22: 19 | D22: 0 | E22: =+'[4] PLANTA 2024 CON AUMENTO'!AC22 -> 0
A23: JEFE OFICINA | B23: 19 | D23: 0 | E23: =+'[4] PLANTA 2024 CON AUMENTO'!AC23 -> 0
A24: INTENDENTE | B24: 20 | D24: 0 | E24: =+'[4] PLANTA 2024 CON AUMENTO'!AC24 -> 0
A25: NIVEL ASESOR | C25: =SUM(C26:C31) -> 0 | D25: =SUM(D26:D31) -> 0 | E25: =SUM(E26:E31) -> 0
A26: ASESOR | B26: 16 | D26: 0 | E26: =+'[4] PLANTA 2024 CON AUMENTO'!AC26 -> 0
A27: ASESOR | B27: 15 | D27: 0 | E27: =+'[4] PLANTA 2024 CON AUMENTO'!AC27 -> 0
A28: JEFE DE OFIC. ASESORA DE JP.C | B28: 13 | D28: 0 | E28: =+'[4] PLANTA 2024 CON AUMENTO'!AC28 -> 0
A29: ASESOR | B29: 14 | D29: 0 | E29: =+'[4] PLANTA 2024 CON AUMENTO'!AC29 -> 0
A30: ASESOR | B30: 13 | D30: 0 | E30: =+'[4] PLANTA 2024 CON AUMENTO'!AC30 -> 0
A31: ASESOR | B31: 11 | D31: 0 | E31: =+'[4] PLANTA 2024 CON AUMENTO'!AC31 -> 0
A32: NIVEL EJECUTIVO | D32: =SUM(D33:D39) -> 0 | E32: =SUM(E33:E39) -> 0
E33: =+'[4] PLANTA 2024 CON AUMENTO'!AC33 -> 0
E34: =+'[4] PLANTA 2024 CON AUMENTO'!AC34 -> 0
E35: =+'[4] PLANTA 2024 CON AUMENTO'!AC35 -> 0
E36: =+'[4] PLANTA 2024 CON AUMENTO'!AC36 -> 0
E37: =+'[4] PLANTA 2024 CON AUMENTO'!AC37 -> 0
E38: =+'[4] PLANTA 2024 CON AUMENTO'!AC38 -> 0
E39: =+'[4] PLANTA 2024 CON AUMENTO'!AC39 -> 0
A40: NIVEL PROFESIONAL | C40: =SUM(C41:C47) -> 49 | D40: =SUM(D41:D47) -> 92189864.51 | E40: =SUM(E41:E47) -> 1106278374
A41: PROFESIONAL ESPECIALIZADO | B41: 20 | C41: 7 | D41: =+E41/12 -> 21155654.24 | E41: =+'[1]Formulario 2- Planta'!AC44 -> 253867850.9
A42: PROFESIONAL ESPECIALIZADO | B42: 18 | C42: 4 | D42: 10440263.72 | E42: =+'[1]Formulario 2- Planta'!AC45 -> 125283164.7
A43: PROFESIONAL ESPECIALIZADO | B43: 16 | C43: 5 | D43: 11520832.65 | E43: =+'[1]Formulario 2- Planta'!AC46 -> 138249991.8
A44: PROFESIONAL ESPECIALIZADO | B44: 14 | C44: 5 | D44: 9665148.9 | E44: =+'[1]Formulario 2- Planta'!AC47 -> 115981786.8
A45: PROFESIONAL UNIVERSITARIO | B45: 11 | C45: 12 | D45: 18857046.38 | E45: =+'[1]Formulario 2- Planta'!AC48 -> 226284556.6
A46: PROFESIONAL UNIVERSITARIO | B46: 7 | C46: 14 | D46: 18644972.44 | E46: =+'[1]Formulario 2- Planta'!AC49 -> 223739669.3
A47: PROFESIONAL UNIVERSITARIO | B47: 1 | C47: 2 | D47: 1905946.165 | E47: =+'[1]Formulario 2- Planta'!AC50 -> 22871353.98
A48: NIVEL TÉCNICO | C48: =SUM(C49:C50) -> 0 | D48: =SUM(D49:D50) -> 0 | E48: 0
A49: TECNICO ADMINISTRATIVO | B49: 16 | D49: =+E49/12 -> 0 | E49: =+'[4] PLANTA 2024 CON AUMENTO'!AC49 -> 0
A50: TECNICO OPERATIVO | B50: 14 | D50: 0 | E50: =+'[4] PLANTA 2024 CON AUMENTO'!AC50 -> 0
A51: NIVEL ASISTENCIAL | C51: =SUM(C52:C58) -> 0 | D51: =SUM(D52:D58) -> 0 | E51: 0
A52: SECRETARIO EJECUTIVO | B52: 22 | D52: =+E52/12 -> 0 | E52: =+'[4] PLANTA 2024 CON AUMENTO'!AC52 -> 0
A53: SECRETARO EJECUTIVO | B53: 18 | D53: 0 | E53: =+'[4] PLANTA 2024 CON AUMENTO'!AC53 -> 0
A54: SECRETARO EJECUTIVO | B54: 15 | D54: 0 | E54: =+'[4] PLANTA 2024 CON AUMENTO'!AC54 -> 0
A55: SECRETARIO | B55: 14 | D55: 0 | E55: =+'[4] PLANTA 2024 CON AUMENTO'!AC55 -> 0
A56: CONDUCTOR MECANICO | B56: 14 | D56: 0 | E56: =+'[4] PLANTA 2024 CON AUMENTO'!AC56 -> 0
A57: AUXILIAR ADMINISTRATIVO | B57: 14 | D57: 0 | E57: =+'[4] PLANTA 2024 CON AUMENTO'!AC57 -> 0
A58: AUXILIAR SERVICIOS GENERALES | B58: 8 | D58: 0 | E58: =+'[4] PLANTA 2024 CON AUMENTO'!AC58 -> 0
A59: VARIOS
A60: TOTAL EMPLEADOS PÚBLICOS | C60: =C51+C48+C40+C32+C25+C15 -> 49 | D60: =D15+D25+D32+D40+D48+D51 -> 92189864.51 | E60: 1106278374

Sheet PRIMA POR DEPENDIENTE
A9: DENOMINACIÓN DE CARGOS | B9: Grado | D9: Mesnsual | E9: Anual
C10: Cargos
C11: Con
C12: Prima por dependiente
A13: 1 | B13: 2
A14: EMPLEADOS PÚBLICOS
A15: NIVEL DIRECTIVO | C15: =SUM(C16:C24) -> 22 | D15: 17537283.17 | E15: 210447398
A16: SUPERINTENDENTE | B16: 25 | C16: 1 | D16: =+E16/12 -> 761458.8822 | E16: =+'[4] PLANTA 2024 CON AUMENTO'!T16 -> 9137506.586
A17: SUPERINTENDENTE DELEGADO | B17: 23 | C17: 3 | D17: 3272376.533 | E17: =+'[4] PLANTA 2024 CON AUMENTO'!T17 -> 39268518.4
A18: SECRETARIO GENERAL | B18: 23 | C18: 1 | D18: 654475.3066 | E18: =+'[4] PLANTA 2024 CON AUMENTO'!T18 -> 7853703.679
A19: DIRECTOR DE SUPERTENDENCIA | B19: 19 | C19: 10 | D19: 7729320.373 | E19: =+'[4] PLANTA 2024 CON AUMENTO'!T19 -> 92751844.47
A20: DIRECTOR ADMINISTRATIVO | B20: 19 | C20: 2 | D20: 483082.5233 | E20: =+'[4] PLANTA 2024 CON AUMENTO'!T20 -> 5796990.28
A21: DIRECTOR FINANCIERO | B21: 19 | D21: 483082.5233 | E21: =+'[4] PLANTA 2024 CON AUMENTO'!T21 -> 5796990.28
A22: DIRECTOR TECNICO | B22: 19 | C22: 0 | D22: 0 | E22: =+'[4] PLANTA 2024 CON AUMENTO'!T22 -> 0
A23: JEFE OFICINA | B23: 19 | C23: 1 | D23: 966165.0466 | E23: =+'[4] PLANTA 2024 CON AUMENTO'!T23 -> 11593980.56
A24: INTENDENTE | B24: 20 | C24: 4 | D24: 3187321.983 | E24: =+'[4] PLANTA 2024 CON AUMENTO'!T24 -> 38247863.8
A25: NIVEL ASESOR | C25: =SUM(C26:C31) -> 18 | D25: =SUM(D26:D31) -> 13980342.55 | E25: =SUM(E26:E31) -> 167764110.7
A26: ASESOR | B26: 16 | C26: 1 | D26: =+E26/12 -> 591634.8233 | E26: =+'[4] PLANTA 2024 CON AUMENTO'!T26 -> 7099617.88
A27: ASESOR | B27: 15 | C27: 5 | D27: 3230557.356 | E27: =+'[4] PLANTA 2024 CON AUMENTO'!T27 -> 38766688.27
A28: JEFE DE OFIC. ASESORA DE JP.C | B28: 13 | C28: 1 | D28: 999612.0118 | E28: =+'[4] PLANTA 2024 CON AUMENTO'!T28 -> 11995344.14
A29: ASESOR | B29: 14 | C29: 2 | D29: 1582716.933 | E29: =+'[4] PLANTA 2024 CON AUMENTO'!T29 -> 18992603.19
A30: ASESOR | B30: 13 | C30: 1 | D30: 1499418.018 | E30: =+'[4] PLANTA 2024 CON AUMENTO'!T30 -> 17993016.21
A31: ASESOR | B31: 11 | C31: 8 | D31: 6076403.413 | E31: =+'[4] PLANTA 2024 CON AUMENTO'!T31 -> 72916840.95
A32: NIVEL EJECUTIVO | D32: =SUM(D33:D39) -> 0 | E32: =SUM(E33:E39) -> 0
E33: =+'[4] PLANTA 2024 CON AUMENTO'!AC33 -> 0
E34: =+'[4] PLANTA 2024 CON AUMENTO'!AC34 -> 0
E35: =+'[4] PLANTA 2024 CON AUMENTO'!AC35 -> 0
E36: =+'[4] PLANTA 2024 CON AUMENTO'!AC36 -> 0
E37: =+'[4] PLANTA 2024 CON AUMENTO'!AC37 -> 0
E38: =+'[4] PLANTA 2024 CON AUMENTO'!AC38 -> 0
E39: =+'[4] PLANTA 2024 CON AUMENTO'!AC39 -> 0
A40: NIVEL PROFESIONAL | C40: =SUM(C41:C47) -> 192 | D40: =SUM(D41:D47) -> 92189864.51 | E40: =SUM(E41:E47) -> 1106278374
A41: PROFESIONAL ESPECIALIZADO | B41: 20 | C41: 17 | D41: =+E41/12 -> 21155654.24 | E41: =+'[1]Formulario 2- Planta'!AC44 -> 253867850.9
A42: PROFESIONAL ESPECIALIZADO | B42: 18 | C42: 10 | D42: 10440263.72 | E42: =+'[1]Formulario 2- Planta'!AC45 -> 125283164.7
A43: PROFESIONAL ESPECIALIZADO | B43: 16 | C43: 17 | D43: 11520832.65 | E43: =+'[1]Formulario 2- Planta'!AC46 -> 138249991.8
A44: PROFESIONAL ESPECIALIZADO | B44: 14 | C44: 18 | D44: 9665148.9 | E44: =+'[1]Formulario 2- Planta'!AC47 -> 115981786.8
A45: PROFESIONAL UNIVERSITARIO | B45: 11 | C45: 42 | D45: 18857046.38 | E45: =+'[1]Formulario 2- Planta'!AC48 -> 226284556.6
A46: PROFESIONAL UNIVERSITARIO | B46: 7 | C46: 53 | D46: 18644972.44 | E46: =+'[1]Formulario 2- Planta'!AC49 -> 223739669.3
A47: PROFESIONAL UNIVERSITARIO | B47: 1 | C47: 35 | D47: 1905946.165 | E47: =+'[1]Formulario 2- Planta'!AC50 -> 22871353.98
A48: NIVEL TÉCNICO | C48: =SUM(C49:C50) -> 30 | D48: =SUM(D49:D50) -> 9206458.579 | E48: 110477502.9
A49: TECNICO ADMINISTRATIVO | B49: 16 | C49: 17 | D49: =+E49/12 -> 4841719.618 | E49: =+'[4] PLANTA 2024 CON AUMENTO'!T49 -> 58100635.41
A50: TECNICO OPERATIVO | B50: 14 | C50: 13 | D50: 4364738.961 | E50: =+'[4] PLANTA 2024 CON AUMENTO'!T50 -> 52376867.53
A51: NIVEL ASISTENCIAL | C51: =SUM(C52:C58) -> 60 | D51: =SUM(D52:D58) -> 12737850.79 | E51: 152854209.4
A52: SECRETARIO EJECUTIVO | B52: 22 | C52: 5 | D52: =+E52/12 -> 1001524.85 | E52: =+'[4] PLANTA 2024 CON AUMENTO'!T52 -> 12018298.2
A53: SECRETARO EJECUTIVO | B53: 18 | C53: 11 | D53: 2461819.626 | E53: =+'[4] PLANTA 2024 CON AUMENTO'!T53 -> 29541835.51
A54: SECRETARO EJECUTIVO | B54: 15 | C54: 13 | D54: 3035846.672 | E54: =+'[4] PLANTA 2024 CON AUMENTO'!T54 -> 36430160.06
A55: SECRETARIO | B55: 14 | D55: 94978.4412 | E55: =+'[4] PLANTA 2024 CON AUMENTO'!T55 -> 1139741.294
A56: CONDUCTOR MECANICO | B56: 14 | C56: 7 | D56: 854805.9708 | E56: =+'[4] PLANTA 2024 CON AUMENTO'!T56 -> 10257671.65
A57: AUXILIAR ADMINISTRATIVO | B57: 14 | C57: 12 | D57: 3229267.001 | E57: =+'[4] PLANTA 2024 CON AUMENTO'!T57 -> 38751204.01
A58: AUXILIAR SERVICIOS GENERALES | B58: 8 | C58: 12 | D58: 2059608.225 | E58: =+'[4] PLANTA 2024 CON AUMENTO'!T58 -> 24715298.7
A59: VARIOS
A60: TOTAL EMPLEADOS PÚBLICOS | C60: =C51+C48+C40+C32+C25+C15 -> 322 | D60: =D15+D25+D32+D40+D48+D51 -> 145651799.6 | E60: 1747821595

Sheet DESPLEGABLES (hidden)
A1: CÓDIGO | B1: UNIDAD EJECUTORA | C1: SECTOR | E1: FONDOS ESPECIALES | F1: COD | H1: IMPUESTOS INDIRECTOS -FE | I1: CÓD | K1: CONTRIBUCIONES SOCIALES- EP | L1: CÓD | N1: CONTRIBUCIONES SOCIALES -FE | O1: CÓD | Q1: CONTRIBUCIONES DIVERSAS - FE | R1: CÓD | T1: CONTRIBUCIONES DIVERSAS - ESTAPÚBLICO | U1: CÓD | W1: TASAS Y DERECHOS ADMINISTRATIVOS - EP | X1: CÓD | Z1: DERECHOS ECONÓMICOS POR USO DE RECURSOS NATURALES- EP | AA1: CÓD | AC1: DERECHOS ECONÓMICOS POR USO DE RECURSOS NATURALES- FE | AD1: CÓD | AF1: TRANSFERENCIAS CORRIENTES- EP | AG1: CÓD | AI1: TRANSFERENCIAS CORRIENTES- FE | AJ1: CÓD | AL1: CPC
A2: 010101 | B2: SENADO DE LA REPUBLICA | C2: CONGRESO DE LA REPÚBLICA | E2: CONTRIBUCIÓN ENTIDADES VIGILADAS CONTRALORIA GENERAL NACION | F2: 602 | H2: Impuesto social a las armas y municiones | I2: 10 | K2: Salud | L2: 01 | N2: Salud | O2: 01 | Q2: Contribución - Comisión de Regulación de Comunicaciones (CRC) | R2: 01 | T2: Contribución - Superintendencia de Sociedades | U2: 04 | W2: Expedición de visas | X2: 01 | Z2: Derecho económico por uso del subsuelo | AA2: 01 | AC2: Autorización de uso de zonas de fondeo - DIMAR | AD2: 06 | AF2: Indemnizaciones relacionadas con seguros no de vida | AG2: 01 | AI2: Indemnizaciones relacionadas con seguros no de vida | AJ2: 01 | AL2: Agricultura, silvicultura y productos de la pesca
A3: 010102 | B3: CAMARA DE REPRESENTANTES | C3: CONGRESO DE LA REPÚBLICA | E3: CONTRIBUCIÓN ENTIDADES VIGILADAS SUPERINTENDENCIA SUBSIDIO FAMILIAR | F3: 603 | H3: Impuesto de remate y adjudicaciones | I3: 11 | K3: Pensión | L3: 02 | N3: Pensión | O3: 02 | Q3: Contribución - Comisión de Regulación de Energía y Gas (CREG) | R3: 02 | T3: Contribución - Superintendencia de Vigilancia y Seguridad Privada | U3: 05 | W3: Expedición de pasaportes | X3: 02 | Z3: Concesiones mineras | AA3: 02 | AF3: Sentencias y conciliaciones | AG3: 02 | AI3: Sentencias y conciliaciones | AJ3: 02 | AL3: Minerales; electricidad, gas y agua
A4: 020101 | B4: PRESIDENCIA DE LA REPUBLICA - GESTION GENERAL | C4: PRESIDENCIA DE LA REPÚBLICA | E4: FINANCIACION SECTOR JUSTICIA | F4: 609 | H4: Sobretasa nacional a la gasolina | I4: 12 | K4: Contribuciones asignaciones de retiro militares y policía | L4: 03 | Q4: Contribución - Comisión de Regulación de Agua Potable y Saneamiento Básico (CRA) | R4: 03 | T4: Contribución - Superintendencia de la Economía Solidaria | U4: 06 | W4: Apostilla o legalización | X4: 03 | Z4: Contraprestaciones portuarias | AA4: 03 | AF4: Devolución IVA - Instituciones de educación superior | AG4: 04 | AI4: Prescripción de depósitos judiciales | AJ4: 03 | AL4: Productos alimenticios, bebidas y tabaco; textiles, prendas de vestir y productos de cuero
A5: 020900 | B5: AGENCIA PRESIDENCIAL DE COOPERACION INTERNACIONAL DE COLOMBIA, APC - COLOMBIA | C5: PRESIDENCIA DE LA REPÚBLICA | E5: FONDO DE DEFENSA NACIONAL | F5: 6010 | H5: Sobretasa al ACPM | I5: 13 | Q5: Contribución - Superintendencia del Subsidio Familiar | R5: 07 | T5: Contribución de vigilancia - Superintendencia de Industria y Comercio | U5: 07 | W5: Protocolización de escrituras públicas | X5: 04 | Z5: Concesiones parques naturales | AA5: 05 | AF5: Transferencias de otras unidades de gobierno | AG5: 05 | AI5: Devolución IVA - Instituciones de educación superior | AJ5: 04 | AL5: Otros bienes transportables, (excepto productos metálicos, maquinaria y equipo)
A6: 021100 | B6: UNIDAD NACIONAL PARA LA GESTION DEL RIESGO DE DESASTRES | C6: PRESIDENCIA DE LA REPÚBLICA | E6: FONDO ESTUPEFACIENTES - MINSALUD | F6: 6013 | H6: Impuesto de salida | I6: 15 | K6: CONTRIBUCIONES ASOCIADAS A NÓMINA - EP | L6: CÓD | N6: CONTRIBUCIONES ASOCIADAS A NÓMINA -FE | O6: CÓD | Q6: Contribución - Fondo de Compensación Ambiental | R6: 13 | T6: Contribución de seguimiento - Superintendencia de Industria y Comercio | U6: 09 | W6: Expedición de certificaciones en el exterior | X6: 05 | AF6: Recursos por bienes mostrencos y vocaciones hereditarias | AG6: 07 | AI6: Transferencias de otras unidades de gobierno | AJ6: 05 | AL6: Productos metálicos, maquinaria y equipo
A7: 021200 | B7: AGENCIA PARA LA REINCORPORACION Y LA NORMALIZACION - ARN | C7: PRESIDENCIA DE LA REPÚBLICA | E7: FONDOS INTERNOS MINISTERIO DEFENSA | F7: 6014 | K7: ICBF | L7: 01 | N7: Escuelas industriales e institutos técnicos | O7: 04 | Q7: Contribución - Fondo Apoyo Financiero Zonas No Interconectadas (FAZNI) | R7: 14 | T7: Contribución - Superintendencia Financiera de Colombia | U7: 10 | W7: Certificación sobre la existencia legal de sociedades | X7: 06 | AF7: Compensación UPC – SSS | AG7: 09 | AI7: Recursos de terceros en consignación | AJ7: 06 | AL7: Construcción y servicios de la construcción
A8: 021300 | B8: AGENCIA NACIONAL INMOBILIARIA VIRGILIO BARCO VARGAS | C8: PRESIDENCIA DE LA REPÚBLICA | E8: FONDOS INTERNOS POLICIA NACIONAL | F8: 6015 | K8: SENA | L8: 02 | N8: Aportes de cesantías | O8: 05 | Q8: Contribución - Fondo Apoyo Financiero para la Energización de las Zonas Rurales Interconectadas (FAER) | R8: 15 | T8: Contribución - Superintendencia de Servicios Públicos Domiciliarios | U8: 11 | W8: Reconocimiento y autenticación de firmas ante cónsules colombianos | X8: 07 | Z8: CÁLCULO POR INGRESOS CORRIENTES | AF8: Mercancías Aprehendidas, Decomisadas o Abandonadas | AG8: 11 | AI8: Recursos por procesos de extinción de dominio | AJ8: 08 | AL8: Servicios de venta y de distribución; alojamiento; servicios de suministro de comidas y bebidas; servicios de transporte; y servicios de distribución de electricidad, gas y agua
A9: 021401 | B9: AGENCIA DE RENOVACION DEL TERRITORIO ART - GESTION GENERAL | C9: PRESIDENCIA DE LA REPÚBLICA | E9: FONDO ROTATORIO DE MINAS Y ENERGÍA | F9: 6017 | K9: ESAP | L9: 03 | Q9: Contribución - Fondo de Energías No Convencionales y Gestión Eficiente de la Energía (FENOGE) | R9: 16 | T9: Contribucción - Superintendencia de Puertos y Transporte | U9: 12 | W9: Expedición de tarjetas de registro consular | X9: 08 | AI9: Compensación UPC – SSS | AJ9: 09 | AL9: Servicios financieros y servicios conexos, servicios inmobiliarios y servicios de leasing
A10: 021402 | B10: DIRECCIÓN DE SUSTITUCIÓN DE CULTIVOS DE USO ILÍCITO | C10: PRESIDENCIA DE LA REPÚBLICA | E10: ESCUELAS INDUSTRIALES E INSTITUTOS TECNICOS | F10: 6019 | Q10: Contribución - Fondo Especial de Energía Social (FOES) | R10: 17 | T10: Contribucción pensionados militares y policia | U10: 23 | W10: Trámite de nacionalidad colombiana por adopción | X10: 09 | Z10: CONTRIBUCIONES SOCIALES- EP | AC10: TASAS Y DERECHOS ADMINISTRATIVOS - EP | AF10: IMPUESTOS INDIRECTOS -FE | AI10: Recursos FRISCO | AJ10: 10 | AL10: Servicios prestados a las empresas y servicios de producción
A11: 030101 | B11: DEPARTAMENTO NACIONAL DE PLANEACION - GESTION GENERAL | C11: PLANEACIÓN | E11: FONDO DE RECURSOS SOAT Y FONSAT (ANTES FOSYGA) | F11: 6021 | K11: CONTRIBUCIONES ESPECIALES - EP | L11: CÓD | Q11: Contribución - Fondo Especial Cuota de Fomento de Gas Natural | R11: 18 | T11: Derecho económico por precios altos | U11: 33 | W11: Trámite de renuncia a la nacionalidad colombiana | X11: 10 | Z11: 1.02.1.01.01. Salud | AC11: 1.02.2.01. Expedición de visas | AF11: 1.01.2.10. Impuesto social a las armas y municiones | AI11: Prescripción especial adquisitivo de dominio | AJ11: 12 | AL11: Servicios para la comunidad, sociales y personales
A12: 030300 | B12: UNIDAD ADMINISTRATIVA ESPECIAL - AGENCIA NACIONAL DE CONTRATACION PUBLICA - COLOMBIA COMPRA EFICIENTE | C12: PLANEACIÓN | E12: FONDO DE SOLIDARIDAD PENSIONAL | F12: 6022 | K12: Recaudo Ley 55 de 1985 Superintendencia de Notariado y Registro | L12: 03 | N12: CONTRIBUCIONES ESPECIALES -FE | O12: CÓD | Q12: Contribución - Fondo Especial para el programa de Normalización de Redes Eléctricas (Prone) | R12: 19 | T12: Derecho económico por participación en la producción | U12: 34 | W12: Expedición de certificados de antepasados de extranjeros nacionalizados como colombianos por adopción | X12: 11 | Z12: 1.02.1.01.02. Pensión | AC12: 1.02.2.02. Expedición de pasaportes | AF12: 1.01.2.11. Impuesto de remate y adjudicaciones | AI12: Recursos por acuerdos de compartición Ley 1743 de 2014 | AJ12: 13
A13: 032400 | B13: SUPERINTENDENCIA DE SERVICIOS PÚBLICOS DOMICILIARIOS | C13: PLANEACIÓN | E13: COMISION DE REGULACION DE TELECOMUNICACIONES | F13: 6023 | H13: MULTAS Y SANCIONES | I13: CÓD | N13: Cuota de fiscalización y auditaje | O13: 01 | Q13: Contribución - Fondo de Solidaridad para Subsidios y Redistribución de Ingresos | R13: 20 | T13: Contribución Nacional de Valorización | U13: 40 | W13: Expedición de certificados de no objeción a la permanencia en el exterior de estudiantes colombianos | X13: 12 | Z13: 1.02.1.01.03. Contribuciones asignaciones de retiro militares y policía | AC13: 1.02.2.03. Apostilla o legalización | AF13: 1.01.2.12. Sobretasa nacional a la gasolina | AI13: Del Fondo para la Modernización, Descongestión y Bienestar de la Administración de la Justicia | AJ13: 14
A14: 040101 | B14: DEPARTAMENTO ADMINISTRATIVO NACIONAL DE ESTADÍSTICA (DANE) - GESTIÓN GENERAL | C14: INFORMACIÓN ESTADÍSTICA | E14: COMISION DE REGULACION DE ENERGIA Y GAS | F14: 6024 | H14: Multas Superintendencias | I14: 01 | N14: Aporte a la administración de justicia | O14: 02 | Q14: Contribución - Fondo Emprender | R14: 21 | T14: Contribución Industria Militar – ICFE | U14: 45 | W14: Expedición de cédulas de ciudadanía | X14: 13 | AC14: 1.02.2.04. Protocolización de escrituras públicas | AF14: 1.01.2.13. Sobretasa al ACPM | AI14: Distribucción Ley 55 de 1985 Superintendencia de Notariado y Registro | AJ14: 15
A15: 040200 | B15: FONDO ROTATORIO DEL DANE | C15: INFORMACIÓN ESTADÍSTICA | E15: COMISION DE REGULACION DE AGUA POTABLE | F15: 6025 | H15: Sanciones aduaneras | I15: 02 | K15: CENSATÍAS | L15: CÓD | Q15: Contribución - Fondo Nacional de las Universidades Estatales de Colombia | R15: 22 | T15: Monetización cuota de aprendizaje | U15: 48 | W15: Expedición de tarjetas de identidad | X15: 14 | Z15: CONTRIBUCIONES ASOCIADAS A NÓMINA - EP | AC15: 1.02.2.05. Expedición de certificaciones en el exterior | AF15: 1.01.2.15. Impuesto de salida
A16: 040300 | B16: INSTITUTO GEOGRÁFICO AGUSTÍN CODAZZI - IGAC | C16: INFORMACIÓN ESTADÍSTICA | E16: INSTITUTO DE ESTUDIOS DEL MINISTERIO PUBLICO | F16: 6031 | H16: Sanciones disciplinarias | I16: 03 | K16: Cesantías definitivas | L16: 01 | Q16: Cuota de compensación militar - Fondo de Defensa Nacional | R16: 24 | T16: Contribucción servicios notariales | U16: 51 | W16: Expedición de certificaciones no sujetas a reserva legal | X16: 15 | Z16: 1.02.1.02.01. ICBF | AC16: 1.02.2.06. Certificación sobre la existencia legal de sociedades | AI16: TASAS Y DERECHOS ADMINISTRATIVOS - FE
A17: 050101 | B17: DEPARTAMENTO DE LA FUNCIÓN PÚBLICA - GESTIÓN GENERAL | C17: EMPLEO PÚBLICO | E17: FONDO SALUD FUERZAS MILITARES | F17: 6033 | H17: Sanciones contractuales | I17: 04 | K17: Cesantías parciales | L17: 02 | Q17: Aporte sobre pólizas de seguros - Fondo Nacional de Bomberos de Colombia | R17: 25 | W17: Expedición de bases de datos sujeta a reserva legal | X17: 16 | Z17: 1.02.1.02.02. SENA | AC17: 1.02.2.07. Reconocimiento y autenticación de firmas ante cónsules colombianos | AF17: CONTRIBUCIONES ESPECIALES -FE | AI17: 1.02.2.15. Certificaciones y constancias
A18: 050300 | B18: ESCUELA SUPERIOR DE ADMINISTRACIÓN PÚBLICA (ESAP) | C18: EMPLEO PÚBLICO | E18: FONDO DE SALUD POLICIA NACIONAL | F18: 6034 | H18: Sanciones administrativas | I18: 05 | K18: Deuda Cesantías soldados profesionales afiliados Caja Promotora de Vivienda Militar y de Policía - CPVMP | L18: 03 | Q18: Arancel judicial - Ley 1394 de 2010 | R18: 27 | W18: Expedición de certificaciones excepcionales de nacionalidad | X18: 17 | Z18: 1.02.1.02.03. ESAP | AC18: 1.02.2.08. Expedición de tarjetas de registro consular | AF18: 1.02.1.03.01. Cuota de fiscalización y auditaje | AI18: 1.02.2.39. Expedición de tarjetas profesionales
A19: 110101 | B19: MINIRELACIONES EXTERIORES - GESTIÓN GENERAL | C19: RELACIONES EXTERIORES | E19: FONDO COMPENSACION AMBIENTAL | F19: 6035 | H19: Sanciones fiscales | I19: 06 | K19: Deuda Cesantías Policía Nacional afiliados Caja Promotora de Vivienda Militar y de Policía - CPVMP | L19: 04 | Q19: Arancel judicial CSJ - Ley 1653 de 2013 | R19: 28 | W19: Expedición de certificados de Registro Civil | X19: 18 | AC19: 1.02.2.09. Trámite de nacionalidad colombiana por adopción | AF19: 1.02.1.03.02. Aporte a la administración de justicia | AI19: 1.02.2.40. Derechos de registro
A20: 110200 | B20: FONDO ROTATORIO DEL MINISTERIO DE RELACIONES EXTERIORES | C20: RELACIONES EXTERIORES | E20: PENSIONES EPSA-CVC | F20: 6036 | H20: Multas judiciales | I20: 07 | Q20: Arancel judicial - Ley 1743 de 2014 | R20: 29 | W20: Impresión de publicaciones de la Organización Electoral | X20: 19 | Z20: CONTRIBUCIONES DIVERSAS - ESTAPÚBLICO | AC20: 1.02.2.10. Trámite de renuncia a la nacionalidad colombiana | AI20: 1.02.2.41. Autorización para el manejo de sustancias químicas controladas
A21: 110400 | B21: UNIDAD ADMINISTRATIVA ESPECIAL MIGRACIÓN COLOMBIA | C21: RELACIONES EXTERIORES | E21: FONDO SOLIDARIDAD PARA SUBSIDIOS Y REDISTRIBUCION INGRESOS | F21: 6039 | H21: Sanciones por desestimiento | I21: 08 | Q21: Contribución especial arbitral | R21: 30 | W21: Venta de licencias de software | X21: 20 | Z21: 1.02.1.04.04. Contribución - Superintendencia de Sociedades | AC21: 1.02.2.11. Expedición de certificados de antepasados de extranjeros nacionalizados como colombianos por adopción | AI21: 1.02.2.43. Permiso por tenencia y porte de armas
A22: 120101 | B22: MINISTERIO DE JUSTICIA Y DEL DERECHO - GESTION GENERAL | C22: JUSTICIA Y DEL DERECHO | E22: FONDO SEGURIDAD Y CONVIVENCIA CIUDADANA | F22: 6040 | Q22: Contribución especial para laudos arbitrales de contenido económico | R22: 31 | W22: Expedición de cédula de extranjería | X22: 21 | Z22: 1.02.1.04.05. Contribución - Superintendencia de Vigilancia y Seguridad Privada | AC22: 1.02.2.12. Expedición de certificados de no objeción a la permanencia en el exterior de estudiantes colombianos | AF22: CONTRIBUCIONES DIVERSAS - FE | AI22: 1.02.2.50. Tasa para la sostenibilidad del RUNT
A23: 120400 | B23: SUPERINTENDENCIA DE NOTARIADO Y REGISTRO | C23: JUSTICIA Y DEL DERECHO | E23: FONDO SUBSIDIO SOBRETASA GASOLINA LEY 488/98 | F23: 6041 | Q23: Aporte afiliados al Sistema General de Pensiones - Subcuenta de Solidaridad | R23: 36 | W23: Certificación de movimientos migratorios | X23: 22 | Z23: 1.02.1.04.06. Contribución – Superintendencia de la Economía Solidaria | AC23: 1.02.2.13. Expedición de cédulas de ciudadanía | AF23: 1.02.1.04.01. Contribución - Comisión de Regulación de Comunicaciones (CRC) | AI23: 1.02.2.52. Fiscalización y seguimiento a títulos mineros
A24: 120800 | B24: INSTITUTO NACIONAL PENITENCIARIO Y CARCELARIO - INPEC | C24: JUSTICIA Y DEL DERECHO | E24: FONDO PENSIONES SUPERINTENDENCIAS, CARBOCOL Y CAMINOS VECINALES | F24: 6042 | Q24: Aporte afiliados al Sistema General de Pensiones - Subcuenta de Subsistencia | R24: 37 | W24: Permisos de ingreso y permanencia en el país | X24: 23 | Z24: 1.02.1.04.08. Contribución de vigilancia - Superintendencia de Industria y Comercio | AC24: 1.02.2.14. Expedición de tarjetas de identidad | AF24: 1.02.1.04.02. Contribución - Comisión de Regulación de Energía y Gas (CREG) | AI24: 1.02.2.59. Expedición de licencias de fabricación de derivados de cannabis
A25: 121000 | B25: UNIDAD ADMINISTRATIVA ESPECIAL AGENCIA NACIONAL DE DEFENSA JURÍDICA DEL ESTADO | C25: JUSTICIA Y DEL DERECHO | E25: UNIDAD ADMINISTRATIVA ESPECIAL DE COMERCIO EXTERIOR | F25: 6043 | Q25: Aportes diferenciales - Fondo de Solidaridad Pensional | R25: 38 | W25: Expedición de salvoconductos de permanencia y salida del país | X25: 24 | Z25: 1.02.1.04.09. Contribución de seguimiento - Superintendencia de Industria y Comercio | AC25: 1.02.2.15. Expedición de certificaciones no sujetas a reserva legal | AF25: 1.02.1.04.03. Contribución - Comisión de Regulación de Agua Potable y Saneamiento Básico (CRA) | AI25: 1.02.2.60. Seguimiento a las licencias de fabricación de derivados de cannabis
A26: 121100 | B26: UNIDAD DE SERVICIOS PENITENCIARIOS Y CARCELARIOS - USPEC | C26: JUSTICIA Y DEL DERECHO | E26: FONDO SOBRETASA AL ACPM (LEY 488/98) | F26: 6046 | Q26: Aporte pensionados - Fondo de Solidaridad Pensional | R26: 39 | W26: Expedición de información no sujeta a reserva legal | X26: 25 | Z26: 1.02.1.04.10. Contribución - Superintendencia Financiera de Colombia | AC26: 1.02.2.16. Expedición de bases de datos sujeta a reserva legal | AF26: 1.02.1.04.07. Contribución - Superintendencia del Subsidio Familiar | AI26: 1.02.2.68. Derechos marítimos
A27: 130101 | B27: MINISTERIO DE HACIENDA Y CRÉDITO PÚBLICO - GESTIÓN GENERAL | C27: HACIENDA | E27: FONDO PARA DEFENSA DE DERECHOS E INTERESES COLECTIVOS | F27: 6049 | Q27: Contribución cultural a la boletería de los espectáculos públicos | R27: 41 | W27: Expedición de la tarjeta de movilidad fronteriza | X27: 26 | Z27: 1.02.1.04.11. Contribución - Superintendencia de Servicios Públicos Domiciliarios | AC27: 1.02.2.17. Expedición de certificaciones excepcionales de nacionalidad | AF27: 1.02.1.04.13. Contribución - Fondo de Compensación Ambiental | AI27: 1.02.2.69. Tasas Servicio de seguridad marítima
A28: 130117 | B28: UNIDAD ADMINISTRATIVA ESPECIAL AGENCIA DEL INSPECTOR GENERAL DE TRIBUTOS, RENTAS Y CONTRIBUCIONES PARAFISCALES (ITRC) | C28: HACIENDA | E28: FONDO DE INVESTIGACION EN SALUD (Ley643/01) | F28: 6050 | Q28: Recursos por la explotación de juegos de suerte y azar – Fondo de Investigación en Salud | R28: 42 | W28: Inscripción al sistema de migración automática | X28: 27 | Z28: 1.02.1.04.12. Contribución - Superintendencia de Puertos y Transporte | AC28: 1.02.2.18. Expedición de certificados de Registro Civil | AF28: 1.02.1.04.14. Contribución - Fondo Apoyo Financiero Zonas No Interconectadas (FAZNI) | AI28: 1.02.2.70. Expedición de tarjetas de reservista y provisional
A29: 130118 | B29: UNIDAD ADMINISTRATIVA ESPECIAL UNIDAD DE PROYECCIÓN NORMATIVA Y ESTUDIOS DE REGULACIÓN FINANCIERA (URF) | C29: HACIENDA | E29: FONDO CONSERVACIÓN DE MUSEOS Y TEATROS | F29: 6051 | Q29: Contribución - Fondo Industria de la Construcción (FIC) | R29: 43 | W29: Verificación migratoria en el sistema PLATINUM | X29: 28 | Z29: 1.02.1.04.23. Contribución pensionados militares y policía | AC29: 1.02.2.19. Impresión de publicaciones de la Organización Electoral | AF29: 1.02.1.04.15. Contribución - Fondo Apoyo Financiero para la Energización de las Zonas Rurales Interconectadas (FAER) | AI29: 1.02.2.71. Expedición de cédulas militares y policiales
A30: 130800 | B30: UNIDAD ADMINISTRATIVA ESPECIAL CONTADURÍA GENERAL DE LA NACIÓN | C30: HACIENDA | E30: FONDO APOYO FINANCIERO ZONAS NO INTERCONECTADAS (FAZNI) | F30: 6052 | Q30: Contribución SOAT - Fondo Nacional de Seguridad Vial | R30: 44 | W30: Expedición de registros sanitarios | X30: 29 | Z30: 1.02.1.04.33. Derecho económico por precios altos | AC30: 1.02.2.20. Venta de licencias de software | AF30: 1.02.1.04.16. Contribución - Fondo de Energías No Convencionales y Gestión Eficiente de la Energía (FENOGE)
A31: 130900 | B31: SUPERINTENDENCIA DE LA ECONOMÍA SOLIDARIA | C31: HACIENDA | E31: FONDO APOYO FINANCIERO PARA LA ENERGIZACIÓN DE LAS ZONAS RURALES INTERCONECTADAS (FAER) | F31: 6053 | Q31: Contribución - Fondo de Seguridad y Convivencia | R31: 46 | W31: Renovación de la capacidad de laboratorios | X31: 30 | Z31: 1.02.1.04.34. Derecho económico por participación en la producción | AC31: 1.02.2.21. Expedición de cédulas de extranjería | AF31: 1.02.1.04.17. Contribución - Fondo Especial de Energía Social (FOES)
A32: 131000 | B32: UNIDAD ADMINISTRATIVA ESPECIAL DIRECCIÓN DE IMPUESTOS Y ADUANAS NACIONALES | C32: HACIENDA | E32: FONDO RECURSOS MONITOREO Y VIGILANCIA EDUCACION SUPERIOR | F32: 6055 | Q32: Contribucción - Fondo de Curadores Urbanos | R32: 49 | W32: Realización de exámenes de laboratorio | X32: 31 | Z32: 1.02.1.04.40. Contribución Nacional de Valorización | AC32: 1.02.2.22. Certificación de movimientos migratorios | AF32: 1.02.1.04.18. Contribución - Fondo Especial Cuota de Fomento de Gas Natural | AI32: TRANSFERENCIAS CORRIENTES- FE
A33: 131200 | B33: UNIDAD DE INFORMACIÓN Y ANÁLISIS FINANCIERO | C33: HACIENDA | E33: FONDO FONPET - MAGISTERIO | F33: 6056 | Q33: Contribución - Fondo Notarias Decreto 1672 de 1997 | R33: 50 | W33: Expedición de certificados de registro sanitario | X33: 32 | Z33: 1.02.1.04.45. Contribución Industria Militar - ICFE | AC33: 1.02.2.23. Permisos de ingreso y permanencia en el país | AF33: 1.02.1.04.19. Contribución - Fondo Especial para el programa de Normalización de Redes Eléctricas (Prone) | AI33: 1.02.6.01. Indemnizaciones relacionadas con seguros no de vida
A34: 131300 | B34: SUPERINTENDENCIA FINANCIERA DE COLOMBIA | C34: HACIENDA | E34: FONDO ESPECIAL DE ENERGÍA SOCIAL (FOES ART.118 DE LA LEY 812 DE 2003). | F34: 6057 | Q34: Contribución - Servicios notariales | R34: 51 | W34: Peajes | X34: 33 | Z34: 1.02.1.04.48. Monetización cuota de aprendizaje | AC34: 1.02.2.24. Expedición de salvoconductos de permanencia y salida del país | AF34: 1.02.1.04.20. Contribución – Fondo de Solidaridad para Subsidios y Redistribución de Ingresos | AI34: 1.02.6.03. Prescripción de depósitos judiciales
A35: 131401 | B35: UNIDAD ADMINISTRATIVA ESPECIAL DE GESTIÓN PENSIONAL Y CONTRIBUCIONES PARAFISCALES DE LA PROTECCIÓN SOCIAL (UGPPP) - GESTIÓN GENERAL | C35: HACIENDA | E35: FONDO CUENTA DE CAPACITACIÓN Y PUBLICACIONES DE LA CONTRALORIA GENERAL REPUBLICA | F35: 6059 | Q35: De Indumil | R35: 52 | W35: Permiso para transporte de carga | X35: 34 | Z35: 1.02.1.04.51. Contribucción servicios notariales | AC35: 1.02.2.25. Expedición de información no sujeta a reserva legal | AF35: 1.02.1.04.21. Contribución - Fondo Emprender | AI35: 1.02.6.04. Devolución IVA - Instituciones de educación superior
A36: 131500 | B36: FONDO ADAPTACIÓN | C36: HACIENDA | E36: FONDO DE PENSIONES FONDO ROTATORIO DE NOTARIADO Y REGISTRO | F36: 6060 | W36: Autorización para el uso de materiales radiactivos y nucleares | X36: 35 | AC36: 1.02.2.26. Expedición de la tarjeta de movilidad fronteriza | AF36: 1.02.1.04.22. Contribución – Fondo Nacional de las Universidades Estatales de Colombia | AI36: 1.02.6.05. Transferencias de otras unidades de gobierno
A37: 140100 | B37: SERVICIO DE LA DEUDA PÚBLICA NACIONAL | C37: SERVICIO DE LA DEUDA PÚBLICA NACIONAL | E37: FONDO ESPECIAL COMISION NACIONAL DE BUSQUEDA (ART 18 LEY 971/05) | F37: 6061 | W37: Evaluación de licencias y trámites ambientales | X37: 36 | AC37: 1.02.2.27. Inscripción al sistema de migración automática | AF37: 1.02.1.04.24. Cuota de compensación militar - Fondo de Defensa Nacional | AI37: 1.02.6.06. Recursos de terceros en consignación
A38: 150101 | B38: MINISTERIO DE DEFENSA NACIONAL - GESTIÓN GENERAL | C38: DEFENSA Y POLICÍA | E38: FONDO ESPECIAL CUOTA DE FOMENTO DE GAS NATURAL | F38: 6062 | W38: Seguimiento a licencias y trámites ambientales | X38: 37 | AC38: 1.02.2.28. Verificación migratoria en el sistema PLATINUM | AF38: 1.02.1.04.25. Aporte sobre pólizas de seguros - Fondo Nacional de Bomberos de Colombia | AI38: 1.02.6.08. Recursos por procesos de extinción de dominio
A39: 150102 | B39: MINISTERIO DE DEFENSA NACIONAL - COMANDO GENERAL | C39: DEFENSA Y POLICÍA | E39: FONDO ESPECIAL PARA PROGRAMA DE NORMALIZACIÓN DE REDES ELECTRICAS | F39: 6063 | W39: Tasa de inspección y vigilancia - Superintendencia Nacional de Salud | X39: 38 | AC39: 1.02.2.29. Expedición de registros sanitarios | AF39: 1.02.1.04.27. Arancel judicial - Ley 1394 de 2010 | AI39: 1.02.6.09. Compensación UPC – SSS
A40: 150103 | B40: MINISTERIO DE DEFENSA NACIONAL - EJÉRCITO | C40: DEFENSA Y POLICÍA | E40: FONDO ESPECIAL REGISTRO UNICO NACIONAL DE TRANSITO - RUNT | F40: 6066 | W40: Expedición de tarjetas profesionales | X40: 39 | Z40: MULTAS Y SANCIONES - ESTAPÚBLICO | AC40: 1.02.2.30. Renovación de la capacidad de laboratorios | AF40: 1.02.1.04.28. Arancel judicial CSJ - Ley 1653 de 2013 | AI40: 1.02.6.10.Recursos FRISCO
A41: 150104 | B41: MINISTERIO DE DEFENSA NACIONAL - ARMADA | C41: DEFENSA Y POLICÍA | E41: FONDO DE MODERNIZACIÓN, DESCONGESTIÓN Y BIENESTAR DE LA ADMINISTRACIÓN DE JUSTICIA | F41: 6067 | W41: Derechos de registro | X41: 40 | Z41: 1.02.3.01.01. Multas Superintendencias | AC41: 1.02.2.31. Realización de exámenes de laboratorio | AF41: 1.02.1.04.29. Arancel judicial - Ley 1743 de 2014 | AI41: 1.02.6.12.Prescripción especial adquisitivo de dominio
A42: 150105 | B42: MINISTERIO DE DEFENSA NACIONAL - FUERZA AÉREA | C42: DEFENSA Y POLICÍA | E42: FONDO RENTAS MONOPOLIO PARA EL SECTOR SALUD - LEY 643 DE 2001 | F42: 6068 | W42: Permiso para el uso del espectro radioeléctrico | X42: 42 | Z42: 1.02.3.01.02. Sanciones Aduaneras | AC42: 1.02.2.32. Expedición de certificados de registro sanitario | AF42: 1.02.1.04.30. Contribución especial arbitral | AI42: 1.02.6.13.Recursos por acuerdos de compartición Ley 1743 de 2014
A43: 150111 | B43: MINISTERIO DE DEFENSA NACIONAL - SALUD | C43: DEFENSA Y POLICÍA | E43: FONDO ESPECIAL IMPUESTO SOBRE LA RENTA PARA LA EQUIDAD - CREE | F43: 6069 | W43: Permiso por tenencia y porte de armas | X43: 43 | Z43: 1.02.3.01.03. Sanciones disciplinarias | AC43: 1.02.2.33. Peajes | AF43: 1.02.1.04.31. Contribución especial para laudos arbitrales de contenido económico | AI43: 1.02.6.14.Del Fondo para la Modernización, Descongestión y Bienestar de la Administración de la Justicia
A44: 150112 | B44: MINISTERIO DE DEFENSA NACIONAL - DIRECCIÓN GENERAL MARITIMA (DIMAR) | C44: DEFENSA Y POLICÍA | E44: FONDO NACIONAL DE BOMBEROS DE COLOMBIA | F44: 6070 | W44: Derecho de ingreso áreas protegidas | X44: 44 | Z44: 1.02.3.01.04. Sanciones contractuales | AC44: 1.02.2.34. Permiso para transporte de carga | AF44: 1.02.1.04.36. Aporte afiliados al Sistema General de Pensiones - Subcuenta de Solidaridad | AI44: 1.02.6.15.Distribucción Ley 55 de 1985 Superintendencia de Notariado y Registro
A45: 150113 | B45: MINISTERIO DE DEFENSA NACIONAL - DIRECCIÓN DE VETERANOS Y REHABILITACIÓN INCLUSIVA | C45: DEFENSA Y POLICÍA | E45: FONDOS MINISTERIO JUSTICIA | F45: 6071 | W45: Servicios de asistencia técnica en materia metrológica | X45: 45 | Z45: 1.02.3.01.05. Sanciones administrativas | AC45: 1.02.2.35. Autorización para el uso de materiales radiactivos y nucleares | AF45: 1.02.1.04.37. Aporte afiliados al Sistema General de Pensiones - Subcuenta de Subsistencia
A46: 150300 | B46: CAJA DE RETIRO DE LAS FUERZAS MILITARES | C46: DEFENSA Y POLICÍA | E46: FONDO DESARROLLO PEQUEÑA Y MEDIANA MINERÍA (ART. 151 LEY 1530 DE 2012) | F46: 6073 | W46: Capacitación en metrología | X46: 46 | Z46: 1.02.3.01.06. Sanciones fiscales | AC46: 1.02.2.36. Evaluación de licencias y trámites ambientales | AF46: 1.02.1.04.38. Aportes diferenciales - Fondo de Solidaridad Pensional
A47: 150700 | B47: INSTITUTO CASAS FISCALES DEL EJÉRCITO | C47: DEFENSA Y POLICÍA | E47: FONDO ESPECIAL DE PENSIONES TELECOM, INRAVISIÓN Y TELEASOCIADAS | F47: 6074 | W47: Calibración y medición metrológica | X47: 47 | Z47: 1.02.3.01.07. Multas judiciales | AC47: 1.02.2.37. Seguimiento a licencias y trámites ambientales | AF47: 1.02.1.04.39. Aporte pensionados - Fondo de Solidaridad Pensional
A48: 150800 | B48: DEFENSA CIVIL COLOMBIANA, GUILLERMO LEÓN VALENCIA | C48: DEFENSA Y POLICÍA | E48: FONDO NACIONAL DE LAS UNIVERSIDADES ESTATALES DE COLOMBIA | F48: 6075 | W48: Comparación interlaboratorios | X48: 48 | Z48: 1.02.3.01.08. Sanciones por desestimiento | AC48: 1.02.2.38. Tasa de inspección y vigilancia – Superintendencia Nacional de Salud | AF48: 1.02.1.04.41. Contribución cultural a la boletería de los espectáculos públicos
A49: 151000 | B49: CLUB MILITAR DE OFICIALES | C49: DEFENSA Y POLICÍA | E49: FONDO DE ENERGÍAS NO CONVENCIONALES Y GESTIÓN EFICIENTE DE LA ENERGÍA | F49: 6077 | W49: Comercialización de materiales de referencia | X49: 49 | AC49: 1.02.2.39. Expedición de tarjetas profesionales | AF49: 1.02.1.04.42. Recursos por la explotación de juegos de suerte y azar – Fondo de Investigación en Salud
A50: 151100 | B50: CAJA DE SUELDOS DE RETIRO DE LA POLICÍA NACIONAL | C50: DEFENSA Y POLICÍA | E50: FONDO DE RESTITUCION DE TIERRAS DESPOJADAS | F50: 6078 | W50: Explotación de las concesiones de televisión | X50: 51 | Z50: DERECHOS ECONÓMICOS POR USO DE RECURSOS NATURALES- EP | AC50: 1.02.2.40. Derechos de registro | AF50: 1.02.1.04.43. Contribución - Fondo Industria de la Construcción (FIC)
A51: 151201 | B51: FONPOLICÍA - GESTIÓN GENERAL | C51: DEFENSA Y POLICÍA | E51: FONDO DE LA DIRECCIÓN DE CONSULTA PREVIA | F51: 6079 | W51: Derechos de aeródromo | X51: 53 | Z51: 1.02.4.01. Derecho económico por uso del subsuelo | AC51: 1.02.2.42. Permiso para el uso del espectro radioeléctrico | AF51: 1.02.1.04.44. Contribución SOAT - Fondo Nacional de Seguridad Vial
A52: 151600 | B52: SUPERINTENDENCIA DE VIGILANCIA Y SEGURIDAD PRIVADA | C52: DEFENSA Y POLICÍA | E52: FONDO PARA EL FORTALECIMIENTO DE LA INSPECCIÓN, VIGILANCIA Y CONTROL DEL TRABAJO Y LA SEGURIDAD SOCIAL - FIVICOT | F52: 6080 | W52: Tasas aeroportuarias | X52: 54 | Z52: 1.02.4.02. Concesiones mineras | AC52: 1.02.2.43. Permiso por tenencia y porte de armas | AF52: 1.02.1.04.46. Contribución - Fondo de Seguridad y Convivencia
A53: 151900 | B53: HOSPITAL MILITAR | C53: DEFENSA Y POLICÍA | E53: FONDO DE MITIGACIÓN DE EMERGENCIAS - FOME | F53: 6081 | W53: Permiso para la toma de fotografías y videos en parque naturales | X53: 55 | Z53: 1.02.4.03. Contraprestaciones portuarias | AC53: 1.02.2.44. Derecho de ingreso áreas protegidas | AF53: 1.02.1.04.49 Contribución Fondo de Curadores Urbanos
A54: 152000 | B54: AGENCIA LOGÍSTICA DE LAS FUERZAS MILITARES | C54: DEFENSA Y POLICÍA | E54: FONDO DE ESTABILIZACIÓN DEL INGRESO FISCAL – FEIF | F54: 6082 | W54: Tasa por el uso de agua | X54: 56 | Z54: 1.02.4.05. Concesiones parques naturales | AC54: 1.02.2.45. Servicios de asistencia técnica en materia metrológica | AF54: 1.02.1.04.50 Contribución Fondo Notarias Decreto 1672 de 1997
A55: 152100 | B55: UNIDAD ADMINISTRATIVA ESPECIAL DE LA JUSTICIA PENAL MILITAR Y POLICIAL | C55: DEFENSA Y POLICÍA | E55: FONDO DE ESTABILIZACIÓN DE LOS PRECIOS DE LOS COMBUSTIBLES – FEPC | F55: 6083 | W55: Evaluación de calidad de las estadísticas | X55: 57 | AC55: 1.02.2.46. Capacitación en metrología | AF55: 1.02.1.04.51 Contribución Servicios Notariales
A56: 160101 | B56: POLICÍA NACIONAL - GESTIÓN GENERAL | C56: DEFENSA Y POLICÍA | E56: FONDO PARA LA PROMOCIÓN DEL PATRIMONIO, LA CULTURA, LAS ARTES Y LA CREATIVIDAD -FONCULTURA- LEY 2070 DE 2020 | F56: 6084 | W56: Acreditación de laboratorios ambientales | X56: 61 | AC56: 1.02.2.47. Calibración y medición metrológica | AF56: 1.02.1.04.52 De Indumil
A57: 160102 | B57: POLICÍA NACIONAL - SALUD | C57: DEFENSA Y POLICÍA | E57: FONDO DE REPARACIÓN DE VICTIMAS | F57: 321 | W57: Derecho por el registro de marcas | X57: 62 | Z57: TRANSFERENCIAS CORRIENTES- EP | AC57: 1.02.2.48. Comparación interlaboratorios
A58: 160103 | B58: POLICIA NACIONAL - EDUCACION | C58: DEFENSA Y POLICÍA | E58: FONDO EMPRENDER | F58: 322 | W58: Expedición de antecedentes disciplinarios profesionales | X58: 63 | Z58: 1.02.6.01. Indemnizaciones relacionadas con seguros no de vida | AC58: 1.02.2.49. Comercialización de materiales de referencia
A59: 170101 | B59: MINAGRICULTURA - GESTIÓN GENERAL | C59: AGRICULTURA Y DESARROLLO RURAL | E59: FONDO NACIONAL DE SEGURIDAD VIAL | F59: 323 | W59: Certificados catastrales | X59: 65 | Z59: 1.02.6.02. Sentencias y conciliaciones | AC59: 1.02.2.51. Explotación de las concesiones de televisión
A60: 170106 | B60: UNIDAD DE PLANIFICACION DE TIERRAS RURALES, ADECUACION DE TIERRAS Y USOS AGROPECUARIOS (UPRA) | C60: AGRICULTURA Y DESARROLLO RURAL | E60: FONDO FISCALIZACIÓN MINERA | F60: 324 | W60: Tasa por el uso de la insfraestructura de transporte | X60: 66 | Z60: 1.02.6.04 Devolución IVA - Instituciones de educación superior | AC60: 1.02.2.53. Derechos de aeródromo
A61: 170200 | B61: INSTITUTO COLOMBIANO AGROPECUARIO (ICA) | C61: AGRICULTURA Y DESARROLLO RURAL | E61: FONDO VIVIENDA - SENA | F61: 325 | W61: Por uso de laboratorios y espacioes físicos | X61: 67 | Z61: 1.02.6.05. Transferencias de otras unidades de gobierno | AC61: 1.02.2.54. Tasas aeroportuarias
A62: 171500 | B62: AUTORIDAD NACIONAL DE ACUICULTURA Y PESCA - AUNAP | C62: AGRICULTURA Y DESARROLLO RURAL | E62: FONDO VIVIENDA - SUPERINTENDENCIA NOTARIADO Y REGISTRO | F62: 326 | W62: Expedición de permisos para ejercer actividades pesqueras | X62: 72 | Z62: 1.02.6.07. Recursos por bienes mostrencos y vocaciones hereditarias | AC62: 1.02.2.55. Permiso para la toma de fotografías y videos en parque naturales
A63: 171600 | B63: UNIDAD ADMINISTRATIVA ESPECIAL DE GESTION DE RESTITUCION DE TIERRAS DESPOJADAS | C63: AGRICULTURA Y DESARROLLO RURAL | E63: FONDO INDUSTRIA DE LA CONSTRUCCION FIC | F63: 327 | W63: Expedición de patentes de pesca | X63: 73 | Z63: 1.02.6.09. Compensación UPC – SSS | AC63: 1.02.2.56. Tasa por el uso de agua
A64: 171700 | B64: AGENCIA NACIONAL DE TIERRAS - ANT | C64: AGRICULTURA Y DESARROLLO RURAL | E64: FONDO NOTARIAS DECRETO 1672 DE 1997 | F64: 328 | W64: Contraprestación para la provisión de redes y servicios | X64: 74 | Z64: 1.02.6.11. Mercancías Aprehendidas, Decomisadas o Abandonadas | AC64: 1.02.2.57. Evaluación de calidad de las estadísticas
A65: 171800 | B65: AGENCIA DE DESARROLLO RURAL - ADR | C65: AGRICULTURA Y DESARROLLO RURAL | E65: FONDOS INPEC | F65: 329 | AC65: 1.02.2.61. Acreditación de laboratorios ambientales
A66: 190101 | B66: MINISTERIO DE SALUD Y PROTECCION SOCIAL - GESTION GENERAL | C66: SALUD Y PROTECCIÓN SOCIAL | E66: FONDO CONTRA LA EXPLOTACIÓN SEXUAL DE MENORES | F66: 3210 | Z66: CONTRIBUCIONES SOCIALES -FE | AC66: 1.02.2.62. Derecho por el registro de marcas
A67: 190106 | B67: MINISTERIO DE SALUD Y PROTECCIÓN SOCIAL - UNIDAD ADMINISTRATIVA ESPECIAL FONDO NACIONAL DE ESTUPEFACIENTES | C67: SALUD Y PROTECCIÓN SOCIAL | E67: FONDO DE CURADORES URBANOS | F67: 3211 | W67: TASAS Y DERECHOS ADMINISTRATIVOS - FE | X67: CÓD | Z67: 1.02.1.01.01. Salud | AC67: 1.02.2.63. Expedición de antecedentes disciplinarios profesionales
A68: 190300 | B68: INSTITUTO NACIONAL DE SALUD (INS) | C68: SALUD Y PROTECCIÓN SOCIAL | E68: FONDO PARA LA ADMINISTRACIÓN DE BIENES DE LA FISCALIA | F68: 3212 | W68: Certificaciones y constancias | X68: 15 | Z68: 1.02.1.01.02. Pensión | AC68: 1.02.2.65. Certificados catastrales
A69: 191000 | B69: SUPERINTENDENCIA NACIONAL DE SALUD | C69: SALUD Y PROTECCIÓN SOCIAL | E69: FONDO DE PRESTACIONES SOCIALES DEL MAGISTERIO | F69: 501 | W69: Expedición de tarjetas profesionales | X69: 39 | AC69: 1.02.2.66. Tasa por el uso de la insfraestructura de transporte
A70: 191200 | B70: INSTITUTO NACIONAL DE VIGILANCIA DE MEDICAMENTOS Y ALIMENTOS - INVIMA | C70: SALUD Y PROTECCIÓN SOCIAL | E70: CONTRIBUCIÓN ESPECTÁCULOS PÚBLICOS (ART. 7 LEY 1493 DE 2011) | F70: 502 | W70: Derechos de registro | X70: 40 | AC70: 1.02.2.67. Por uso de laboratorios y espacioes físicos
A71: 191301 | B71: FONDO DE PREVISIÓN SOCIAL DEL CONGRESO - PENSIONES | C71: SALUD Y PROTECCIÓN SOCIAL | W71: Autorización para el manejo de sustancias químicas controladas | X71: 41 | Z71: CONTRIBUCIONES ASOCIADAS A NÓMINA -FE | AC71: 1.02.2.72. Expedición de permisos para ejercer actividades pesqueras
A72: 191302 | B72: FONDO DE PREVISIÓN SOCIAL DEL CONGRESO - CESANTÍAS Y VIVIENDA | C72: SALUD Y PROTECCIÓN SOCIAL | W72: Permiso por tenencia y porte de armas | X72: 43 | Z72: 1.02.1.02.04. Escuelas industriales e institutos técnicos | AC72: 1.02.2.73. Expedición de patentes de pesca
A73: 191401 | B73: FONDO PASIVO SOCIAL DE FERROCARRILES NACIONALES DE COLOMBIA - SALUD | C73: SALUD Y PROTECCIÓN SOCIAL | W73: Tasa para la sostenibilidad del RUNT | X73: 50 | Z73: 1.02.1.02.05. Aportes de cesantías | AC73: 1.02.2.74. Contraprestación para la provisión de redes y servicios
A74: 191402 | B74: FONDO PASIVO SOCIAL DE FERROCARRILES NACIONALES DE COLOMBIA - PENSIONES | C74: SALUD Y PROTECCIÓN SOCIAL | W74: Fiscalización y seguimiento a títulos mineros | X74: 52
A75: 210101 | B75: MINISTERIO DE MINAS Y ENERGIA - GESTION GENERAL | C75: MINAS Y ENERGÍA | W75: Expedición de licencias de fabricación de derivados de cannabis | X75: 59
A76: 210113 | B76: MINISTERIO DE MINAS Y ENERGIA - COMISION DE REGULACION DE ENERGIA Y GAS - CREG - | C76: MINAS Y ENERGÍA | W76: Seguimiento a las licencias de fabricación de derivados de cannabis | X76: 60
A77: 210300 | B77: SERVICIO GEOLOGICO COLOMBIANO | C77: MINAS Y ENERGÍA | W77: Derechos marítimos | X77: 68
A78: 210900 | B78: UNIDAD DE PLANEACION MINERO ENERGETICA - UPME | C78: MINAS Y ENERGÍA | W78: Tasas Servicio de seguridad marítima | X78: 69
A79: 211000 | B79: INSTITUTO DE PLANIFICACION Y PROMOCION DE SOLUCIONES ENERGETICAS PARA LAS ZONAS NO INTERCONECTADAS - IPSE | C79: MINAS Y ENERGÍA | W79: Expedición de tarjetas de reservista y provisional | X79: 70
A80: 211100 | B80: AGENCIA NACIONAL DE HIDROCARBUROS - ANH | C80: MINAS Y ENERGÍA | W80: Expedición de cédulas militares y policiales | X80: 71
A81: 211200 | B81: AGENCIA NACIONAL DE MINERIA - ANM | C81: MINAS Y ENERGÍA
A82: 220101 | B82: MINISTERIO EDUCACION NACIONAL - GESTION GENERAL | C82: EDUCACIÓN
A83: 223400 | B83: ESCUELA TECNOLOGICA INSTITUTO TECNICO CENTRAL | C83: EDUCACIÓN
A84: 223800 | B84: INSTITUTO NACIONAL DE FORMACION TECNICA PROFESIONAL DE SAN ANDRES Y PROVIDENCIA | C84: EDUCACIÓN
A85: 223900 | B85: INSTITUTO NACIONAL DE FORMACION TECNICA PROFESIONAL DE SAN JUAN DEL CESAR | C85: EDUCACIÓN
A86: 224100 | B86: INSTITUTO TOLIMENSE DE FORMACION TECNICA PROFESIONAL | C86: EDUCACIÓN
A87: 224200 | B87: INSTITUTO TECNICO NACIONAL DE COMERCIO SIMON RODRIGUEZ DE CALI | C87: EDUCACIÓN
A88: 224600 | B88: UNIDAD ADMINISTRATIVA ESPECIAL DE ALIMENTACION ESCOLAR | C88: EDUCACIÓN
A89: 225701 | B89: UNIVERSIDADES PUBLICAS - UNIVERSIDAD NACIONAL DE COLOMBIA | C89: EDUCACIÓN
A90: 225702 | B90: UNIVERSIDADES PÚBLICAS - UNIVERSIDAD DE ANTIOQUIA | C90: EDUCACIÓN
A91: 225703 | B91: UNIVERSIDADES PÚBLICAS - UNIVERSIDAD DEL VALLE | C91: EDUCACIÓN
A92: 225704 | B92: UNIVERSIDADES PÚBLICAS - UNIVERSIDAD INDUSTRIAL DE SANTANDER | C92: EDUCACIÓN
A93: 225705 | B93: UNIVERSIDADES PUBLICAS - UNIVERSIDAD PEDAGOGICA Y TECNOLOGICA DE COLOMBIA | C93: EDUCACIÓN
A94: 225706 | B94: UNIVERSIDADES PÚBLICAS - UNIVERSIDAD DISTRITAL FRANCISCO JOSE DE CALDAS | C94: EDUCACIÓN
A95: 225707 | B95: UNIVERSIDADES PÚBLICAS - UNIVERSIDAD DE CARTAGENA | C95: EDUCACIÓN
A96: 225708 | B96: UNIVERSIDADES PÚBLICAS - UNIVERSIDAD DE NARIÑO | C96: EDUCACIÓN
A97: 225709 | B97: UNIVERSIDADES PUBLICAS - UNIVERSIDAD NACIONAL ABIERTA Y A DISTANCIA UNAD | C97: EDUCACIÓN
A98: 225710 | B98: UNIVERSIDADES PÚBLICAS - UNIVERSIDAD DEL MAGDALENA | C98: EDUCACIÓN
A99: 225711 | B99: UNIVERSIDADES PUBLICAS - UNIVERSIDAD DEL CAUCA | C99: EDUCACIÓN
A100: 225712 | B100: UNIVERSIDADES PUBLICAS - UNIVERSIDAD TECNOLOGICA DE PEREIRA | C100: EDUCACIÓN
A101: 225713 | B101: UNIVERSIDADES PÚBLICAS - UNIVERSIDAD DE PAMPLONA | C101: EDUCACIÓN
A102: 225714 | B102: UNIVERSIDADES PUBLICAS - UNIVERSIDAD SURCOLOMBIANA | C102: EDUCACIÓN
A103: 225715 | B103: UNIVERSIDADES PUBLICAS - UNIVERSIDAD PEDAGOGICA NACIONAL | C103: EDUCACIÓN
A104: 225716 | B104: UNIVERSIDADES PUBLICAS - UNIVERSIDAD DE CALDAS | C104: EDUCACIÓN
A105: 225717 | B105: UNIVERSIDADES PÚBLICAS - UNIVERSIDAD MILITAR NUEVA GRANADA | C105: EDUCACIÓN
A106: 225718 | B106: UNIVERSIDADES PÚBLICAS - UNIVERSIDAD DEL ATLÁNTICO | C106: EDUCACIÓN
A107: 225719 | B107: UNIVERSIDADES PÚBLICAS - UNIVERSIDAD DEL TOLIMA | C107: EDUCACIÓN
A108: 225720 | B108: UNIVERSIDADES PUBLICAS - UNIVERSIDAD DE CORDOBA | C108: EDUCACIÓN
A109: 225721 | B109: UNIVERSIDADES PÚBLICAS - UNIVERSIDAD DEL QUINDÍO | C109: EDUCACIÓN
A110: 225722 | B110: UNIVERSIDADES PUBLICAS - UNIVERSIDAD POPULAR DEL CESAR | C110: EDUCACIÓN
A111: 225723 | B111: UNIVERSIDADES PUBLICAS - UNIVERSIDAD DE LOS LLANOS | C111: EDUCACIÓN
A112: 225724 | B112: UNIVERSIDADES PÚBLICAS - UNIVERSIDAD FRANCISCO DE PAULA SANTANDER | C112: EDUCACIÓN
A113: 225725 | B113: UNIVERSIDADES PÚBLICAS - UNIVERSIDAD FRANCISCO DE PAULA SANTANDER SECCIONAL OCAÑA | C113: EDUCACIÓN
A114: 225726 | B114: UNIVERSIDADES PUBLICAS - UNIVERSIDAD DE LA AMAZONIA | C114: EDUCACIÓN
A115: 225727 | B115: UNIVERSIDADES PUBLICAS - UNIVERSIDAD COLEGIO MAYOR DE CUNDINAMARCA | C115: EDUCACIÓN
A116: 225728 | B116: UNIVERSIDADES PÚBLICAS - UNIVERSIDAD DE CUNDINAMARCA | C116: EDUCACIÓN
A117: 225729 | B117: UNIVERSIDADES PUBLICAS - UNIVERSIDAD TECNOLOGICA DEL CHOCO DIEGO LUIS CORDOBA | C117: EDUCACIÓN
A118: 225730 | B118: UNIVERSIDADES PÚBLICAS - UNIVERSIDAD DE SUCRE | C118: EDUCACIÓN
A119: 225731 | B119: UNIVERSIDADES PÚBLICAS - UNIVERSIDAD DE LA GUAJIRA | C119: EDUCACIÓN
A120: 225732 | B120: UNIVERSIDADES PUBLICAS - UNIVERSIDAD DEL PACIFICO | C120: EDUCACIÓN
A121: 225733 | B121: UNIVERSIDADES PÚBLICAS - UNIVERSIDAD INTERNACIONAL DEL TRÓPICO AMERICANO | C121: EDUCACIÓN
A122: 225734 | B122: UNIVERSIDADES PÚBLICAS - UNIVERSIDAD AUTÓNOMA INDÍGENA INTERCULTURAL UAIIN CRIC | C122: EDUCACIÓN
A123: 230101 | B123: MINISTERIO DE TECNOLOGÍAS DE LA INFORMACIÓN Y LAS COMUNICACIONES - GESTIÓN GENERAL | C123: TECNOLOGÍAS DE LA INFORMACIÓN Y LAS COMUNICACIONES
A124: 230600 | B124: FONDO UNICO DE TECNOLOGIAS DE LA INFORMACION Y LAS COMUNICACIONES | C124: TECNOLOGÍAS DE LA INFORMACIÓN Y LAS COMUNICACIONES
A125: 230800 | B125: UNIDAD ADMINISTRATIVA ESPECIAL COMISION DE REGULACION DE COMUNICACIONES | C125: TECNOLOGÍAS DE LA INFORMACIÓN Y LAS COMUNICACIONES
A126: 230900 | B126: AGENCIA NACIONAL DEL ESPECTRO - ANE | C126: TECNOLOGÍAS DE LA INFORMACIÓN Y LAS COMUNICACIONES
A127: 231100 | B127: COMPUTADORES PARA EDUCAR (CPE) | C127: TECNOLOGÍAS DE LA INFORMACIÓN Y LAS COMUNICACIONES
A128: 231200 | B128: CORPORACIÓN AGENCIA NACIONAL DE GOBIERNO DIGITAL - AND | C128: TECNOLOGÍAS DE LA INFORMACIÓN Y LAS COMUNICACIONES
A129: 240101 | B129: MINISTERIO DE TRANSPORTE - GESTION GENERAL | C129: TRANSPORTE
A130: 240200 | B130: INSTITUTO NACIONAL DE VIAS | C130: TRANSPORTE
A131: 241200 | B131: UNIDAD ADMINISTRATIVA ESPECIAL DE LA AERONAUTICA CIVIL | C131: TRANSPORTE
A132: 241300 | B132: AGENCIA NACIONAL DE INFRAESTRUCTURA | C132: TRANSPORTE
A133: 241400 | B133: UNIDAD DE PLANEACION DEL SECTOR DE INFRAESTRUCTURA DE TRANSPORTE | C133: TRANSPORTE
A134: 241500 | B134: COMISIÓN DE REGULACIÓN DE INFRAESTRUCTURA Y TRANSPORTE | C134: TRANSPORTE
A135: 241600 | B135: AGENCIA NACIONAL DE SEGURIDAD VIAL | C135: TRANSPORTE
A136: 241700 | B136: SUPERINTENDENCIA DE PUERTOS Y TRANSPORTE | C136: TRANSPORTE
A137: 250101 | B137: PROCURADURIA GENERAL DE LA NACION - GESTION GENERAL | C137: ORGANISMOS DE CONTROL
A138: 250105 | B138: MINISTERIO PUBLICO - INSTITUTO DE ESTUDIOS DEL MINISTERIO PUBLICO | C138: ORGANISMOS DE CONTROL
A139: 250200 | B139: DEFENSORIA DEL PUEBLO | C139: ORGANISMOS DE CONTROL
A140: 260101 | B140: CONTRALORIA GENERAL DE LA REPUBLICA - GESTION GENERAL | C140: ORGANISMOS DE CONTROL
A141: 260200 | B141: FONDO DE BIENESTAR SOCIAL DE LA CONTRALORÍA GENERAL DE LA REPÚBLICA | C141: ORGANISMOS DE CONTROL
A142: 270102 | B142: RAMA JUDICIAL - CONSEJO SUPERIOR DE LA JUDICATURA | C142: RAMA JUDICIAL
A143: 270103 | B143: RAMA JUDICIAL - CORTE SUPREMA DE JUSTICIA | C143: RAMA JUDICIAL
A144: 270104 | B144: RAMA JUDICIAL - CONSEJO DE ESTADO | C144: RAMA JUDICIAL
A145: 270105 | B145: RAMA JUDICIAL - CORTE CONSTITUCIONAL | C145: RAMA JUDICIAL
A146: 270108 | B146: RAMA JUDICIAL - TRIBUNALES Y JUZGADOS | C146: RAMA JUDICIAL
A147: 270109 | B147: COMISIÓN NACIONAL DE DISCIPLINA JUDICIAL | C147: RAMA JUDICIAL
A148: 280101 | B148: REGISTRADURIA NACIONAL DEL ESTADO CIVIL - GESTION GENERAL | C148: REGISTRADURÍA
A149: 280102 | B149: REGISTRADURIA NACIONAL DEL ESTADO CIVIL - CONSEJO NACIONAL ELECTORAL | C149: REGISTRADURÍA
A150: 280200 | B150: FONDO ROTATORIO DE LA REGISTRADURIA | C150: REGISTRADURÍA
A151: 280300 | B151: FONDO SOCIAL DE VIVIENDA DE LA REGISTRADURÍA NACIONAL DEL ESTADO CIVIL | C151: REGISTRADURÍA
A152: 280400 | B152: CONSEJO NACIONAL ELECTORAL- CNE | C152: REGISTRADURÍA
A153: 290101 | B153: FISCALIA GENERAL DE LA NACION - GESTION GENERAL | C153: FISCALÍA
A154: 290200 | B154: INSTITUTO NACIONAL DE MEDICINA LEGAL Y CIENCIAS FORENSES | C154: FISCALÍA
A155: 290400 | B155: FONDO ESPECIAL PARA LA ADMINISTRACION DE BIENES DE LA FISCALIA GENERAL DE LA NACION | C155: FISCALÍA
A156: 320101 | B156: MINISTERIO DE AMBIENTE Y DESARROLLO SOSTENIBLE - GESTION GENERAL | C156: AMBIENTE Y DESARROLLO SOSTENIBLE
A157: 320102 | B157: PARQUES NACIONALES NATURALES DE COLOMBIA | C157: AMBIENTE Y DESARROLLO SOSTENIBLE
A158: 320104 | B158: AUTORIDAD NACIONAL DE LICENCIAS AMBIENTALES ANLA | C158: AMBIENTE Y DESARROLLO SOSTENIBLE
A159: 320200 | B159: INSTITUTO DE HIDROLOGIA, METEOROLOGIA Y ESTUDIOS AMBIENTALES - IDEAM | C159: AMBIENTE Y DESARROLLO SOSTENIBLE
A160: 320401 | B160: FONDO NACIONAL AMBIENTAL - GESTION GENERAL | C160: AMBIENTE Y DESARROLLO SOSTENIBLE
A161: 320800 | B161: CORPORACIÓN AUTÓNOMA REGIONAL DE LOS VALLES DEL SINÚ Y SAN JORGE (CVS) | C161: AMBIENTE Y DESARROLLO SOSTENIBLE
A162: 320900 | B162: CORPORACIÓN AUTÓNOMA REGIONAL DEL QUINDÍO (CRQ) | C162: AMBIENTE Y DESARROLLO SOSTENIBLE
A163: 321000 | B163: CORPORACIÓN PARA EL DESARROLLO SOSTENIBLE DEL URABÁ (CORPOURABÁ) | C163: AMBIENTE Y DESARROLLO SOSTENIBLE
A164: 321100 | B164: CORPORACIÓN AUTÓNOMA REGIONAL DE CALDAS (CORPOCALDAS) | C164: AMBIENTE Y DESARROLLO SOSTENIBLE
A165: 321200 | B165: CORPORACIÓN AUTÓNOMA REGIONAL PARA EL DESARROLLO SOSTENIBLE DEL CHOCO (CODECHOCO) | C165: AMBIENTE Y DESARROLLO SOSTENIBLE
A166: 321300 | B166: CORPORACIÓN AUTÓNOMA REGIONAL PARA LA DEFENSA DE LA MESETA DE BUCARAMANGA (CDMB) | C166: AMBIENTE Y DESARROLLO SOSTENIBLE
A167: 321400 | B167: CORPORACIÓN AUTÓNOMA REGIONAL DEL TOLIMA (CORTOLIMA) | C167: AMBIENTE Y DESARROLLO SOSTENIBLE
A168: 321500 | B168: CORPORACIÓN AUTÓNOMA REGIONAL DE RISARALDA (CARDER) | C168: AMBIENTE Y DESARROLLO SOSTENIBLE
A169: 321600 | B169: CORPORACIÓN AUTÓNOMA REGIONAL DE NARIÑO (CORPONARIÑO) | C169: AMBIENTE Y DESARROLLO SOSTENIBLE
A170: 321700 | B170: CORPORACIÓN AUTÓNOMA REGIONAL DE LA FRONTERA NORORIENTAL (CORPONOR) | C170: AMBIENTE Y DESARROLLO SOSTENIBLE
A171: 321800 | B171: CORPORACIÓN AUTÓNOMA REGIONAL DE LA GUAJIRA (CORPOGUAJIRA) | C171: AMBIENTE Y DESARROLLO SOSTENIBLE
A172: 321900 | B172: CORPORACIÓN AUTÓNOMA REGIONAL DEL CESAR (CORPOCESAR) | C172: AMBIENTE Y DESARROLLO SOSTENIBLE
A173: 322100 | B173: CORPORACIÓN AUTÓNOMA REGIONAL DEL CAUCA (CRC) | C173: AMBIENTE Y DESARROLLO SOSTENIBLE
A174: 322200 | B174: CORPORACIÓN AUTÓNOMA REGIONAL DEL MAGDALENA (CORPAMAG) | C174: AMBIENTE Y DESARROLLO SOSTENIBLE
A175: 322300 | B175: CORPORACIÓN PARA EL DESARROLLO SOSTENIBLE DEL SUR DE LA AMAZONIA (CORPOAMAZONIA) | C175: AMBIENTE Y DESARROLLO SOSTENIBLE
A176: 322400 | B176: CORPORACIÓN PARA EL DESARROLLO SOSTENIBLE DEL NORTE Y ORIENTE DE LA AMAZONIA (CDA) | C176: AMBIENTE Y DESARROLLO SOSTENIBLE
A177: 322600 | B177: CORPORACIÓN PARA EL DESARROLLO SOSTENIBLE DEL ARCHIPIÉLAGO DE SAN ANDRÉS, PROVIDENCIA Y SANTA CATALINA (CORALINA) | C177: AMBIENTE Y DESARROLLO SOSTENIBLE
A178: 322700 | B178: CORPORACIÓN PARA EL DESARROLLO SOSTENIBLE DEL ÁREA DE MANEJO ESPECIAL LA MACARENA (CORMACARENA) | C178: AMBIENTE Y DESARROLLO SOSTENIBLE
A179: 322800 | B179: CORPORACIÓN PARA EL DESARROLLO SOSTENIBLE DE LA MOJANA Y EL SAN JORGE (CORPOMOJANA) | C179: AMBIENTE Y DESARROLLO SOSTENIBLE
A180: 322900 | B180: CORPORACIÓN AUTÓNOMA REGIONAL DE LA ORINOQUIA (CORPORINOQUIA) | C180: AMBIENTE Y DESARROLLO SOSTENIBLE
A181: 323000 | B181: CORPORACIÓN AUTÓNOMA REGIONAL DE SUCRE (CARSUCRE) | C181: AMBIENTE Y DESARROLLO SOSTENIBLE
A182: 323100 | B182: CORPORACIÓN AUTÓNOMA REGIONAL DEL ALTO MAGDALENA (CAM) | C182: AMBIENTE Y DESARROLLO SOSTENIBLE
A183: 323200 | B183: CORPORACIÓN AUTÓNOMA REGIONAL DEL CENTRO DE ANTIOQUIA (CORANTIOQUIA) | C183: AMBIENTE Y DESARROLLO SOSTENIBLE
A184: 323300 | B184: CORPORACIÓN AUTÓNOMA REGIONAL DEL ATLÁNTICO (CRA) | C184: AMBIENTE Y DESARROLLO SOSTENIBLE
A185: 323400 | B185: CORPORACIÓN AUTÓNOMA REGIONAL DE SANTANDER (CAS) | C185: AMBIENTE Y DESARROLLO SOSTENIBLE
A186: 323500 | B186: CORPORACIÓN AUTÓNOMA REGIONAL DE BOYACÁ (CORPOBOYACÁ) | C186: AMBIENTE Y DESARROLLO SOSTENIBLE
A187: 323600 | B187: CORPORACIÓN AUTÓNOMA REGIONAL DE CHIVOR (CORPOCHIVOR) | C187: AMBIENTE Y DESARROLLO SOSTENIBLE
A188: 323700 | B188: CORPORACIÓN AUTÓNOMA REGIONAL DEL GUAVIO (CORPOGUAVIO) | C188: AMBIENTE Y DESARROLLO SOSTENIBLE
A189: 323800 | B189: CORPORACIÓN AUTÓNOMA REGIONAL DEL CANAL DEL DIQUE (CARDIQUE) | C189: AMBIENTE Y DESARROLLO SOSTENIBLE
A190: 323900 | B190: CORPORACIÓN AUTÓNOMA REGIONAL DEL SUR DE BOLIVAR (CSB) | C190: AMBIENTE Y DESARROLLO SOSTENIBLE
A191: 330101 | B191: MINISTERIO DE LAS CULTURAS, LAS ARTES Y LOS SABERES - GESTION GENERAL | C191: CULTURA
A192: 330400 | B192: ARCHIVO GENERAL DE LA NACION | C192: CULTURA
A193: 330500 | B193: INSTITUTO COLOMBIANO DE ANTROPOLOGIA E HISTORIA | C193: CULTURA
A194: 330700 | B194: INSTITUTO CARO Y CUERVO | C194: CULTURA
A195: 340101 | B195: AUDITORIA GENERAL DE LA REPUBLICA - GESTION GENERAL | C195: ORGANISMOS DE CONTROL
A196: 350101 | B196: MINCOMERCIO INDUSTRIA TURISMO - GESTION GENERAL | C196: COMERCIO, INDUSTRIA Y TURISMO
A197: 350102 | B197: MINCOMERCIO INDUSTRIA TURISMO - DIRECCION GENERAL DE COMERCIO EXTERIOR | C197: COMERCIO, INDUSTRIA Y TURISMO
A198: 350200 | B198: SUPERINTENDENCIA DE SOCIEDADES | C198: COMERCIO, INDUSTRIA Y TURISMO
A199: 350300 | B199: SUPERINTENDENCIA DE INDUSTRIA Y COMERCIO | C199: COMERCIO, INDUSTRIA Y TURISMO
A200: 350400 | B200: UNIDAD ADMINISTRATIVA ESPECIAL JUNTA CENTRAL CONTADORES | C200: COMERCIO, INDUSTRIA Y TURISMO
... 29 more rows

Sheet Programático (hidden)
A1: FUNCIONAMIENTO | L1: INVERSIÓN
A2: Código sector | B2: Sector | C2: Código programa | D2: Programa | E2: Código Subprograma | F2: Subprograma | G2: Código producto Final | H2: Producto Final | I2: Código operación de funcionamiento | J2: Operación de funcionamiento | L2: Código sector | M2: Sector | N2: Código programa | O2: Programa | P2: Código Subprograma | Q2: Subprograma | T2: Sector | U2: Programa 01 | V2: Programa 02 | W2: Programa 03 | X2: Programa 04 | Y2: Programa 05 | Z2: Programa 06 | AA2: Programa 07 | AB2: Programa 08 | AC2: Programa 09 | AD2: Programa 10 | AE2: Programa 11 | AF2: Programa 12 | AG2: Conteo
A3: 17 | B3: AGRICULTURA Y DESARROLLO RURAL | C3: 1702 | D3: Inclusión Productiva de pequeños productores rurales | E3: 1100 | F3: Intersubsectorial Agricultura | G3: 01 | H3: Servicio de fortalecimiento de las capacidades productivas de los pequeños agricultores | I3: 01 | J3: Direccionamiento estratégico del sector | L3: 17 | M3: AGRICULTURA Y DESARROLLO RURAL | N3: 1702 | O3: Inclusión Productiva de pequeños productores rurales | P3: 1100 | Q3: Intersubsectorial Agricultura | T3: AGRICULTURA Y DESARROLLO RURAL | U3: 1702 Inclusión Productiva de pequeños productores rurales | V3: 1703 Servicios financieros y gestión del riesgo para las actividades agropecuarias y rurales | W3: 1704 Fortalecimiento de la gestión y dirección del sector Agricultura y Desarrollo Rural | X3: 1705 Restitución de tierras a víctimas del conflicto armado | Y3: 1706 Aprovechamiento de mercados externos | Z3: 1707 Sanidad agropecuaria e inocuidad agroalimentaria | AA3: 1708 Ciencia, tecnología e innovación agropecuaria | AB3: 1709 Infraestructura productiva y comercialización | AC3: 1710 Acompañamiento a población rural y población rural vulnerable | AD3: 1799 fortalecimiento y apoyo a la gestión institucional del sector Agricultura y Desarrollo Rural | AE3: 1700 No asignable a programas | AG3: =COUNTA(U3:AF3) -> 11
A4: 17 | B4: AGRICULTURA Y DESARROLLO RURAL | C4: 1702 | D4: Inclusión Productiva de pequeños productores rurales | E4: 1100 | F4: Intersubsectorial Agricultura | G4: 01 | H4: Servicio de fortalecimiento de las capacidades productivas de los pequeños agricultores | I4: 02 | J4: Gestión de políticas de apoyo productivo a los pequeños productores rurales | L4: 17 | M4: AGRICULTURA Y DESARROLLO RURAL | N4: 1703 | O4: Servicios financieros y gestión del riesgo para las actividades agropecuarias y rurales | P4: 1100 | Q4: Intersubsectorial Agricultura | T4: AMBIENTE Y DESARROLLO SOSTENIBLE | U4: 3201 Fortalecimiento del desempeño ambiental de los sectores productivos | V4: 3202 Conservación de la biodiversidad y sus servicios ecosistémicos | W4: 3203 Gestión Integral del Recurso Hídrico | X4: 3204 Gestión de la información y el conocimiento ambiental | Y4: 3205 Ordenamiento ambiental territorial | Z4: 3206 Gestión del cambio climático para un desarrollo bajo en carbono y resiliente al clima | AA4: 3207 Gestión integral de mares, costas y recursos acuáticos | AB4: 3208 Educación Ambiental | AC4: 3299 Fortalecimiento y apoyo a la gestión institucional del sectorAmbiente y Desarrollo Sostenible | AD4: 3200 No asignable a programas | AG4: =COUNTA(U4:AF4) -> 10
A5: 17 | B5: AGRICULTURA Y DESARROLLO RURAL | C5: 1702 | D5: Inclusión Productiva de pequeños productores rurales | E5: 1100 | F5: Intersubsectorial Agricultura | G5: 01 | H5: Servicio de fortalecimiento de las capacidades productivas de los pequeños agricultores | I5: 03 | J5: Gestión de asitencia técnica | L5: 17 | M5: AGRICULTURA Y DESARROLLO RURAL | N5: 1704 | O5: Fortalecimiento de la gestión y dirección del sector Agricultura y Desarrollo Rural | P5: 1100 | Q5: Intersubsectorial Agricultura | T5: CIENCIA, TECNOLOGÍA E INNOVACIÓN | U5: 3999 Fortalecimiento y apoyo a la gestión institucional del sector Ciencia y Tecnología | V5: 3900 No asignable a programas | AG5: 2
A6: 17 | B6: AGRICULTURA Y DESARROLLO RURAL | C6: 1702 | D6: Inclusión Productiva de pequeños productores rurales | E6: 1100 | F6: Intersubsectorial Agricultura | G6: 01 | H6: Servicio de fortalecimiento de las capacidades productivas de los pequeños agricultores | I6: 04 | J6: Gestión de acceso a activos productivos | L6: 17 | M6: AGRICULTURA Y DESARROLLO RURAL | N6: 1705 | O6: Restitución de tierras a víctimas del conflicto armado | P6: 1100 | Q6: Intersubsectorial Agricultura | T6: COMERCIO, INDUSTRIA Y TURISMO | U6: 3501 Internacionalización de la economía | V6: 3502 Productividad y competitividad de las empresas colombianas | W6: 3503 Ambiente regulatorio y económico para la competencia y la actividad empresarial | X6: 3504 Competitividad, sostenibilidad y promoción del turismo colombiano | Y6: 3599 Fortalecimiento y apoyo a la gestión institucional del sector Comercio, Industria y Turismo | Z6: 3500 No asignable a programas | AG6: 6
A7: 17 | B7: AGRICULTURA Y DESARROLLO RURAL | C7: 1702 | D7: Inclusión Productiva de pequeños productores rurales | E7: 1100 | F7: Intersubsectorial Agricultura | G7: 01 | H7: Servicio de fortalecimiento de las capacidades productivas de los pequeños agricultores | I7: 05 | J7: Promoción y fomento de proyectos de pequeños productores | L7: 17 | M7: AGRICULTURA Y DESARROLLO RURAL | N7: 1706 | O7: Aprovechamiento de mercados externos | P7: 1100 | Q7: Intersubsectorial Agricultura | T7: CONGRESO DE LA REPÚBLICA | U7: 0101 Mejoramiento de la eficiencia y la transparencia legislativa | V7: 0199 Fortalecimiento y apoyo a la gestión institucional del sector Congreso de la República | W7: 0100 No asignable a programas | AG7: 3
A8: 17 | B8: AGRICULTURA Y DESARROLLO RURAL | C8: 1703 | D8: Servicios financieros y gestión del riesgo para las actividades agropecuarias y rurales | E8: 1100 | F8: Intersubsectorial Agricultura | G8: 01 | H8: servicio de inclusión financiera para los productores rurales | I8: 01 | J8: Direccionamiento estratégico del sector | L8: 17 | M8: AGRICULTURA Y DESARROLLO RURAL | N8: 1707 | O8: Sanidad agropecuaria e inocuidad agroalimentaria | P8: 1100 | Q8: Intersubsectorial Agricultura | T8: CULTURA | U8: 3301 Promoción y acceso efectivo a procesos culturales y artísticos | V8: 3302 Gestión, protección y salvaguardia del patrimonio cultural colombiano | W8: 3399 Fortalecimiento y apoyo a la gestión institucional del sector Cultura | X8: 3300 No asignable a programas | AG8: 4
A9: 17 | B9: AGRICULTURA Y DESARROLLO RURAL | C9: 1703 | D9: Servicios financieros y gestión del riesgo para las actividades agropecuarias y rurales | E9: 1100 | F9: Intersubsectorial Agricultura | G9: 01 | H9: servicio de inclusión financiera para los productores rurales | I9: 02 | J9: Gestión de la política de inclusión financiera para los productores rurales | L9: 17 | M9: AGRICULTURA Y DESARROLLO RURAL | N9: 1708 | O9: Ciencia, tecnología e innovación agropecuaria | P9: 1100 | Q9: Intersubsectorial Agricultura | T9: DEFENSA Y POLICÍA | U9: 1501 Capacidades de la Policía Nacional en seguridad pública, prevención, convivencia y seguridad ciudadana | V9: 1502 Capacidades de la Policía Nacional en seguridad pública, prevención, convivencia y seguridad ciudadana | W9: 1504 Desarrollo marítimo, fluvial y costero desde el sector defensa | X9: 1505 Generación de bienestar para la Fuerza Pública y sus familias | Y9: 1506 Gestión del riesgo de desastres desde el sector Defensa y Seguridad | Z9: 1508 Inspección, Vigilancia y Control de la prestación del servicio de vigilancia y seguridad privada | AA9: 1599 Fortalecimiento y apoyo a la gestión institucional del sector Defensa y Policía | AB9: 1500 No asignable a programas | AG9: 8
A10: 17 | B10: AGRICULTURA Y DESARROLLO RURAL | C10: 1703 | D10: Servicios financieros y gestión del riesgo para las actividades agropecuarias y rurales | E10: 1100 | F10: Intersubsectorial Agricultura | G10: 01 | H10: servicio de inclusión financiera para los productores rurales | I10: 03 | J10: Gestión de cofinanciación para proyectos productivos | L10: 17 | M10: AGRICULTURA Y DESARROLLO RURAL | N10: 1709 | O10: Infraestructura productiva y comercialización | P10: 1100 | Q10: Intersubsectorial Agricultura | T10: DEPORTE Y RECREACIÓN | U10: 4301 Fomento a la recreación, la actividad física y el deporte | V10: 4302 Formación y preparación de deportistas | W10: 4399 Fortalecimiento y apoyo a la gestión institucional del sector Recreación y Deporte | X10: 4300 No programático | AG10: 4
A11: 17 | B11: AGRICULTURA Y DESARROLLO RURAL | C11: 1703 | D11: Servicios financieros y gestión del riesgo para las actividades agropecuarias y rurales | E11: 1100 | F11: Intersubsectorial Agricultura | G11: 01 | H11: servicio de inclusión financiera para los productores rurales | I11: 04 | J11: Seguimiento y control | L11: 17 | M11: AGRICULTURA Y DESARROLLO RURAL | N11: 1710 | O11: Acompañamiento a población rural y población rural vulnerable | P11: 1100 | Q11: Intersubsectorial Agricultura | T11: EDUCACIÓN | U11: 2201 Calidad, cobertura y fortalecimiento de la educación inicial, prescolar, básica y media | V11: 2202 Calidad y fomento de la educación superior | W11: 2203 Cierre de brechas para el goce efectivo de derechos fundamentales de la población en condición de discapacidad | X11: 2299 Fortalecimiento y apoyo a la gestión institucional del sector Educación | Y11: 2200 No asignable a programas | AG11: 5
A12: 17 | B12: AGRICULTURA Y DESARROLLO RURAL | C12: 1704 | D12: Fortalecimiento de la gestión y dirección del sector Agricultura y Desarrollo Rural | E12: 1100 | F12: Intersubsectorial Agricultura | G12: 01 | H12: Servicio de ordenamiento social y productivo territorial | I12: 01 | J12: Direccionamiento estratégico del sector | L12: 17 | M12: AGRICULTURA Y DESARROLLO RURAL | N12: 1799 | O12: fortalecimiento y apoyo a la gestión institucional del sector Agricultura y Desarrollo Rural | P12: 1100 | Q12: Intersubsectorial Agricultura | T12: EMPLEO PÚBLICO | U12: 0503 Mejoramiento de la calidad educativa en la gestión pública | V12: 0504 Administración y vigilancia de las carreras administrativas de los servidores públicos | W12: 0505 Fortalecimiento de la gestión pública en las entidades nacionales y territoriales | X12: 0599 Fortalecimiento y apoyo a la gestión institucional del sector Empleo | Y12: 0500 No asignable a programas | AG12: 5
A13: 17 | B13: AGRICULTURA Y DESARROLLO RURAL | C13: 1704 | D13: Fortalecimiento de la gestión y dirección del sector Agricultura y Desarrollo Rural | E13: 1100 | F13: Intersubsectorial Agricultura | G13: 01 | H13: Servicio de ordenamiento social y productivo territorial | I13: 02 | J13: Diseño e implementación de instrumentos de ordenamiento territorial | L13: 17 | M13: AGRICULTURA Y DESARROLLO RURAL | N13: 1700 | O13: No asignable a programas | P13: 1100 | Q13: Intersubsectorial Agricultura | T13: FISCALÍA | U13: 2901 Efectividad de la investigación penal y técnico científica | V13: 2999 Fortalecimiento y apoyo a la gestión institucional del sector Fiscalía | W13: 2900 No asignable a programas | AG13: 3
A14: 17 | B14: AGRICULTURA Y DESARROLLO RURAL | C14: 1704 | D14: Fortalecimiento de la gestión y dirección del sector Agricultura y Desarrollo Rural | E14: 1100 | F14: Intersubsectorial Agricultura | G14: 01 | H14: Servicio de ordenamiento social y productivo territorial | I14: 03 | J14: Gestión del ordenamiento territorial | L14: 32 | M14: AMBIENTE Y DESARROLLO SOSTENIBLE | N14: 3201 | O14: Fortalecimiento del desempeño ambiental de los sectores productivos | P14: 900 | Q14: Intersubsectorial Ambiente | T14: HACIENDA | U14: 1301 Política macroeconómica fiscal | V14: 1302 Gestión de recursos públicos | W14: 1303 Reducción de la vulnerabilidad fiscal ante desastres y riesgos climáticos | X14: 1304 Inspección, control y vigilancia financiera, solidaria y de recursos públicos | Y14: 1305 Fortalecimiento de recaudo y tributación | Z14: 1399 Fortalecimiento y apoyo a la gestión institucional del sector Hacienda | AA14: 1300 No asignable a programas | AG14: 7
A15: 17 | B15: AGRICULTURA Y DESARROLLO RURAL | C15: 1704 | D15: Fortalecimiento de la gestión y dirección del sector Agricultura y Desarrollo Rural | E15: 1100 | F15: Intersubsectorial Agricultura | G15: 01 | H15: Servicio de ordenamiento social y productivo territorial | I15: 04 | J15: Gestión del uso eficiente del suelo y adecuación de tierras | L15: 32 | M15: AMBIENTE Y DESARROLLO SOSTENIBLE | N15: 3202 | O15: Conservación de la biodiversidad y sus servicios ecosistémicos | P15: 900 | Q15: Intersubsectorial Ambiente | T15: INCLUSIÓN SOCIAL Y RECONCILIACIÓN | U15: 4101 Atención, asistencia y reparación integral a las víctimas | V15: 4102 Desarrollo integral de la primera infancia a la juventud y fortalecimiento familiar | W15: 4103 Inclusión social y productiva para la población en situación de vulnerabilidad | X15: 410X Protección de derechos de niños, niñas, adolescentes y jóvenes | Y15: 4199 Fortalecimiento y apoyo a la gestión institucional del sector Inclusión social y Reconciliación | AG15: 5
A16: 17 | B16: AGRICULTURA Y DESARROLLO RURAL | C16: 1704 | D16: Fortalecimiento de la gestión y dirección del sector Agricultura y Desarrollo Rural | E16: 1100 | F16: Intersubsectorial Agricultura | G16: 01 | H16: Servicio de ordenamiento social y productivo territorial | I16: 05 | J16: Gestión de formalización de tierras | L16: 32 | M16: AMBIENTE Y DESARROLLO SOSTENIBLE | N16: 3203 | O16: Gestión Integral del Recurso Hídrico | P16: 900 | Q16: Intersubsectorial Ambiente | T16: INFORMACIÓN ESTADÍSTICA | U16: 0401 Levantamiento y actualización de información estadística de calidad | V16: 0406 Generación de la información geográfica del territorio nacional | W16: 0499 Fortalecimiento y apoyo a la gestión institucional del sector Información Estadística | X16: 0400 No asignable a programas | AG16: 4
A17: 17 | B17: AGRICULTURA Y DESARROLLO RURAL | C17: 1704 | D17: Fortalecimiento de la gestión y dirección del sector Agricultura y Desarrollo Rural | E17: 1100 | F17: Intersubsectorial Agricultura | G17: 01 | H17: Servicio de ordenamiento social y productivo territorial | I17: 06 | J17: Gestión de acceso y administración de tierras | L17: 32 | M17: AMBIENTE Y DESARROLLO SOSTENIBLE | N17: 3204 | O17: Gestión de la información y el conocimiento ambiental | P17: 900 | Q17: Intersubsectorial Ambiente | T17: INTELIGENCIA | U17: 4201 Desarrollo de inteligencia estratégica y contrainteligencia de Estado | V17: 4299 Fortalecimiento y apoyo a la gestión institucional del sector Inteligencia | W17: 4200 No asignable a programas | AG17: 3
A18: 17 | B18: AGRICULTURA Y DESARROLLO RURAL | C18: 1704 | D18: Fortalecimiento de la gestión y dirección del sector Agricultura y Desarrollo Rural | E18: 1100 | F18: Intersubsectorial Agricultura | G18: 01 | H18: Servicio de ordenamiento social y productivo territorial | I18: 07 | J18: Gestión de acceso y administración de tierras con enfoque étnico | L18: 32 | M18: AMBIENTE Y DESARROLLO SOSTENIBLE | N18: 3205 | O18: Ordenamiento ambiental territorial | P18: 900 | Q18: Intersubsectorial Ambiente | T18: INTERIOR | U18: 3701 Fortalecimiento institucional a los procesos organizativos de concertación; garantía, prevención y respeto de los derechos humanos como fundamentos para la paz | V18: 3702 Fortalecimiento a la gobernabilidad territorial para la seguridad, convivencia ciudadana, paz y postconflicto. | W18: 3704 Gobernabilidad y participación ciudadana | X18: 3705 Protección de personas, grupos y comunidades en riesgo extraordinario y extremo Unidad Nacional de Protección (UNP) | Y18: 3706 Protección, promoción y difusión del derecho de autor y los derechos conexos | Z18: 3707 Gestión del riesgo de desastres naturales y antrópicos en la zona de influencia del volcán Nevado del Huila. | AA18: 3799 Fortalecimiento y apoyo a la gestión institucional del sector interior | AB18: 3700 No asignable a programas | AG18: 8
A19: 17 | B19: AGRICULTURA Y DESARROLLO RURAL | C19: 1704 | D19: Fortalecimiento de la gestión y dirección del sector Agricultura y Desarrollo Rural | E19: 1100 | F19: Intersubsectorial Agricultura | G19: 01 | H19: Servicio de ordenamiento social y productivo territorial | I19: 08 | J19: Ejecución de la política de ordenamiento social y productivo territorial | L19: 32 | M19: AMBIENTE Y DESARROLLO SOSTENIBLE | N19: 3206 | O19: Gestión del cambio climático para un desarrollo bajo en carbono y resiliente al clima | P19: 900 | Q19: Intersubsectorial Ambiente | T19: SISTEMA INTEGRAL DE VERDAD, JUSTICIA, REPARACIÓN Y NO REPETICIÓN | U19: 4401 Jurisdicción Especial para la Paz | V19: 4403 Unidad de Búsqueda de Personas dadas por Desaparecidas en el contexto y en razón del Conflicto Armado (UBPD) | W19: 4499 Fortalecimiento y apoyo a la gestión institucional del sector Justicia Especial para la Paz | X19: 4400 No asignable a programas | AG19: 4
A20: 17 | B20: AGRICULTURA Y DESARROLLO RURAL | C20: 1705 | D20: Restitución de tierras a víctimas del conflicto armado | E20: 1100 | F20: Intersubsectorial Agricultura | G20: 01 | H20: Servicio de restitución de tierras y compensación a víctimas del conflicto armado | I20: 01 | J20: Direccionamiento estratégico del sector | L20: 32 | M20: AMBIENTE Y DESARROLLO SOSTENIBLE | N20: 3207 | O20: Gestión integral de mares, costas y recursos acuáticos | P20: 900 | Q20: Intersubsectorial Ambiente | T20: JUSTICIA Y DEL DERECHO | U20: 1201 Fortalecimiento del principio de seguridad jurídica, divulgación y depuración del ordenamiento jurídico | V20: 1202 Promoción al acceso a la justicia | W20: 1203 Promoción de los métodos de resolución de conflictos | X20: 1204 Justicia transicional | Y20: 1205 Defensa jurídica del Estado | Z20: 1206 Sistema penitenciario y carcelario en el marco de los derechos humanos | AA20: 1207 Fortalecimiento de la política criminal del Estado colombiano | AB20: 1208 Formulación y coordinación de la política integral frente a las drogas y actividades relacionadas | AC20: 1209 Modernización de la información inmobiliaria | AD20: 1299 Fortalecimiento y apoyo a la gestión institucional del sector Justicia y del Derecho | AE20: 1200 No asignable a programas | AG20: 11
A21: 17 | B21: AGRICULTURA Y DESARROLLO RURAL | C21: 1705 | D21: Restitución de tierras a víctimas del conflicto armado | E21: 1100 | F21: Intersubsectorial Agricultura | G21: 01 | H21: Servicio de restitución de tierras y compensación a víctimas del conflicto armado | I21: 02 | J21: Diseño e implementación de instrumentos de restitución de tierras despojadas | L21: 32 | M21: AMBIENTE Y DESARROLLO SOSTENIBLE | N21: 3208 | O21: Educación Ambiental | P21: 900 | Q21: Intersubsectorial Ambiente | T21: MINAS Y ENERGÍA | U21: 2101 Acceso al servicio público domiciliario de gas combustible | V21: 2102 Consolidación productiva del sector de energía eléctrica | W21: 2103 Consolidación productiva del sector de hidrocarburos | X21: 2104 Consolidación productiva del sector minero | Y21: 2105 Desarrollo ambiental sostenible del sector minero energético | Z21: 2106 Gestión de la información en el sector minero energético | AA21: 2199 Fortalecimiento y apoyo a la gestión institucional del sector Minas y Energía | AB21: 2100 No asignable a programas | AG21: 8
A22: 17 | B22: AGRICULTURA Y DESARROLLO RURAL | C22: 1705 | D22: Restitución de tierras a víctimas del conflicto armado | E22: 1100 | F22: Intersubsectorial Agricultura | G22: 01 | H22: Servicio de restitución de tierras y compensación a víctimas del conflicto armado | I22: 03 | J22: Acompañamiento psicosocial a víctimas | L22: 32 | M22: AMBIENTE Y DESARROLLO SOSTENIBLE | N22: 3299 | O22: Fortalecimiento y apoyo a la gestión institucional del sectorAmbiente y Desarrollo Sostenible | P22: 900 | Q22: Intersubsectorial Ambiente | T22: ORGANISMOS DE CONTROL | U22: 2502 Promoción, protección y defensa de los Derechos Humanos y el Derecho Internacional Humanitario | V22: 2504 Vigilancia de la gestión administrativa de los funcionarios del Estado | W22: 2599 Fortalecimiento y apoyo a la gestión institucional del sector organismos de control | X22: 2501 Fortalecimiento del control y la vigilancia de la gestión fiscal y resarcimiento al daño del patrimonio público | Y22: 2505 Bienestar de los servidores de la Contraloría General de la República | AG22: 5
A23: 17 | B23: AGRICULTURA Y DESARROLLO RURAL | C23: 1705 | D23: Restitución de tierras a víctimas del conflicto armado | E23: 1100 | F23: Intersubsectorial Agricultura | G23: 01 | H23: Servicio de restitución de tierras y compensación a víctimas del conflicto armado | I23: 04 | J23: Gestión jurídica | L23: 32 | M23: AMBIENTE Y DESARROLLO SOSTENIBLE | N23: 3200 | O23: No asignable a programas | P23: 900 | Q23: Intersubsectorial Ambiente | T23: PLANEACIÓN | U23: 0301 Mejoramiento de la planeación territorial, sectorial y de inversión pública | V23: 0303 Promoción de la prestación eficiente de los servicios públicos domiciliarios | W23: 0304 Fortalecimiento del Sistema de Compra Pública | X23: 0399 Fortalecimiento y apoyo a la gestión institucional del sector Planeación | Y23: 0300 No asignable a programas | AG23: 5
A24: 17 | B24: AGRICULTURA Y DESARROLLO RURAL | C24: 1705 | D24: Restitución de tierras a víctimas del conflicto armado | E24: 1100 | F24: Intersubsectorial Agricultura | G24: 01 | H24: Servicio de restitución de tierras y compensación a víctimas del conflicto armado | I24: 05 | J24: Identificación y caracterización de terrenos | L24: 39 | M24: CIENCIA, TECNOLOGÍA E INNOVACIÓN | N24: 3999 | O24: Fortalecimiento y apoyo a la gestión institucional del sector Ciencia y Tecnología | P24: 1000 | Q24: Intersubsectorial Gobierno | T24: PRESIDENCIA DE LA REPÚBLICA | U24: 0204 Impulsar la competitividad de las regiones y el desarrollo integral las poblaciones con enfoque diferencial desde el sector Presidencia. | V24: 0207 Prevención y mitigación del riesgo de desastres desde el sector Presidencia | W24: 0208 Gestión de la cooperación internacional del sector Presidencia | X24: 0209 Fortalecimiento de la infraestructura física de las entidades del Estado del nivel nacional desde el Sector Presidencia | Y24: 0210 Mecanismos de transición hacia la paz a nivel nacional y territorial desde el sector Presidencia | Z24: 0211 Reintegración de personas y grupos alzados en armas desde el Sector Presidencia | AA24: 0212 Renovación territorial para el desarrollo integral de las zonas rurales afectadas por el conflicto armado. | AB24: 0214 Fortalecimiento de las capacidades de articulación estratégica, modernización, eficiencia administrativa, transparencia y acceso a la información desde el sector Presidencia | AC24: 0299 Fortalecimiento y apoyo a la gestión institucional del sector Presidencia | AD24: 0200 No asignable a programas | AG24: 10
A25: 17 | B25: AGRICULTURA Y DESARROLLO RURAL | C25: 1705 | D25: Restitución de tierras a víctimas del conflicto armado | E25: 1100 | F25: Intersubsectorial Agricultura | G25: 01 | H25: Servicio de restitución de tierras y compensación a víctimas del conflicto armado | I25: 06 | J25: Acompañamiento a población víctima con enfoque étnico | L25: 39 | M25: CIENCIA, TECNOLOGÍA E INNOVACIÓN | N25: 3900 | O25: No asignable a programas | P25: 1000 | Q25: Intersubsectorial Gobierno | T25: RAMA JUDICIAL | U25: 2701 Mejoramiento y ejecución de las competencias de la administración de la justicia | V25: 2799 Fortalecimiento y apoyo a la gestión institucional del sector Rama Judicial | W25: 2700 No asignable a programas | AG25: 3
A26: 17 | B26: AGRICULTURA Y DESARROLLO RURAL | C26: 1705 | D26: Restitución de tierras a víctimas del conflicto armado | E26: 1100 | F26: Intersubsectorial Agricultura | G26: 01 | H26: Servicio de restitución de tierras y compensación a víctimas del conflicto armado | I26: 07 | J26: Ejecución de la política de restitución de tierras | L26: 35 | M26: COMERCIO, INDUSTRIA Y TURISMO | N26: 3501 | O26: Internacionalización de la economía | P26: 0200 | Q26: Intersubsectorial Industria y Comercio | T26: REGISTRADURÍA | U26: 2801 Procesos democráticos y asuntos electorales | V26: 2802 Identificación y registro del estado civil de la población | W26: 2899 Fortalecimiento y apoyo a la gestión institucional del sector Registraduría | X26: 2800 No asignable a programas | AG26: 4
A27: 17 | B27: AGRICULTURA Y DESARROLLO RURAL | C27: 1706 | D27: Aprovechamiento de mercados externos | E27: 1100 | F27: Intersubsectorial Agricultura | G27: 01 | H27: servicio de Inclusión del sector agricola en el mercado internacional | I27: 01 | J27: Direccionamiento estratégico del sector | L27: 35 | M27: COMERCIO, INDUSTRIA Y TURISMO | N27: 3502 | O27: Productividad y competitividad de las empresas colombianas | P27: 0200 | Q27: Intersubsectorial Industria y Comercio | T27: RELACIONES EXTERIORES | U27: 1101 Fortalecimiento y diversificación de relaciones bilaterales | V27: 1102 Posicionamiento en instancias globales, multilaterales, regionales y subregionales | W27: 1103 Política migratoria y servicio al ciudadano | X27: 1104 Soberanía territorial y desarrollo fronterizo | Y27: 1199 Fortalecimiento y apoyo a la gestión institucional del sector relaciones exteriores | Z27: 1100 No asignable a programas | AG27: 6
A28: 17 | B28: AGRICULTURA Y DESARROLLO RURAL | C28: 1706 | D28: Aprovechamiento de mercados externos | E28: 1100 | F28: Intersubsectorial Agricultura | G28: 01 | H28: servicio de Inclusión del sector agricola en el mercado internacional | I28: 02 | J28: Gestión de la política de comercio exterior para productos agropecuarios | L28: 35 | M28: COMERCIO, INDUSTRIA Y TURISMO | N28: 3503 | O28: Ambiente regulatorio y económico para la competencia y la actividad empresarial | P28: 0200 | Q28: Intersubsectorial Industria y Comercio | T28: SALUD Y PROTECCIÓN SOCIAL | U28: 1901 Salud Pública y prestación de servicios | V28: 1902 Aseguramiento y administración del Sistema General de la Seguridad Social en Salud - SGSSS | W28: 1903 Inspección, vigilancia y control del Sistema de Seguridad Social en Salud | X28: 1907 Administración de pensiones de entidades del sector salud | Y28: 1999 Fortalecimiento y apoyo a la gestión institucional del sector salud | Z28: 1900 No programático | AG28: 6
A29: 17 | B29: AGRICULTURA Y DESARROLLO RURAL | C29: 1707 | D29: Sanidad agropecuaria e inocuidad agroalimentaria | E29: 1100 | F29: Intersubsectorial Agricultura | G29: 01 | H29: Servicio de implementación y control de medidas sanitarias para el sector agro | I29: 01 | J29: Direccionamiento estratégico del sector | L29: 35 | M29: COMERCIO, INDUSTRIA Y TURISMO | N29: 3504 | O29: Competitividad, sostenibilidad y promoción del turismo colombiano | P29: 0200 | Q29: Intersubsectorial Industria y Comercio | T29: TECNOLOGÍAS DE LA INFORMACIÓN Y LAS COMUNICACIONES | U29: 2301 Facilitar el acceso y uso de las Tecnologías de la Información y las Comunicaciones en todo el territorio nacional | V29: 2302 Fomento del desarrollo de aplicaciones, software y contenidos para impulsar la apropiación de las Tecnologías de la Información y las Comunicaciones (TIC) | W29: 2399 Fortalecimiento y apoyo a la gestión institucional del sector Tecnologías de la Información y las Comunicaciones | X29: 2300 No asignable a programas | AG29: 4
A30: 17 | B30: AGRICULTURA Y DESARROLLO RURAL | C30: 1707 | D30: Sanidad agropecuaria e inocuidad agroalimentaria | E30: 1100 | F30: Intersubsectorial Agricultura | G30: 01 | H30: Servicio de implementación y control de medidas sanitarias para el sector agro | I30: 02 | J30: Control zoosanitario y fitosanitario para el comercio internacional | L30: 35 | M30: COMERCIO, INDUSTRIA Y TURISMO | N30: 3599 | O30: Fortalecimiento y apoyo a la gestión institucional del sector Comercio, Industria y Turismo | P30: 0200 | Q30: Intersubsectorial Industria y Comercio | T30: TRABAJO | U30: 3601 Protección Social | V30: 3602 Generación y formalización del empleo | W30: 3603 Formación para el Trabajo | X30: 3604 Derechos fundamentales del trabajo y fortalecimiento del diálogo social | Y30: 3605 Fomento de la investigación, desarrollo tecnológico e innovación del sector trabajo | Z30: 3699 Fortalecimiento y apoyo a la gestión institucional del sector Trabajo | AA30: 3600 No asignable a programas | AG30: 7
A31: 17 | B31: AGRICULTURA Y DESARROLLO RURAL | C31: 1707 | D31: Sanidad agropecuaria e inocuidad agroalimentaria | E31: 1100 | F31: Intersubsectorial Agricultura | G31: 01 | H31: Servicio de implementación y control de medidas sanitarias para el sector agro | I31: 03 | J31: Control y erradicación de enfermedades animales | L31: 35 | M31: COMERCIO, INDUSTRIA Y TURISMO | N31: 3500 | O31: No asignable a programas | P31: 0200 | Q31: Intersubsectorial Industria y Comercio | T31: TRANSPORTE | U31: 2401 Infraestructura red vial primaria | V31: 2402 Infraestructura red vial regional | W31: 2403 Infraestructura y servicios de transporte aéreo | X31: 2404 Infraestructura de transporte férreo | Y31: 2405 Infraestructura de transporte marítimo | Z31: 2406 Infraestructura de transporte fluvial | AA31: 2407 Infraestructura y servicios de logística de transporte | AB31: 2408 Prestación de servicios de transporte público de pasajeros | AC31: 2409 Seguridad de transporte | AD31: 2410 Política, regulación y supervisión de la infraestructura y servicios de transporte | AE31: 2499 Fortalecimiento y apoyo a la gestión institucional del sector Transporte | AF31: 2400 No asignable a programas | AG31: 12
A32: 17 | B32: AGRICULTURA Y DESARROLLO RURAL | C32: 1707 | D32: Sanidad agropecuaria e inocuidad agroalimentaria | E32: 1100 | F32: Intersubsectorial Agricultura | G32: 01 | H32: Servicio de implementación y control de medidas sanitarias para el sector agro | I32: 04 | J32: Gestión y protección del estatus sanitario | L32: 01 | M32: CONGRESO DE LA REPÚBLICA | N32: 0101 | O32: Mejoramiento de la eficiencia y la transparencia legislativa | P32: 1000 | Q32: Intersubsectorial gobierno | T32: VIVIENDA, CIUDAD Y TERRITORIO | U32: 4001 Acceso a soluciones de vivienda | V32: 4002 Ordenamiento territorial y desarrollo urbano | W32: 4003 Acceso de la población a los servicios de agua potable y saneamiento básico | X32: 4099 Fortalecimiento y apoyo a la gestión institucional del sector Vivienda, Ciudad y Territorio | Y32: 4000 No asignable a programas | AG32: 5
A33: 17 | B33: AGRICULTURA Y DESARROLLO RURAL | C33: 1707 | D33: Sanidad agropecuaria e inocuidad agroalimentaria | E33: 1100 | F33: Intersubsectorial Agricultura | G33: 01 | H33: Servicio de implementación y control de medidas sanitarias para el sector agro | I33: 05 | J33: Gestión de servicios de análisis e investigación sanitaria y fitosanitaria | L33: 01 | M33: CONGRESO DE LA REPÚBLICA | N33: 0199 | O33: Fortalecimiento y apoyo a la gestión institucional del sector Congreso de la República | P33: 1000 | Q33: Intersubsectorial gobierno
A34: 17 | B34: AGRICULTURA Y DESARROLLO RURAL | C34: 1707 | D34: Sanidad agropecuaria e inocuidad agroalimentaria | E34: 1100 | F34: Intersubsectorial Agricultura | G34: 01 | H34: Servicio de implementación y control de medidas sanitarias para el sector agro | I34: 06 | J34: Control y seguimiento a la actividad pesquera y acuícola | L34: 01 | M34: CONGRESO DE LA REPÚBLICA | N34: 0100 | O34: No asignable a programas | P34: 1000 | Q34: Intersubsectorial gobierno
A35: 17 | B35: AGRICULTURA Y DESARROLLO RURAL | C35: 1707 | D35: Sanidad agropecuaria e inocuidad agroalimentaria | E35: 1100 | F35: Intersubsectorial Agricultura | G35: 01 | H35: Servicio de implementación y control de medidas sanitarias para el sector agro | I35: 07 | J35: Gestión y control de la gestión sanitaria de la actividad pesquera y acuícola | L35: 33 | M35: CULTURA | N35: 3301 | O35: Promoción y acceso efectivo a procesos culturales y artísticos | P35: 1603 | Q35: Arte y cultura
A36: 17 | B36: AGRICULTURA Y DESARROLLO RURAL | C36: 1707 | D36: Sanidad agropecuaria e inocuidad agroalimentaria | E36: 1100 | F36: Intersubsectorial Agricultura | G36: 01 | H36: Servicio de implementación y control de medidas sanitarias para el sector agro | I36: 08 | J36: Inspección y vilancia | L36: 33 | M36: CULTURA | N36: 3302 | O36: Gestión, protección y salvaguardia del patrimonio cultural colombiano | P36: 1603 | Q36: Arte y cultura
A37: 17 | B37: AGRICULTURA Y DESARROLLO RURAL | C37: 1707 | D37: Sanidad agropecuaria e inocuidad agroalimentaria | E37: 1100 | F37: Intersubsectorial Agricultura | G37: 02 | H37: Servicio de fomento y fotalecimiento de la actividad acuicola y pesquera | I37: 01 | J37: Gestión de la política de fomento a la producción acuicola y pesquera | L37: 33 | M37: CULTURA | N37: 3399 | O37: Fortalecimiento y apoyo a la gestión institucional del sector Cultura | P37: 1603 | Q37: Arte y cultura
A38: 17 | B38: AGRICULTURA Y DESARROLLO RURAL | C38: 1707 | D38: Sanidad agropecuaria e inocuidad agroalimentaria | E38: 1100 | F38: Intersubsectorial Agricultura | G38: 02 | H38: Servicio de fomento y fotalecimiento de la actividad acuicola y pesquera | I38: 02 | J38: Regulación y control a la actividad acuícola y pesquera | L38: 33 | M38: CULTURA | N38: 3300 | O38: No asignable a programas | P38: 1603 | Q38: Arte y cultura
A39: 17 | B39: AGRICULTURA Y DESARROLLO RURAL | C39: 1707 | D39: Sanidad agropecuaria e inocuidad agroalimentaria | E39: 1100 | F39: Intersubsectorial Agricultura | G39: 02 | H39: Servicio de fomento y fotalecimiento de la actividad acuicola y pesquera | I39: 03 | J39: Inspección y vilancia | L39: 15 | M39: DEFENSA Y POLICÍA | N39: 1501 | O39: Capacidades de la Policía Nacional en seguridad pública, prevención, convivencia y seguridad ciudadana | P39: 0100 | Q39: Intersubsectorial Defensa y Seguridad
A40: 17 | B40: AGRICULTURA Y DESARROLLO RURAL | C40: 1707 | D40: Sanidad agropecuaria e inocuidad agroalimentaria | E40: 1100 | F40: Intersubsectorial Agricultura | G40: 03 | H40: Servicio de definición de política de sanidad agropecuaria e inocuidad agroalimentaria | I40: 01 | J40: Diseño y desarrollo de medidas sanitarias y fitosanitarias | L40: 15 | M40: DEFENSA Y POLICÍA | N40: 1502 | O40: Capacidades de la Policía Nacional en seguridad pública, prevención, convivencia y seguridad ciudadana | P40: 0100 | Q40: Intersubsectorial Defensa y Seguridad
A41: 17 | B41: AGRICULTURA Y DESARROLLO RURAL | C41: 1708 | D41: Ciencia, tecnología e innovación agropecuaria | E41: 1100 | F41: Intersubsectorial Agricultura | G41: 01 | H41: Servicio de gestión y promoción del fotalecimiento en tecnología e innovación | I41: 01 | J41: Direccionamiento estratégico del sector | L41: 15 | M41: DEFENSA Y POLICÍA | N41: 1504 | O41: Desarrollo marítimo, fluvial y costero desde el sector defensa | P41: 0100 | Q41: Intersubsectorial Defensa y Seguridad
A42: 17 | B42: AGRICULTURA Y DESARROLLO RURAL | C42: 1708 | D42: Ciencia, tecnología e innovación agropecuaria | E42: 1100 | F42: Intersubsectorial Agricultura | G42: 01 | H42: Servicio de gestión y promoción del fotalecimiento en tecnología e innovación | I42: 02 | J42: Gestión de la política para el desarrollo tecnólogico e innovación productiva rural | L42: 15 | M42: DEFENSA Y POLICÍA | N42: 1505 | O42: Generación de bienestar para la Fuerza Pública y sus familias | P42: 0100 | Q42: Intersubsectorial Defensa y Seguridad
A43: 17 | B43: AGRICULTURA Y DESARROLLO RURAL | C43: 1709 | D43: Infraestructura productiva y comercialización | E43: 1100 | F43: Intersubsectorial Agricultura | G43: 01 | H43: Servicio de fortalecimiento de la gestión productiva y comercialización del sector Agropecuario | I43: 01 | J43: Direccionamiento estratégico del sector | L43: 15 | M43: DEFENSA Y POLICÍA | N43: 1506 | O43: Gestión del riesgo de desastres desde el sector Defensa y Seguridad | P43: 0100 | Q43: Intersubsectorial Defensa y Seguridad
A44: 17 | B44: AGRICULTURA Y DESARROLLO RURAL | C44: 1709 | D44: Infraestructura productiva y comercialización | E44: 1100 | F44: Intersubsectorial Agricultura | G44: 01 | H44: Servicio de fortalecimiento de la gestión productiva y comercialización del sector Agropecuario | I44: 02 | J44: Gestión de la política de fortalecimiento productivo y comercialización del sector agropecuario | L44: 15 | M44: DEFENSA Y POLICÍA | N44: 1508 | O44: Inspección, Vigilancia y Control de la prestación del servicio de vigilancia y seguridad privada | P44: 0100 | Q44: Intersubsectorial Defensa y Seguridad
A45: 17 | B45: AGRICULTURA Y DESARROLLO RURAL | C45: 1709 | D45: Infraestructura productiva y comercialización | E45: 1100 | F45: Intersubsectorial Agricultura | G45: 01 | H45: Servicio de fortalecimiento de la gestión productiva y comercialización del sector Agropecuario | I45: 03 | J45: Gestión de investigación y desarrollo para el sector | L45: 15 | M45: DEFENSA Y POLICÍA | N45: 1599 | O45: Fortalecimiento y apoyo a la gestión institucional del sector Defensa y Policía | P45: 0100 | Q45: Intersubsectorial Defensa y Seguridad
A46: 17 | B46: AGRICULTURA Y DESARROLLO RURAL | C46: 1709 | D46: Infraestructura productiva y comercialización | E46: 1100 | F46: Intersubsectorial Agricultura | G46: 01 | H46: Servicio de fortalecimiento de la gestión productiva y comercialización del sector Agropecuario | I46: 04 | J46: Gestión y administración de los esquemas de adecuación de tierras | L46: 15 | M46: DEFENSA Y POLICÍA | N46: 1500 | O46: No asignable a programas | P46: 0100 | Q46: Intersubsectorial Defensa y Seguridad
A47: 17 | B47: AGRICULTURA Y DESARROLLO RURAL | C47: 1709 | D47: Infraestructura productiva y comercialización | E47: 1100 | F47: Intersubsectorial Agricultura | G47: 01 | H47: Servicio de fortalecimiento de la gestión productiva y comercialización del sector Agropecuario | I47: 05 | J47: Fortalecimiento de las capacidades comerciales del sector | L47: 43 | M47: DEPORTE Y RECREACIÓN | N47: 4301 | O47: Fomento a la recreación, la actividad física y el deporte | P47: 1604 | Q47: Recreación y deporte
A48: 17 | B48: AGRICULTURA Y DESARROLLO RURAL | C48: 1710 | D48: Acompañamiento a población rural y población rural vulnerable | E48: 1100 | F48: Intersubsectorial Agricultura | G48: 01 | H48: servicio de gestión para garantizar la provision de bienes y servicios públicos a poblaciones rurales | I48: 01 | J48: Direccionamiento estratégico del sector | L48: 43 | M48: DEPORTE Y RECREACIÓN | N48: 4302 | O48: Formación y preparación de deportistas | P48: 1604 | Q48: Recreación y deporte
A49: 17 | B49: AGRICULTURA Y DESARROLLO RURAL | C49: 1710 | D49: Acompañamiento a población rural y población rural vulnerable | E49: 1100 | F49: Intersubsectorial Agricultura | G49: 01 | H49: servicio de gestión para garantizar la provision de bienes y servicios públicos a poblaciones rurales | I49: 02 | J49: Gestión de políticas para atender a la población rural | L49: 43 | M49: DEPORTE Y RECREACIÓN | N49: 4399 | O49: Fortalecimiento y apoyo a la gestión institucional del sector Recreación y Deporte | P49: 1604 | Q49: Recreación y deporte
A50: 17 | B50: AGRICULTURA Y DESARROLLO RURAL | C50: 1799 | D50: fortalecimiento y apoyo a la gestión institucional del sector Agricultura y Desarrollo Rural | E50: 1100 | F50: Intersubsectorial Agricultura | G50: 01 | H50: Servicio de fortalecimiento y apoyo a la gestión institucional del sector Agricultura y Desarrollo Rural | I50: 01 | J50: Direccionamiento estratégico del sector | L50: 43 | M50: DEPORTE Y RECREACIÓN | N50: 4300 | O50: No programático | P50: 1604 | Q50: Recreación y deporte
A51: 17 | B51: AGRICULTURA Y DESARROLLO RURAL | C51: 1799 | D51: fortalecimiento y apoyo a la gestión institucional del sector Agricultura y Desarrollo Rural | E51: 1100 | F51: Intersubsectorial Agricultura | G51: 01 | H51: Servicio de fortalecimiento y apoyo a la gestión institucional del sector Agricultura y Desarrollo Rural | I51: 02 | J51: Gestión jurídica | L51: 22 | M51: EDUCACIÓN | N51: 2201 | O51: Calidad, cobertura y fortalecimiento de la educación inicial, prescolar, básica y media | P51: 0700 | Q51: Intersubsectorial Educación
A52: 17 | B52: AGRICULTURA Y DESARROLLO RURAL | C52: 1799 | D52: fortalecimiento y apoyo a la gestión institucional del sector Agricultura y Desarrollo Rural | E52: 1100 | F52: Intersubsectorial Agricultura | G52: 01 | H52: Servicio de fortalecimiento y apoyo a la gestión institucional del sector Agricultura y Desarrollo Rural | I52: 03 | J52: Seguimiento y control | L52: 22 | M52: EDUCACIÓN | N52: 2202 | O52: Calidad y fomento de la educación superior | P52: 0700 | Q52: Intersubsectorial Educación
A53: 17 | B53: AGRICULTURA Y DESARROLLO RURAL | C53: 1799 | D53: fortalecimiento y apoyo a la gestión institucional del sector Agricultura y Desarrollo Rural | E53: 1100 | F53: Intersubsectorial Agricultura | G53: 01 | H53: Servicio de fortalecimiento y apoyo a la gestión institucional del sector Agricultura y Desarrollo Rural | I53: 04 | J53: Gestión de las TIC | L53: 22 | M53: EDUCACIÓN | N53: 2203 | O53: Cierre de brechas para el goce efectivo de derechos fundamentales de la población en condición de discapacidad | P53: 0700 | Q53: Intersubsectorial Educación
A54: 17 | B54: AGRICULTURA Y DESARROLLO RURAL | C54: 1799 | D54: fortalecimiento y apoyo a la gestión institucional del sector Agricultura y Desarrollo Rural | E54: 1100 | F54: Intersubsectorial Agricultura | G54: 01 | H54: Servicio de fortalecimiento y apoyo a la gestión institucional del sector Agricultura y Desarrollo Rural | I54: 05 | J54: Gestión administrativa | L54: 22 | M54: EDUCACIÓN | N54: 2299 | O54: Fortalecimiento y apoyo a la gestión institucional del sector Educación | P54: 0700 | Q54: Intersubsectorial Educación
A55: 17 | B55: AGRICULTURA Y DESARROLLO RURAL | C55: 1799 | D55: fortalecimiento y apoyo a la gestión institucional del sector Agricultura y Desarrollo Rural | E55: 1100 | F55: Intersubsectorial Agricultura | G55: 01 | H55: Servicio de fortalecimiento y apoyo a la gestión institucional del sector Agricultura y Desarrollo Rural | I55: 06 | J55: Gestión financiera | L55: 22 | M55: EDUCACIÓN | N55: 2200 | O55: No asignable a programas | P55: 0700 | Q55: Intersubsectorial Educación
A56: 17 | B56: AGRICULTURA Y DESARROLLO RURAL | C56: 1799 | D56: fortalecimiento y apoyo a la gestión institucional del sector Agricultura y Desarrollo Rural | E56: 1100 | F56: Intersubsectorial Agricultura | G56: 01 | H56: Servicio de fortalecimiento y apoyo a la gestión institucional del sector Agricultura y Desarrollo Rural | I56: 07 | J56: Gestión administrativa y financiera | L56: 05 | M56: EMPLEO PÚBLICO | N56: 0503 | O56: Mejoramiento de la calidad educativa en la gestión pública | P56: 1000 | Q56: Intersubsectorial Gobierno
A57: 17 | B57: AGRICULTURA Y DESARROLLO RURAL | C57: 1799 | D57: fortalecimiento y apoyo a la gestión institucional del sector Agricultura y Desarrollo Rural | E57: 1100 | F57: Intersubsectorial Agricultura | G57: 01 | H57: Servicio de fortalecimiento y apoyo a la gestión institucional del sector Agricultura y Desarrollo Rural | I57: 08 | J57: Gestión de comunicaciones | L57: 05 | M57: EMPLEO PÚBLICO | N57: 0504 | O57: Administración y vigilancia de las carreras administrativas de los servidores públicos | P57: 1000 | Q57: Intersubsectorial Gobierno
A58: 17 | B58: AGRICULTURA Y DESARROLLO RURAL | C58: 1799 | D58: fortalecimiento y apoyo a la gestión institucional del sector Agricultura y Desarrollo Rural | E58: 1100 | F58: Intersubsectorial Agricultura | G58: 01 | H58: Servicio de fortalecimiento y apoyo a la gestión institucional del sector Agricultura y Desarrollo Rural | I58: 09 | J58: Gestión jurídica | L58: 05 | M58: EMPLEO PÚBLICO | N58: 0505 | O58: Fortalecimiento de la gestión pública en las entidades nacionales y territoriales | P58: 1000 | Q58: Intersubsectorial Gobierno
A59: 17 | B59: AGRICULTURA Y DESARROLLO RURAL | C59: 1799 | D59: fortalecimiento y apoyo a la gestión institucional del sector Agricultura y Desarrollo Rural | E59: 1100 | F59: Intersubsectorial Agricultura | G59: 01 | H59: Servicio de fortalecimiento y apoyo a la gestión institucional del sector Agricultura y Desarrollo Rural | I59: 10 | J59: Ejecución de la política de desarrollo rural | L59: 05 | M59: EMPLEO PÚBLICO | N59: 0599 | O59: Fortalecimiento y apoyo a la gestión institucional del sector Empleo | P59: 1000 | Q59: Intersubsectorial Gobierno
A60: 17 | B60: AGRICULTURA Y DESARROLLO RURAL | C60: 1799 | D60: fortalecimiento y apoyo a la gestión institucional del sector Agricultura y Desarrollo Rural | E60: 1100 | F60: Intersubsectorial Agricultura | G60: 01 | H60: Servicio de fortalecimiento y apoyo a la gestión institucional del sector Agricultura y Desarrollo Rural | I60: 11 | J60: Gestión y desarrollo del talento humano | L60: 05 | M60: EMPLEO PÚBLICO | N60: 0500 | O60: No asignable a programas | P60: 1000 | Q60: Intersubsectorial Gobierno
A61: 17 | B61: AGRICULTURA Y DESARROLLO RURAL | C61: 1700 | D61: No asignable a programas | E61: 1100 | F61: Intersubsectorial Agricultura | G61: 01 | H61: Sin producto | I61: 01 | J61: Transferiencias corrientes | L61: 29 | M61: FISCALÍA | N61: 2901 | O61: Efectividad de la investigación penal y técnico científica | P61: 1000 | Q61: Intersubsectorial Gobierno
A62: 32 | B62: AMBIENTE Y DESARROLLO SOSTENIBLE | C62: 3201 | D62: Fortalecimiento del desempeño ambiental de los sectores productivos | E62: 900 | F62: Intersubsectorial Ambiente | G62: 01 | H62: Servicio de promoción de la gestión sectorial sostenible | I62: 01 | J62: Fomento de negocios verdes y producción limpia | L62: 29 | M62: FISCALÍA | N62: 2999 | O62: Fortalecimiento y apoyo a la gestión institucional del sector Fiscalía | P62: 1000 | Q62: Intersubsectorial Gobierno
A63: 32 | B63: AMBIENTE Y DESARROLLO SOSTENIBLE | C63: 3201 | D63: Fortalecimiento del desempeño ambiental de los sectores productivos | E63: 900 | F63: Intersubsectorial Ambiente | G63: 01 | H63: Servicio de promoción de la gestión sectorial sostenible | I63: 02 | J63: Gestión de normas y regulación ambiental sectorial | L63: 29 | M63: FISCALÍA | N63: 2900 | O63: No asignable a programas | P63: 1000 | Q63: Intersubsectorial Gobierno
A64: 32 | B64: AMBIENTE Y DESARROLLO SOSTENIBLE | C64: 3201 | D64: Fortalecimiento del desempeño ambiental de los sectores productivos | E64: 900 | F64: Intersubsectorial Ambiente | G64: 01 | H64: Servicio de promoción de la gestión sectorial sostenible | I64: 03 | J64: Financiación de inversión ambiental sectorial | L64: 13 | M64: HACIENDA | N64: 1301 | O64: Política macroeconómica fiscal | P64: 1000 | Q64: Intersubsectorial Gobierno
A65: 32 | B65: AMBIENTE Y DESARROLLO SOSTENIBLE | C65: 3201 | D65: Fortalecimiento del desempeño ambiental de los sectores productivos | E65: 900 | F65: Intersubsectorial Ambiente | G65: 01 | H65: Servicio de promoción de la gestión sectorial sostenible | I65: 04 | J65: Gestión integral de residuos y sustancias químicas | L65: 13 | M65: HACIENDA | N65: 1302 | O65: Gestión de recursos públicos | P65: 1000 | Q65: Intersubsectorial Gobierno
A66: 32 | B66: AMBIENTE Y DESARROLLO SOSTENIBLE | C66: 3201 | D66: Fortalecimiento del desempeño ambiental de los sectores productivos | E66: 900 | F66: Intersubsectorial Ambiente | G66: 01 | H66: Servicio de promoción de la gestión sectorial sostenible | I66: 05 | J66: Gestión ambiental urbana | L66: 13 | M66: HACIENDA | N66: 1303 | O66: Reducción de la vulnerabilidad fiscal ante desastres y riesgos climáticos | P66: 1000 | Q66: Intersubsectorial Gobierno
A67: 32 | B67: AMBIENTE Y DESARROLLO SOSTENIBLE | C67: 3201 | D67: Fortalecimiento del desempeño ambiental de los sectores productivos | E67: 900 | F67: Intersubsectorial Ambiente | G67: 01 | H67: Servicio de promoción de la gestión sectorial sostenible | I67: 06 | J67: Licenciamiento y control ambiental | L67: 13 | M67: HACIENDA | N67: 1304 | O67: Inspección, control y vigilancia financiera, solidaria y de recursos públicos | P67: 1000 | Q67: Intersubsectorial Gobierno
A68: 32 | B68: AMBIENTE Y DESARROLLO SOSTENIBLE | C68: 3202 | D68: Conservación de la biodiversidad y sus servicios ecosistémicos | E68: 900 | F68: Intersubsectorial Ambiente | G68: 01 | H68: Servicio de promoción del uso sostenible y conservación de la biodiversidad | I68: 01 | J68: Financiación de inversión Sistema de Parques Nacionales | L68: 13 | M68: HACIENDA | N68: 1305 | O68: Fortalecimiento de recaudo y tributación | P68: 1000 | Q68: Intersubsectorial Gobierno
A69: 32 | B69: AMBIENTE Y DESARROLLO SOSTENIBLE | C69: 3202 | D69: Conservación de la biodiversidad y sus servicios ecosistémicos | E69: 900 | F69: Intersubsectorial Ambiente | G69: 01 | H69: Servicio de promoción del uso sostenible y conservación de la biodiversidad | I69: 02 | J69: Gestión de biotecnología y bioprospección | L69: 13 | M69: HACIENDA | N69: 1399 | O69: Fortalecimiento y apoyo a la gestión institucional del sector Hacienda | P69: 1000 | Q69: Intersubsectorial Gobierno
A70: 32 | B70: AMBIENTE Y DESARROLLO SOSTENIBLE | C70: 3202 | D70: Conservación de la biodiversidad y sus servicios ecosistémicos | E70: 900 | F70: Intersubsectorial Ambiente | G70: 01 | H70: Servicio de promoción del uso sostenible y conservación de la biodiversidad | I70: 03 | J70: Gestión integral y regulación de bosques, reservas forestales y zonas amortiguadoras del SPNN | L70: 13 | M70: HACIENDA | N70: 1300 | O70: No asignable a programas | P70: 1000 | Q70: Intersubsectorial Gobierno
A71: 32 | B71: AMBIENTE Y DESARROLLO SOSTENIBLE | C71: 3202 | D71: Conservación de la biodiversidad y sus servicios ecosistémicos | E71: 900 | F71: Intersubsectorial Ambiente | G71: 01 | H71: Servicio de promoción del uso sostenible y conservación de la biodiversidad | I71: 04 | J71: Gestión y manejo de áreas protegidas | L71: 41 | M71: INCLUSIÓN SOCIAL Y RECONCILIACIÓN | N71: 4101 | O71: Atención, asistencia y reparación integral a las víctimas | P71: 1500 | Q71: Intersubsectorial Desarrollo Social
A72: 32 | B72: AMBIENTE Y DESARROLLO SOSTENIBLE | C72: 3203 | D72: Gestión Integral del Recurso Hídrico | E72: 900 | F72: Intersubsectorial Ambiente | G72: 01 | H72: Servicio de planificación y administración del recurso hídrico | I72: 01 | J72: Financiación de inversión GIRH | L72: 41 | M72: INCLUSIÓN SOCIAL Y RECONCILIACIÓN | N72: 4102 | O72: Desarrollo integral de la primera infancia a la juventud y fortalecimiento familiar | P72: 1500 | Q72: Intersubsectorial Desarrollo Social
A73: 32 | B73: AMBIENTE Y DESARROLLO SOSTENIBLE | C73: 3203 | D73: Gestión Integral del Recurso Hídrico | E73: 900 | F73: Intersubsectorial Ambiente | G73: 01 | H73: Servicio de planificación y administración del recurso hídrico | I73: 02 | J73: Planificación de cuencas hidrográficas y acuíferos | L73: 41 | M73: INCLUSIÓN SOCIAL Y RECONCILIACIÓN | N73: 4103 | O73: Inclusión social y productiva para la población en situación de vulnerabilidad | P73: 1500 | Q73: Intersubsectorial Desarrollo Social
A74: 32 | B74: AMBIENTE Y DESARROLLO SOSTENIBLE | C74: 3203 | D74: Gestión Integral del Recurso Hídrico | E74: 900 | F74: Intersubsectorial Ambiente | G74: 01 | H74: Servicio de planificación y administración del recurso hídrico | I74: 03 | J74: Promoción de la gobernanza del agua | L74: 41 | M74: INCLUSIÓN SOCIAL Y RECONCILIACIÓN | N74: 410X | O74: Protección de derechos de niños, niñas, adolescentes y jóvenes | P74: 1500 | Q74: Intersubsectorial Desarrollo Social
A75: 32 | B75: AMBIENTE Y DESARROLLO SOSTENIBLE | C75: 3203 | D75: Gestión Integral del Recurso Hídrico | E75: 900 | F75: Intersubsectorial Ambiente | G75: 01 | H75: Servicio de planificación y administración del recurso hídrico | I75: 04 | J75: Regulación, manejo y control del recurso hídrico | L75: 41 | M75: INCLUSIÓN SOCIAL Y RECONCILIACIÓN | N75: 4199 | O75: Fortalecimiento y apoyo a la gestión institucional del sector Inclusión social y Reconciliación | P75: 1500 | Q75: Intersubsectorial Desarrollo Social
A76: 32 | B76: AMBIENTE Y DESARROLLO SOSTENIBLE | C76: 3204 | D76: Gestión de la información y el conocimiento ambiental | E76: 900 | F76: Intersubsectorial Ambiente | G76: 01 | H76: Servicio de sistematización de información y conocimiento ambiental para la toma de decisiones | I76: 01 | J76: Orientación estratégica del Sistema de Información Ambiental de Colombia | L76: 04 | M76: INFORMACIÓN ESTADÍSTICA | N76: 0401 | O76: Levantamiento y actualización de información estadística de calidad | P76: 1003 | Q76: Planificación Estadística
A77: 32 | B77: AMBIENTE Y DESARROLLO SOSTENIBLE | C77: 3204 | D77: Gestión de la información y el conocimiento ambiental | E77: 900 | F77: Intersubsectorial Ambiente | G77: 01 | H77: Servicio de sistematización de información y conocimiento ambiental para la toma de decisiones | I77: 02 | J77: Gestión de información y conocimiento meteorológico | L77: 04 | M77: INFORMACIÓN ESTADÍSTICA | N77: 0406 | O77: Generación de la información geográfica del territorio nacional | P77: 1003 | Q77: Planificación Estadística
A78: 32 | B78: AMBIENTE Y DESARROLLO SOSTENIBLE | C78: 3204 | D78: Gestión de la información y el conocimiento ambiental | E78: 900 | F78: Intersubsectorial Ambiente | G78: 01 | H78: Servicio de sistematización de información y conocimiento ambiental para la toma de decisiones | I78: 03 | J78: Gestión de información y conocimiento hidrológico | L78: 04 | M78: INFORMACIÓN ESTADÍSTICA | N78: 0499 | O78: Fortalecimiento y apoyo a la gestión institucional del sector Información Estadística | P78: 1003 | Q78: Planificación Estadística
A79: 32 | B79: AMBIENTE Y DESARROLLO SOSTENIBLE | C79: 3204 | D79: Gestión de la información y el conocimiento ambiental | E79: 900 | F79: Intersubsectorial Ambiente | G79: 01 | H79: Servicio de sistematización de información y conocimiento ambiental para la toma de decisiones | I79: 04 | J79: Gestión de información de ecosistemas | L79: 04 | M79: INFORMACIÓN ESTADÍSTICA | N79: 0400 | O79: No asignable a programas | P79: 1003 | Q79: Planificación Estadística
A80: 32 | B80: AMBIENTE Y DESARROLLO SOSTENIBLE | C80: 3204 | D80: Gestión de la información y el conocimiento ambiental | E80: 900 | F80: Intersubsectorial Ambiente | G80: 01 | H80: Servicio de sistematización de información y conocimiento ambiental para la toma de decisiones | I80: 05 | J80: Estudios ambientales | L80: 42 | M80: INTELIGENCIA | N80: 4201 | O80: Desarrollo de inteligencia estratégica y contrainteligencia de Estado | P80: 0100 | Q80: Intersubsectorial Defensa y Seguridad
A81: 32 | B81: AMBIENTE Y DESARROLLO SOSTENIBLE | C81: 3205 | D81: Ordenamiento ambiental territorial | E81: 900 | F81: Intersubsectorial Ambiente | G81: 01 | H81: Servicio de ordenamiento ambiental en la planificación del territorio | I81: 01 | J81: Coordinación del SINA e inspección y vigilancia a las CAR en cumplimiento de la política ambiental en el territorio | L81: 42 | M81: INTELIGENCIA | N81: 4299 | O81: Fortalecimiento y apoyo a la gestión institucional del sector Inteligencia | P81: 0100 | Q81: Intersubsectorial Defensa y Seguridad
A82: 32 | B82: AMBIENTE Y DESARROLLO SOSTENIBLE | C82: 3205 | D82: Ordenamiento ambiental territorial | E82: 900 | F82: Intersubsectorial Ambiente | G82: 01 | H82: Servicio de ordenamiento ambiental en la planificación del territorio | I82: 02 | J82: Gestión de información ambiental geográfica para apoyar el ordenamiento ambiental | L82: 42 | M82: INTELIGENCIA | N82: 4200 | O82: No asignable a programas | P82: 0100 | Q82: Intersubsectorial Defensa y Seguridad
A83: 32 | B83: AMBIENTE Y DESARROLLO SOSTENIBLE | C83: 3205 | D83: Ordenamiento ambiental territorial | E83: 900 | F83: Intersubsectorial Ambiente | G83: 01 | H83: Servicio de ordenamiento ambiental en la planificación del territorio | I83: 03 | J83: Orientación y asistencia técnica a ET en la inclusión de determinantes ambientales y gestión del riesgo en el ordenamiento del territorio | L83: 37 | M83: INTERIOR | N83: 3701 | O83: Fortalecimiento institucional a los procesos organizativos de concertación; garantía, prevención y respeto de los derechos humanos como fundamentos para la paz | P83: 1000 | Q83: Intersubsectorial Gobierno
A84: 32 | B84: AMBIENTE Y DESARROLLO SOSTENIBLE | C84: 3206 | D84: Gestión del cambio climático para un desarrollo bajo en carbono y resiliente al clima | E84: 900 | F84: Intersubsectorial Ambiente | G84: 01 | H84: Servicio de diseño e implementación de instrumentos de gestión del cambio climático | I84: 01 | J84: Gestión de instrumentos de política, lineamientos y asistencia técnica a ET y autoridades ambientales en adaptación al cambio climático | L84: 37 | M84: INTERIOR | N84: 3702 | O84: Fortalecimiento a la gobernabilidad territorial para la seguridad, convivencia ciudadana, paz y postconflicto. | P84: 1000 | Q84: Intersubsectorial Gobierno
A85: 32 | B85: AMBIENTE Y DESARROLLO SOSTENIBLE | C85: 3206 | D85: Gestión del cambio climático para un desarrollo bajo en carbono y resiliente al clima | E85: 900 | F85: Intersubsectorial Ambiente | G85: 01 | H85: Servicio de diseño e implementación de instrumentos de gestión del cambio climático | I85: 02 | J85: Gestión de instrumentos de política, lineamientos y asistencia técnica a ET y autoridades ambientales en mitigación del cambio climático | L85: 37 | M85: INTERIOR | N85: 3704 | O85: Gobernabilidad y participación ciudadana | P85: 1000 | Q85: Intersubsectorial Gobierno
A86: 32 | B86: AMBIENTE Y DESARROLLO SOSTENIBLE | C86: 3206 | D86: Gestión del cambio climático para un desarrollo bajo en carbono y resiliente al clima | E86: 900 | F86: Intersubsectorial Ambiente | G86: 01 | H86: Servicio de diseño e implementación de instrumentos de gestión del cambio climático | I86: 03 | J86: Gestión del riesgo para reducir la vulnerabilidad frente al cambio climático | L86: 37 | M86: INTERIOR | N86: 3705 | O86: Protección de personas, grupos y comunidades en riesgo extraordinario y extremo Unidad Nacional de Protección (UNP) | P86: 1000 | Q86: Intersubsectorial Gobierno
A87: 32 | B87: AMBIENTE Y DESARROLLO SOSTENIBLE | C87: 3206 | D87: Gestión del cambio climático para un desarrollo bajo en carbono y resiliente al clima | E87: 900 | F87: Intersubsectorial Ambiente | G87: 01 | H87: Servicio de diseño e implementación de instrumentos de gestión del cambio climático | I87: 04 | J87: Gestión territorial del cambio climático | L87: 37 | M87: INTERIOR | N87: 3706 | O87: Protección, promoción y difusión del derecho de autor y los derechos conexos | P87: 1000 | Q87: Intersubsectorial Gobierno
A88: 32 | B88: AMBIENTE Y DESARROLLO SOSTENIBLE | C88: 3207 | D88: Gestión integral de mares, costas y recursos acuáticos | E88: 900 | F88: Intersubsectorial Ambiente | G88: 01 | H88: Servicio de apoyo en la implementación de instrumentos para la gestión sostenible de las unidades ambientales costeras | I88: 01 | J88: Apoyo a la gestión del riesgo y mejoramiento de la calidad ambiental en las zonas marino-costeras | L88: 37 | M88: INTERIOR | N88: 3707 | O88: Gestión del riesgo de desastres naturales y antrópicos en la zona de influencia del volcán Nevado del Huila. | P88: 1000 | Q88: Intersubsectorial Gobierno
A89: 32 | B89: AMBIENTE Y DESARROLLO SOSTENIBLE | C89: 3207 | D89: Gestión integral de mares, costas y recursos acuáticos | E89: 900 | F89: Intersubsectorial Ambiente | G89: 01 | H89: Servicio de apoyo en la implementación de instrumentos para la gestión sostenible de las unidades ambientales costeras | I89: 02 | J89: Gestión técnica de apoyo a autoridades ambientales y territoriales en la adopción de los planes de ordenación y manejo integrado de las unidades ambientales costeras | L89: 37 | M89: INTERIOR | N89: 3799 | O89: Fortalecimiento y apoyo a la gestión institucional del sector interior | P89: 1000 | Q89: Intersubsectorial Gobierno
A90: 32 | B90: AMBIENTE Y DESARROLLO SOSTENIBLE | C90: 3208 | D90: Educación Ambiental | E90: 900 | F90: Intersubsectorial Ambiente | G90: 01 | H90: Servicio de promoción de la educación ambiental | I90: 01 | J90: Diseño y promoción de estrategias y mecanismos de sensibilización y cultura ambiental | L90: 37 | M90: INTERIOR | N90: 3700 | O90: No asignable a programas | P90: 1000 | Q90: Intersubsectorial Gobierno
A91: 32 | B91: AMBIENTE Y DESARROLLO SOSTENIBLE | C91: 3208 | D91: Educación Ambiental | E91: 900 | F91: Intersubsectorial Ambiente | G91: 01 | H91: Servicio de promoción de la educación ambiental | I91: 02 | J91: Desarrollo y promoción de planes y programas docentes y pensum nacional en educación ambiental | L91: 44 | M91: SISTEMA INTEGRAL DE VERDAD, JUSTICIA, REPARACIÓN Y NO REPETICIÓN | N91: 4401 | O91: Jurisdicción Especial para la Paz | P91: 1000 | Q91: Intersubsectorial Gobierno
A92: 32 | B92: AMBIENTE Y DESARROLLO SOSTENIBLE | C92: 3208 | D92: Educación Ambiental | E92: 900 | F92: Intersubsectorial Ambiente | G92: 01 | H92: Servicio de promoción de la educación ambiental | I92: 03 | J92: Desarrollo y promoción de mecanismos de participación, empoderamiento ambiental ciudadano y protección del conocimiento tradicional | L92: 44 | M92: SISTEMA INTEGRAL DE VERDAD, JUSTICIA, REPARACIÓN Y NO REPETICIÓN | N92: 4403 | O92: Unidad de Búsqueda de Personas dadas por Desaparecidas en el contexto y en razón del Conflicto Armado (UBPD) | P92: 1000 | Q92: Intersubsectorial Gobierno
A93: 32 | B93: AMBIENTE Y DESARROLLO SOSTENIBLE | C93: 3208 | D93: Educación Ambiental | E93: 900 | F93: Intersubsectorial Ambiente | G93: 01 | H93: Servicio de promoción de la educación ambiental | I93: 04 | J93: Gestión Territorial de la Educación Ambiental | L93: 44 | M93: SISTEMA INTEGRAL DE VERDAD, JUSTICIA, REPARACIÓN Y NO REPETICIÓN | N93: 4499 | O93: Fortalecimiento y apoyo a la gestión institucional del sector Justicia Especial para la Paz | P93: 1000 | Q93: Intersubsectorial Gobierno
A94: 32 | B94: AMBIENTE Y DESARROLLO SOSTENIBLE | C94: 3299 | D94: Fortalecimiento y apoyo a la gestión institucional del sectorAmbiente y Desarrollo Sostenible | E94: 900 | F94: Intersubsectorial Ambiente | G94: 01 | H94: Servicio de fortalecimiento y apoyo a la gestión institucional del sector Ambiente y Desarrollo Sostenible | I94: 01 | J94: Direccionamiento estratégico del Sector | L94: 44 | M94: SISTEMA INTEGRAL DE VERDAD, JUSTICIA, REPARACIÓN Y NO REPETICIÓN | N94: 4400 | O94: No asignable a programas | P94: 1000 | Q94: Intersubsectorial Gobierno
A95: 32 | B95: AMBIENTE Y DESARROLLO SOSTENIBLE | C95: 3299 | D95: Fortalecimiento y apoyo a la gestión institucional del sectorAmbiente y Desarrollo Sostenible | E95: 900 | F95: Intersubsectorial Ambiente | G95: 01 | H95: Servicio de fortalecimiento y apoyo a la gestión institucional del sector Ambiente y Desarrollo Sostenible | I95: 02 | J95: Gestión jurídica | L95: 12 | M95: JUSTICIA Y DEL DERECHO | N95: 1201 | O95: Fortalecimiento del principio de seguridad jurídica, divulgación y depuración del ordenamiento jurídico | P95: 0800 | Q95: Intersubsectorial Justicia
A96: 32 | B96: AMBIENTE Y DESARROLLO SOSTENIBLE | C96: 3299 | D96: Fortalecimiento y apoyo a la gestión institucional del sectorAmbiente y Desarrollo Sostenible | E96: 900 | F96: Intersubsectorial Ambiente | G96: 01 | H96: Servicio de fortalecimiento y apoyo a la gestión institucional del sector Ambiente y Desarrollo Sostenible | I96: 03 | J96: Gestión de comunicaciones | L96: 12 | M96: JUSTICIA Y DEL DERECHO | N96: 1202 | O96: Promoción al acceso a la justicia | P96: 0800 | Q96: Intersubsectorial Justicia
A97: 32 | B97: AMBIENTE Y DESARROLLO SOSTENIBLE | C97: 3299 | D97: Fortalecimiento y apoyo a la gestión institucional del sectorAmbiente y Desarrollo Sostenible | E97: 900 | F97: Intersubsectorial Ambiente | G97: 01 | H97: Servicio de fortalecimiento y apoyo a la gestión institucional del sector Ambiente y Desarrollo Sostenible | I97: 04 | J97: Seguimiento y evaluación | L97: 12 | M97: JUSTICIA Y DEL DERECHO | N97: 1203 | O97: Promoción de los métodos de resolución de conflictos | P97: 0800 | Q97: Intersubsectorial Justicia
A98: 32 | B98: AMBIENTE Y DESARROLLO SOSTENIBLE | C98: 3299 | D98: Fortalecimiento y apoyo a la gestión institucional del sectorAmbiente y Desarrollo Sostenible | E98: 900 | F98: Intersubsectorial Ambiente | G98: 01 | H98: Servicio de fortalecimiento y apoyo a la gestión institucional del sector Ambiente y Desarrollo Sostenible | I98: 05 | J98: Gestión y desarrollo del talento humano | L98: 12 | M98: JUSTICIA Y DEL DERECHO | N98: 1204 | O98: Justicia transicional | P98: 0800 | Q98: Intersubsectorial Justicia
A99: 32 | B99: AMBIENTE Y DESARROLLO SOSTENIBLE | C99: 3299 | D99: Fortalecimiento y apoyo a la gestión institucional del sectorAmbiente y Desarrollo Sostenible | E99: 900 | F99: Intersubsectorial Ambiente | G99: 01 | H99: Servicio de fortalecimiento y apoyo a la gestión institucional del sector Ambiente y Desarrollo Sostenible | I99: 06 | J99: Gestión Administrativa | L99: 12 | M99: JUSTICIA Y DEL DERECHO | N99: 1205 | O99: Defensa jurídica del Estado | P99: 0800 | Q99: Intersubsectorial Justicia
A100: 32 | B100: AMBIENTE Y DESARROLLO SOSTENIBLE | C100: 3299 | D100: Fortalecimiento y apoyo a la gestión institucional del sectorAmbiente y Desarrollo Sostenible | E100: 900 | F100: Intersubsectorial Ambiente | G100: 01 | H100: Servicio de fortalecimiento y apoyo a la gestión institucional del sector Ambiente y Desarrollo Sostenible | I100: 07 | J100: Gestión de TIC | L100: 12 | M100: JUSTICIA Y DEL DERECHO | N100: 1206 | O100: Sistema penitenciario y carcelario en el marco de los derechos humanos | P100: 0800 | Q100: Intersubsectorial Justicia
A101: 32 | B101: AMBIENTE Y DESARROLLO SOSTENIBLE | C101: 3299 | D101: Fortalecimiento y apoyo a la gestión institucional del sectorAmbiente y Desarrollo Sostenible | E101: 900 | F101: Intersubsectorial Ambiente | G101: 01 | H101: Servicio de fortalecimiento y apoyo a la gestión institucional del sector Ambiente y Desarrollo Sostenible | I101: 08 | J101: Gestión Contractual | L101: 12 | M101: JUSTICIA Y DEL DERECHO | N101: 1207 | O101: Fortalecimiento de la política criminal del Estado colombiano | P101: 0800 | Q101: Intersubsectorial Justicia
A102: 32 | B102: AMBIENTE Y DESARROLLO SOSTENIBLE | C102: 3299 | D102: Fortalecimiento y apoyo a la gestión institucional del sectorAmbiente y Desarrollo Sostenible | E102: 900 | F102: Intersubsectorial Ambiente | G102: 01 | H102: Servicio de fortalecimiento y apoyo a la gestión institucional del sector Ambiente y Desarrollo Sostenible | I102: 09 | J102: Gestión financiera | L102: 12 | M102: JUSTICIA Y DEL DERECHO | N102: 1208 | O102: Formulación y coordinación de la política integral frente a las drogas y actividades relacionadas | P102: 0800 | Q102: Intersubsectorial Justicia
A103: 32 | B103: AMBIENTE Y DESARROLLO SOSTENIBLE | C103: 3299 | D103: Fortalecimiento y apoyo a la gestión institucional del sectorAmbiente y Desarrollo Sostenible | E103: 900 | F103: Intersubsectorial Ambiente | G103: 01 | H103: Servicio de fortalecimiento y apoyo a la gestión institucional del sector Ambiente y Desarrollo Sostenible | I103: 10 | J103: Gestión documental | L103: 12 | M103: JUSTICIA Y DEL DERECHO | N103: 1209 | O103: Modernización de la información inmobiliaria | P103: 0800 | Q103: Intersubsectorial Justicia
A104: 32 | B104: AMBIENTE Y DESARROLLO SOSTENIBLE | C104: 3299 | D104: Fortalecimiento y apoyo a la gestión institucional del sectorAmbiente y Desarrollo Sostenible | E104: 900 | F104: Intersubsectorial Ambiente | G104: 01 | H104: Servicio de fortalecimiento y apoyo a la gestión institucional del sector Ambiente y Desarrollo Sostenible | I104: 11 | J104: Gestión de atención al ciudadano | L104: 12 | M104: JUSTICIA Y DEL DERECHO | N104: 1299 | O104: Fortalecimiento y apoyo a la gestión institucional del sector Justicia y del Derecho | P104: 0800 | Q104: Intersubsectorial Justicia
A105: 32 | B105: AMBIENTE Y DESARROLLO SOSTENIBLE | C105: 3299 | D105: Fortalecimiento y apoyo a la gestión institucional del sectorAmbiente y Desarrollo Sostenible | E105: 900 | F105: Intersubsectorial Ambiente | G105: 01 | H105: Servicio de fortalecimiento y apoyo a la gestión institucional del sector Ambiente y Desarrollo Sostenible | I105: 12 | J105: Gestión de Control Interno | L105: 12 | M105: JUSTICIA Y DEL DERECHO | N105: 1200 | O105: No asignable a programas | P105: 0800 | Q105: Intersubsectorial Justicia
A106: 32 | B106: AMBIENTE Y DESARROLLO SOSTENIBLE | C106: 3299 | D106: Fortalecimiento y apoyo a la gestión institucional del sectorAmbiente y Desarrollo Sostenible | E106: 900 | F106: Intersubsectorial Ambiente | G106: 01 | H106: Servicio de fortalecimiento y apoyo a la gestión institucional del sector Ambiente y Desarrollo Sostenible | I106: 13 | J106: Gestión de Control Interno Disciplinario | L106: 21 | M106: MINAS Y ENERGÍA | N106: 2101 | O106: Acceso al servicio público domiciliario de gas combustible | P106: 1900 | Q106: Intersubsectorial Minas y Energía
A107: 32 | B107: AMBIENTE Y DESARROLLO SOSTENIBLE | C107: 3200 | D107: No asignable a programas | E107: 900 | F107: Intersubsectorial Ambiente | G107: 01 | H107: Sin producto | I107: 01 | J107: Transferencias | L107: 21 | M107: MINAS Y ENERGÍA | N107: 2102 | O107: Consolidación productiva del sector de energía eléctrica | P107: 1900 | Q107: Intersubsectorial Minas y Energía
A108: 39 | B108: CIENCIA, TECNOLOGÍA E INNOVACIÓN | C108: 3999 | D108: Fortalecimiento y apoyo a la gestión institucional del sector Ciencia y Tecnología | E108: 1000 | F108: Intersubsectorial Gobierno | G108: 01 | H108: Servicio de fortalecimiento y apoyo a la gestión institucional del sector Ciencia y Tecnología | I108: 01 | J108: Desarrollo de vocación científica y formación de capital humano | L108: 21 | M108: MINAS Y ENERGÍA | N108: 2103 | O108: Consolidación productiva del sector de hidrocarburos | P108: 1900 | Q108: Intersubsectorial Minas y Energía
A109: 39 | B109: CIENCIA, TECNOLOGÍA E INNOVACIÓN | C109: 3999 | D109: Fortalecimiento y apoyo a la gestión institucional del sector Ciencia y Tecnología | E109: 1000 | F109: Intersubsectorial Gobierno | G109: 01 | H109: Servicio de fortalecimiento y apoyo a la gestión institucional del sector Ciencia y Tecnología | I109: 02 | J109: Desarrollo Tecnológico e Innovación | L109: 21 | M109: MINAS Y ENERGÍA | N109: 2104 | O109: Consolidación productiva del sector minero | P109: 1900 | Q109: Intersubsectorial Minas y Energía
A110: 39 | B110: CIENCIA, TECNOLOGÍA E INNOVACIÓN | C110: 3999 | D110: Fortalecimiento y apoyo a la gestión institucional del sector Ciencia y Tecnología | E110: 1000 | F110: Intersubsectorial Gobierno | G110: 01 | H110: Servicio de fortalecimiento y apoyo a la gestión institucional del sector Ciencia y Tecnología | I110: 03 | J110: Direccionamiento estratégico | L110: 21 | M110: MINAS Y ENERGÍA | N110: 2105 | O110: Desarrollo ambiental sostenible del sector minero energético | P110: 1900 | Q110: Intersubsectorial Minas y Energía
A111: 39 | B111: CIENCIA, TECNOLOGÍA E INNOVACIÓN | C111: 3999 | D111: Fortalecimiento y apoyo a la gestión institucional del sector Ciencia y Tecnología | E111: 1000 | F111: Intersubsectorial Gobierno | G111: 01 | H111: Servicio de fortalecimiento y apoyo a la gestión institucional del sector Ciencia y Tecnología | I111: 04 | J111: Fomento de la investigación | L111: 21 | M111: MINAS Y ENERGÍA | N111: 2106 | O111: Gestión de la información en el sector minero energético | P111: 1900 | Q111: Intersubsectorial Minas y Energía
A112: 39 | B112: CIENCIA, TECNOLOGÍA E INNOVACIÓN | C112: 3999 | D112: Fortalecimiento y apoyo a la gestión institucional del sector Ciencia y Tecnología | E112: 1000 | F112: Intersubsectorial Gobierno | G112: 01 | H112: Servicio de fortalecimiento y apoyo a la gestión institucional del sector Ciencia y Tecnología | I112: 05 | J112: Generación de capacidades regionales y transferencia de conocimiento | L112: 21 | M112: MINAS Y ENERGÍA | N112: 2199 | O112: Fortalecimiento y apoyo a la gestión institucional del sector Minas y Energía | P112: 1900 | Q112: Intersubsectorial Minas y Energía
A113: 39 | B113: CIENCIA, TECNOLOGÍA E INNOVACIÓN | C113: 3999 | D113: Fortalecimiento y apoyo a la gestión institucional del sector Ciencia y Tecnología | E113: 1000 | F113: Intersubsectorial Gobierno | G113: 01 | H113: Servicio de fortalecimiento y apoyo a la gestión institucional del sector Ciencia y Tecnología | I113: 06 | J113: Gestión de comunicaciones | L113: 21 | M113: MINAS Y ENERGÍA | N113: 2100 | O113: No asignable a programas | P113: 1900 | Q113: Intersubsectorial Minas y Energía
A114: 39 | B114: CIENCIA, TECNOLOGÍA E INNOVACIÓN | C114: 3999 | D114: Fortalecimiento y apoyo a la gestión institucional del sector Ciencia y Tecnología | E114: 1000 | F114: Intersubsectorial Gobierno | G114: 01 | H114: Servicio de fortalecimiento y apoyo a la gestión institucional del sector Ciencia y Tecnología | I114: 07 | J114: Gestión TICs | L114: 25 | M114: ORGANISMOS DE CONTROL | N114: 2502 | O114: Promoción, protección y defensa de los Derechos Humanos y el Derecho Internacional Humanitario | P114: 1000 | Q114: Intersubsectorial Gobierno
A115: 39 | B115: CIENCIA, TECNOLOGÍA E INNOVACIÓN | C115: 3999 | D115: Fortalecimiento y apoyo a la gestión institucional del sector Ciencia y Tecnología | E115: 1000 | F115: Intersubsectorial Gobierno | G115: 01 | H115: Servicio de fortalecimiento y apoyo a la gestión institucional del sector Ciencia y Tecnología | I115: 08 | J115: Gestión administrativa | L115: 25 | M115: ORGANISMOS DE CONTROL | N115: 2504 | O115: Vigilancia de la gestión administrativa de los funcionarios del Estado | P115: 1000 | Q115: Intersubsectorial Gobierno
A116: 39 | B116: CIENCIA, TECNOLOGÍA E INNOVACIÓN | C116: 3999 | D116: Fortalecimiento y apoyo a la gestión institucional del sector Ciencia y Tecnología | E116: 1000 | F116: Intersubsectorial Gobierno | G116: 01 | H116: Servicio de fortalecimiento y apoyo a la gestión institucional del sector Ciencia y Tecnología | I116: 09 | J116: Gestión contractual | L116: 25 | M116: ORGANISMOS DE CONTROL | N116: 2599 | O116: Fortalecimiento y apoyo a la gestión institucional del sector organismos de control | P116: 1000 | Q116: Intersubsectorial Gobierno
A117: 39 | B117: CIENCIA, TECNOLOGÍA E INNOVACIÓN | C117: 3999 | D117: Fortalecimiento y apoyo a la gestión institucional del sector Ciencia y Tecnología | E117: 1000 | F117: Intersubsectorial Gobierno | G117: 01 | H117: Servicio de fortalecimiento y apoyo a la gestión institucional del sector Ciencia y Tecnología | I117: 10 | J117: Gestión de recursos para la Ciencia, la Tecnología y la Innovación (CTel) | L117: 25 | M117: ORGANISMOS DE CONTROL | N117: 2501 | O117: Fortalecimiento del control y la vigilancia de la gestión fiscal y resarcimiento al daño del patrimonio público | P117: 1000 | Q117: Intersubsectorial Gobierno
A118: 39 | B118: CIENCIA, TECNOLOGÍA E INNOVACIÓN | C118: 3999 | D118: Fortalecimiento y apoyo a la gestión institucional del sector Ciencia y Tecnología | E118: 1000 | F118: Intersubsectorial Gobierno | G118: 01 | H118: Servicio de fortalecimiento y apoyo a la gestión institucional del sector Ciencia y Tecnología | I118: 11 | J118: Gestión financiera | L118: 25 | M118: ORGANISMOS DE CONTROL | N118: 2505 | O118: Bienestar de los servidores de la Contraloría General de la República | P118: 1000 | Q118: Intersubsectorial Gobierno
A119: 39 | B119: CIENCIA, TECNOLOGÍA E INNOVACIÓN | C119: 3999 | D119: Fortalecimiento y apoyo a la gestión institucional del sector Ciencia y Tecnología | E119: 1000 | F119: Intersubsectorial Gobierno | G119: 01 | H119: Servicio de fortalecimiento y apoyo a la gestión institucional del sector Ciencia y Tecnología | I119: 12 | J119: Gestión jurídica | L119: 03 | M119: PLANEACIÓN | N119: 0301 | O119: Mejoramiento de la planeación territorial, sectorial y de inversión pública | P119: 1000 | Q119: Intersubsectorial gobierno
A120: 39 | B120: CIENCIA, TECNOLOGÍA E INNOVACIÓN | C120: 3999 | D120: Fortalecimiento y apoyo a la gestión institucional del sector Ciencia y Tecnología | E120: 1000 | F120: Intersubsectorial Gobierno | G120: 01 | H120: Servicio de fortalecimiento y apoyo a la gestión institucional del sector Ciencia y Tecnología | I120: 13 | J120: Gestión y desarrollo del talento humano | L120: 03 | M120: PLANEACIÓN | N120: 0303 | O120: Promoción de la prestación eficiente de los servicios públicos domiciliarios | P120: 1000 | Q120: Intersubsectorial gobierno
A121: 39 | B121: CIENCIA, TECNOLOGÍA E INNOVACIÓN | C121: 3999 | D121: Fortalecimiento y apoyo a la gestión institucional del sector Ciencia y Tecnología | E121: 1000 | F121: Intersubsectorial Gobierno | G121: 01 | H121: Servicio de fortalecimiento y apoyo a la gestión institucional del sector Ciencia y Tecnología | I121: 14 | J121: Seguimiento y evaluación | L121: 03 | M121: PLANEACIÓN | N121: 0304 | O121: Fortalecimiento del Sistema de Compra Pública | P121: 1000 | Q121: Intersubsectorial gobierno
A122: 39 | B122: CIENCIA, TECNOLOGÍA E INNOVACIÓN | C122: 3900 | D122: No asignable a programas | E122: 1000 | F122: Intersubsectorial Gobierno | G122: 01 | H122: Sin producto | I122: 01 | J122: Transferencias corrientes | L122: 03 | M122: PLANEACIÓN | N122: 0399 | O122: Fortalecimiento y apoyo a la gestión institucional del sector Planeación | P122: 1000 | Q122: Intersubsectorial gobierno
A123: 35 | B123: COMERCIO, INDUSTRIA Y TURISMO | C123: 3501 | D123: Internacionalización de la economía | E123: 0200 | F123: Intersubsectorial Industria y Comercio | G123: 01 | H123: Servicio de gestión de la política de comercio exterior | I123: 01 | J123: Direccionamiento estratégico de la política de comercio exterior | L123: 03 | M123: PLANEACIÓN | N123: 0300 | O123: No asignable a programas | P123: 1000 | Q123: Intersubsectorial gobierno
A124: 35 | B124: COMERCIO, INDUSTRIA Y TURISMO | C124: 3501 | D124: Internacionalización de la economía | E124: 0200 | F124: Intersubsectorial Industria y Comercio | G124: 01 | H124: Servicio de gestión de la política de comercio exterior | I124: 02 | J124: Gestión de relaciones comerciales e inversión extranjera | L124: 02 | M124: PRESIDENCIA DE LA REPÚBLICA | N124: 0204 | O124: Impulsar la competitividad de las regiones y el desarrollo integral las poblaciones con enfoque diferencial desde el sector Presidencia. | P124: 1000 | Q124: Intersubsectorial gobierno
A125: 35 | B125: COMERCIO, INDUSTRIA Y TURISMO | C125: 3502 | D125: Productividad y competitividad de las empresas colombianas | E125: 0200 | F125: Intersubsectorial Industria y Comercio | G125: 01 | H125: Servicio de gestión de la política de competitividad empresarial | I125: 01 | J125: Direccionamiento estratégico de la política de desarrollo empresarial | L125: 02 | M125: PRESIDENCIA DE LA REPÚBLICA | N125: 0207 | O125: Prevención y mitigación del riesgo de desastres desde el sector Presidencia | P125: 1000 | Q125: Intersubsectorial gobierno
A126: 35 | B126: COMERCIO, INDUSTRIA Y TURISMO | C126: 3502 | D126: Productividad y competitividad de las empresas colombianas | E126: 0200 | F126: Intersubsectorial Industria y Comercio | G126: 01 | H126: Servicio de gestión de la política de competitividad empresarial | I126: 02 | J126: Gestión de la calidad de la metrología física a nivel nacional | L126: 02 | M126: PRESIDENCIA DE LA REPÚBLICA | N126: 0208 | O126: Gestión de la cooperación internacional del sector Presidencia | P126: 1000 | Q126: Intersubsectorial gobierno
A127: 35 | B127: COMERCIO, INDUSTRIA Y TURISMO | C127: 3502 | D127: Productividad y competitividad de las empresas colombianas | E127: 0200 | F127: Intersubsectorial Industria y Comercio | G127: 01 | H127: Servicio de gestión de la política de competitividad empresarial | I127: 03 | J127: Gestión de la calidad de la metrología química y biología a nivel nacional | L127: 02 | M127: PRESIDENCIA DE LA REPÚBLICA | N127: 0209 | O127: Fortalecimiento de la infraestructura física de las entidades del Estado del nivel nacional desde el Sector Presidencia | P127: 1000 | Q127: Intersubsectorial gobierno
A128: 35 | B128: COMERCIO, INDUSTRIA Y TURISMO | C128: 3502 | D128: Productividad y competitividad de las empresas colombianas | E128: 0200 | F128: Intersubsectorial Industria y Comercio | G128: 01 | H128: Servicio de gestión de la política de competitividad empresarial | I128: 04 | J128: Gestión de la prestación de servicios metrológicos | L128: 02 | M128: PRESIDENCIA DE LA REPÚBLICA | N128: 0210 | O128: Mecanismos de transición hacia la paz a nivel nacional y territorial desde el sector Presidencia | P128: 1000 | Q128: Intersubsectorial gobierno
A129: 35 | B129: COMERCIO, INDUSTRIA Y TURISMO | C129: 3502 | D129: Productividad y competitividad de las empresas colombianas | E129: 0200 | F129: Intersubsectorial Industria y Comercio | G129: 01 | H129: Servicio de gestión de la política de competitividad empresarial | I129: 05 | J129: Gestión del fortalecimiento de la competitividad empresarial | L129: 02 | M129: PRESIDENCIA DE LA REPÚBLICA | N129: 0211 | O129: Reintegración de personas y grupos alzados en armas desde el Sector Presidencia | P129: 1000 | Q129: Intersubsectorial gobierno
A130: 35 | B130: COMERCIO, INDUSTRIA Y TURISMO | C130: 3503 | D130: Ambiente regulatorio y económico para la competencia y la actividad empresarial | E130: 0200 | F130: Intersubsectorial Industria y Comercio | G130: 01 | H130: Servicio de Inspección, vigilancia y control de las sociedades | I130: 01 | J130: Conciliación y arbitraje | L130: 02 | M130: PRESIDENCIA DE LA REPÚBLICA | N130: 0212 | O130: Renovación territorial para el desarrollo integral de las zonas rurales afectadas por el conflicto armado. | P130: 1000 | Q130: Intersubsectorial gobierno
A131: 35 | B131: COMERCIO, INDUSTRIA Y TURISMO | C131: 3503 | D131: Ambiente regulatorio y económico para la competencia y la actividad empresarial | E131: 0200 | F131: Intersubsectorial Industria y Comercio | G131: 01 | H131: Servicio de Inspección, vigilancia y control de las sociedades | I131: 02 | J131: Direccionamiento estratégico | L131: 02 | M131: PRESIDENCIA DE LA REPÚBLICA | N131: 0214 | O131: Fortalecimiento de las capacidades de articulación estratégica, modernización, eficiencia administrativa, transparencia y acceso a la información desde el sector Presidencia | P131: 1000 | Q131: Intersubsectorial gobierno
A132: 35 | B132: COMERCIO, INDUSTRIA Y TURISMO | C132: 3503 | D132: Ambiente regulatorio y económico para la competencia y la actividad empresarial | E132: 0200 | F132: Intersubsectorial Industria y Comercio | G132: 01 | H132: Servicio de Inspección, vigilancia y control de las sociedades | I132: 03 | J132: Gestión de análisis económicos y de riesgos | L132: 02 | M132: PRESIDENCIA DE LA REPÚBLICA | N132: 0299 | O132: Fortalecimiento y apoyo a la gestión institucional del sector Presidencia | P132: 1000 | Q132: Intersubsectorial gobierno
A133: 35 | B133: COMERCIO, INDUSTRIA Y TURISMO | C133: 3503 | D133: Ambiente regulatorio y económico para la competencia y la actividad empresarial | E133: 0200 | F133: Intersubsectorial Industria y Comercio | G133: 01 | H133: Servicio de Inspección, vigilancia y control de las sociedades | I133: 04 | J133: Gestión de información empresarial | L133: 02 | M133: PRESIDENCIA DE LA REPÚBLICA | N133: 0200 | O133: No asignable a programas | P133: 1000 | Q133: Intersubsectorial gobierno
A134: 35 | B134: COMERCIO, INDUSTRIA Y TURISMO | C134: 3503 | D134: Ambiente regulatorio y económico para la competencia y la actividad empresarial | E134: 0200 | F134: Intersubsectorial Industria y Comercio | G134: 01 | H134: Servicio de Inspección, vigilancia y control de las sociedades | I134: 05 | J134: Gestión de investigaciones y sanciones administrativas | L134: 27 | M134: RAMA JUDICIAL | N134: 2701 | O134: Mejoramiento y ejecución de las competencias de la administración de la justicia | P134: 0800 | Q134: Intersubsectorial Justicia
A135: 35 | B135: COMERCIO, INDUSTRIA Y TURISMO | C135: 3503 | D135: Ambiente regulatorio y económico para la competencia y la actividad empresarial | E135: 0200 | F135: Intersubsectorial Industria y Comercio | G135: 01 | H135: Servicio de Inspección, vigilancia y control de las sociedades | I135: 06 | J135: Gestión de liquidación judicial | L135: 27 | M135: RAMA JUDICIAL | N135: 2799 | O135: Fortalecimiento y apoyo a la gestión institucional del sector Rama Judicial | P135: 0800 | Q135: Intersubsectorial Justicia
A136: 35 | B136: COMERCIO, INDUSTRIA Y TURISMO | C136: 3503 | D136: Ambiente regulatorio y económico para la competencia y la actividad empresarial | E136: 0200 | F136: Intersubsectorial Industria y Comercio | G136: 01 | H136: Servicio de Inspección, vigilancia y control de las sociedades | I136: 07 | J136: Gestión de recuperación empresarial | L136: 27 | M136: RAMA JUDICIAL | N136: 2700 | O136: No asignable a programas | P136: 0800 | Q136: Intersubsectorial Justicia
A137: 35 | B137: COMERCIO, INDUSTRIA Y TURISMO | C137: 3503 | D137: Ambiente regulatorio y económico para la competencia y la actividad empresarial | E137: 0200 | F137: Intersubsectorial Industria y Comercio | G137: 01 | H137: Servicio de Inspección, vigilancia y control de las sociedades | I137: 08 | J137: Supervisión, vigilancia a entes especiales | L137: 28 | M137: REGISTRADURÍA | N137: 2801 | O137: Procesos democráticos y asuntos electorales | P137: 1000 | Q137: Intersubsectorial Gobierno
A138: 35 | B138: COMERCIO, INDUSTRIA Y TURISMO | C138: 3503 | D138: Ambiente regulatorio y económico para la competencia y la actividad empresarial | E138: 0200 | F138: Intersubsectorial Industria y Comercio | G138: 01 | H138: Servicio de Inspección, vigilancia y control de las sociedades | I138: 09 | J138: Supervisión, vigilancia a las empresas | L138: 28 | M138: REGISTRADURÍA | N138: 2802 | O138: Identificación y registro del estado civil de la población | P138: 1000 | Q138: Intersubsectorial Gobierno
A139: 35 | B139: COMERCIO, INDUSTRIA Y TURISMO | C139: 3503 | D139: Ambiente regulatorio y económico para la competencia y la actividad empresarial | E139: 0200 | F139: Intersubsectorial Industria y Comercio | G139: 01 | H139: Servicio de Inspección, vigilancia y control de las sociedades | I139: 10 | J139: Supervisión, vigilancia y sanción a las cámaras de comercio | L139: 28 | M139: REGISTRADURÍA | N139: 2899 | O139: Fortalecimiento y apoyo a la gestión institucional del sector Registraduría | P139: 1000 | Q139: Intersubsectorial Gobierno
A140: 35 | B140: COMERCIO, INDUSTRIA Y TURISMO | C140: 3503 | D140: Ambiente regulatorio y económico para la competencia y la actividad empresarial | E140: 0200 | F140: Intersubsectorial Industria y Comercio | G140: 02 | H140: Servicio de Promoción y protección de la competencia | I140: 01 | J140: Direccionamiento estratégico | L140: 28 | M140: REGISTRADURÍA | N140: 2800 | O140: No asignable a programas | P140: 1000 | Q140: Intersubsectorial Gobierno
A141: 35 | B141: COMERCIO, INDUSTRIA Y TURISMO | C141: 3503 | D141: Ambiente regulatorio y económico para la competencia y la actividad empresarial | E141: 0200 | F141: Intersubsectorial Industria y Comercio | G141: 02 | H141: Servicio de Promoción y protección de la competencia | I141: 02 | J141: Gestión de inspección y vigilancia | L141: 11 | M141: RELACIONES EXTERIORES | N141: 1101 | O141: Fortalecimiento y diversificación de relaciones bilaterales | P141: 1002 | Q141: Relaciones exteriores
A142: 35 | B142: COMERCIO, INDUSTRIA Y TURISMO | C142: 3503 | D142: Ambiente regulatorio y económico para la competencia y la actividad empresarial | E142: 0200 | F142: Intersubsectorial Industria y Comercio | G142: 02 | H142: Servicio de Promoción y protección de la competencia | I142: 03 | J142: Gestión regulatoria del sector comercio, industria y turismo | L142: 11 | M142: RELACIONES EXTERIORES | N142: 1102 | O142: Posicionamiento en instancias globales, multilaterales, regionales y subregionales | P142: 1002 | Q142: Relaciones exteriores
A143: 35 | B143: COMERCIO, INDUSTRIA Y TURISMO | C143: 3503 | D143: Ambiente regulatorio y económico para la competencia y la actividad empresarial | E143: 0200 | F143: Intersubsectorial Industria y Comercio | G143: 03 | H143: Servicio de protección a la propiedad industrial | I143: 01 | J143: Direccionamiento estratégico | L143: 11 | M143: RELACIONES EXTERIORES | N143: 1103 | O143: Política migratoria y servicio al ciudadano | P143: 1002 | Q143: Relaciones exteriores
A144: 35 | B144: COMERCIO, INDUSTRIA Y TURISMO | C144: 3503 | D144: Ambiente regulatorio y económico para la competencia y la actividad empresarial | E144: 0200 | F144: Intersubsectorial Industria y Comercio | G144: 03 | H144: Servicio de protección a la propiedad industrial | I144: 02 | J144: Gestión de marcas y lemas comerciales | L144: 11 | M144: RELACIONES EXTERIORES | N144: 1104 | O144: Soberanía territorial y desarrollo fronterizo | P144: 1002 | Q144: Relaciones exteriores
A145: 35 | B145: COMERCIO, INDUSTRIA Y TURISMO | C145: 3503 | D145: Ambiente regulatorio y económico para la competencia y la actividad empresarial | E145: 0200 | F145: Intersubsectorial Industria y Comercio | G145: 03 | H145: Servicio de protección a la propiedad industrial | I145: 03 | J145: Gestión de patentes | L145: 11 | M145: RELACIONES EXTERIORES | N145: 1199 | O145: Fortalecimiento y apoyo a la gestión institucional del sector relaciones exteriores | P145: 1002 | Q145: Relaciones exteriores
A146: 35 | B146: COMERCIO, INDUSTRIA Y TURISMO | C146: 3503 | D146: Ambiente regulatorio y económico para la competencia y la actividad empresarial | E146: 0200 | F146: Intersubsectorial Industria y Comercio | G146: 04 | H146: Servicio de Protección al consumidor | I146: 01 | J146: Direccionamiento estratégico | L146: 11 | M146: RELACIONES EXTERIORES | N146: 1100 | O146: No asignable a programas | P146: 1002 | Q146: Relaciones exteriores
A147: 35 | B147: COMERCIO, INDUSTRIA Y TURISMO | C147: 3503 | D147: Ambiente regulatorio y económico para la competencia y la actividad empresarial | E147: 0200 | F147: Intersubsectorial Industria y Comercio | G147: 04 | H147: Servicio de Protección al consumidor | I147: 02 | J147: Gestión de investigaciones y sanciones administrativas | L147: 19 | M147: SALUD Y PROTECCIÓN SOCIAL | N147: 1901 | O147: Salud Pública y prestación de servicios | P147: 0300 | Q147: Intersubsectorial Salud
A148: 35 | B148: COMERCIO, INDUSTRIA Y TURISMO | C148: 3503 | D148: Ambiente regulatorio y económico para la competencia y la actividad empresarial | E148: 0200 | F148: Intersubsectorial Industria y Comercio | G148: 04 | H148: Servicio de Protección al consumidor | I148: 03 | J148: Gestión de la calidad de la prestación del servicio turístico y protección al consumidor | L148: 19 | M148: SALUD Y PROTECCIÓN SOCIAL | N148: 1902 | O148: Aseguramiento y administración del Sistema General de la Seguridad Social en Salud - SGSSS | P148: 0300 | Q148: Intersubsectorial Salud
A149: 35 | B149: COMERCIO, INDUSTRIA Y TURISMO | C149: 3503 | D149: Ambiente regulatorio y económico para la competencia y la actividad empresarial | E149: 0200 | F149: Intersubsectorial Industria y Comercio | G149: 05 | H149: Servicio de Protección de datos personales | I149: 01 | J149: Direccionamiento estratégico | L149: 19 | M149: SALUD Y PROTECCIÓN SOCIAL | N149: 1903 | O149: Inspección, vigilancia y control del Sistema de Seguridad Social en Salud | P149: 0300 | Q149: Intersubsectorial Salud
A150: 35 | B150: COMERCIO, INDUSTRIA Y TURISMO | C150: 3503 | D150: Ambiente regulatorio y económico para la competencia y la actividad empresarial | E150: 0200 | F150: Intersubsectorial Industria y Comercio | G150: 05 | H150: Servicio de Protección de datos personales | I150: 02 | J150: Gestión de investigaciones y sanciones administrativas | L150: 19 | M150: SALUD Y PROTECCIÓN SOCIAL | N150: 1907 | O150: Administración de pensiones de entidades del sector salud | P150: 0300 | Q150: Intersubsectorial Salud
A151: 35 | B151: COMERCIO, INDUSTRIA Y TURISMO | C151: 3503 | D151: Ambiente regulatorio y económico para la competencia y la actividad empresarial | E151: 0200 | F151: Intersubsectorial Industria y Comercio | G151: 05 | H151: Servicio de Protección de datos personales | I151: 03 | J151: Gestión del registro nacional de bases de datos | L151: 19 | M151: SALUD Y PROTECCIÓN SOCIAL | N151: 1999 | O151: Fortalecimiento y apoyo a la gestión institucional del sector salud | P151: 0300 | Q151: Intersubsectorial Salud
A152: 35 | B152: COMERCIO, INDUSTRIA Y TURISMO | C152: 3503 | D152: Ambiente regulatorio y económico para la competencia y la actividad empresarial | E152: 0200 | F152: Intersubsectorial Industria y Comercio | G152: 06 | H152: Servicio de vigilancia al cumplimiento de los reglamentos técnicos y del sistema metrológico | I152: 01 | J152: Direccionamiento estratégico | L152: 19 | M152: SALUD Y PROTECCIÓN SOCIAL | N152: 1900 | O152: No programático | P152: 0300 | Q152: Intersubsectorial Salud
A153: 35 | B153: COMERCIO, INDUSTRIA Y TURISMO | C153: 3503 | D153: Ambiente regulatorio y económico para la competencia y la actividad empresarial | E153: 0200 | F153: Intersubsectorial Industria y Comercio | G153: 06 | H153: Servicio de vigilancia al cumplimiento de los reglamentos técnicos y del sistema metrológico | I153: 02 | J153: Gestión de investigaciones y sanciones administrativas | L153: 23 | M153: TECNOLOGÍAS DE LA INFORMACIÓN Y LAS COMUNICACIONES | N153: 2301 | O153: Facilitar el acceso y uso de las Tecnologías de la Información y las Comunicaciones en todo el territorio nacional | P153: 0400 | Q153: Intersubsectorial Comunicaciones
A154: 35 | B154: COMERCIO, INDUSTRIA Y TURISMO | C154: 3503 | D154: Ambiente regulatorio y económico para la competencia y la actividad empresarial | E154: 0200 | F154: Intersubsectorial Industria y Comercio | G154: 07 | H154: Servicio de vigilancia y control al ejercicio de la contaduría pública | I154: 01 | J154: Direccionamiento estratégico | L154: 23 | M154: TECNOLOGÍAS DE LA INFORMACIÓN Y LAS COMUNICACIONES | N154: 2302 | O154: Fomento del desarrollo de aplicaciones, software y contenidos para impulsar la apropiación de las Tecnologías de la Información y las Comunicaciones (TIC) | P154: 0400 | Q154: Intersubsectorial Comunicaciones
A155: 35 | B155: COMERCIO, INDUSTRIA Y TURISMO | C155: 3503 | D155: Ambiente regulatorio y económico para la competencia y la actividad empresarial | E155: 0200 | F155: Intersubsectorial Industria y Comercio | G155: 07 | H155: Servicio de vigilancia y control al ejercicio de la contaduría pública | I155: 02 | J155: Gestión Administrativa | L155: 23 | M155: TECNOLOGÍAS DE LA INFORMACIÓN Y LAS COMUNICACIONES | N155: 2399 | O155: Fortalecimiento y apoyo a la gestión institucional del sector Tecnologías de la Información y las Comunicaciones | P155: 0400 | Q155: Intersubsectorial Comunicaciones
A156: 35 | B156: COMERCIO, INDUSTRIA Y TURISMO | C156: 3503 | D156: Ambiente regulatorio y económico para la competencia y la actividad empresarial | E156: 0200 | F156: Intersubsectorial Industria y Comercio | G156: 07 | H156: Servicio de vigilancia y control al ejercicio de la contaduría pública | I156: 03 | J156: Gestión de investigaciones y sanciones administrativas | L156: 23 | M156: TECNOLOGÍAS DE LA INFORMACIÓN Y LAS COMUNICACIONES | N156: 2300 | O156: No asignable a programas | P156: 0400 | Q156: Intersubsectorial Comunicaciones
A157: 35 | B157: COMERCIO, INDUSTRIA Y TURISMO | C157: 3503 | D157: Ambiente regulatorio y económico para la competencia y la actividad empresarial | E157: 0200 | F157: Intersubsectorial Industria y Comercio | G157: 07 | H157: Servicio de vigilancia y control al ejercicio de la contaduría pública | I157: 04 | J157: Seguimiento y evaluación | L157: 36 | M157: TRABAJO | N157: 3601 | O157: Protección Social | P157: 1300 | Q157: Intersubsectorial Trabajo y Bienestar Social
A158: 35 | B158: COMERCIO, INDUSTRIA Y TURISMO | C158: 3504 | D158: Competitividad, sostenibilidad y promoción del turismo colombiano | E158: 0200 | F158: Intersubsectorial Industria y Comercio | G158: 01 | H158: Servicio de gestión de la promoción y competitividad del sector turismo | I158: 01 | J158: Direccionamiento estratégico de la política turística | L158: 36 | M158: TRABAJO | N158: 3602 | O158: Generación y formalización del empleo | P158: 1300 | Q158: Intersubsectorial Trabajo y Bienestar Social
A159: 35 | B159: COMERCIO, INDUSTRIA Y TURISMO | C159: 3504 | D159: Competitividad, sostenibilidad y promoción del turismo colombiano | E159: 0200 | F159: Intersubsectorial Industria y Comercio | G159: 01 | H159: Servicio de gestión de la promoción y competitividad del sector turismo | I159: 02 | J159: Gestión de la competitividad y promoción del sector turismo | L159: 36 | M159: TRABAJO | N159: 3603 | O159: Formación para el Trabajo | P159: 1300 | Q159: Intersubsectorial Trabajo y Bienestar Social
A160: 35 | B160: COMERCIO, INDUSTRIA Y TURISMO | C160: 3599 | D160: Fortalecimiento y apoyo a la gestión institucional del sector Comercio, Industria y Turismo | E160: 0200 | F160: Intersubsectorial Industria y Comercio | G160: 01 | H160: Servicio de fortalecimiento y apoyo a la gestión institucional del sector Comercio, Industria y Turismo | I160: 01 | J160: Direccionamiento estratégico | L160: 36 | M160: TRABAJO | N160: 3604 | O160: Derechos fundamentales del trabajo y fortalecimiento del diálogo social | P160: 1300 | Q160: Intersubsectorial Trabajo y Bienestar Social
A161: 35 | B161: COMERCIO, INDUSTRIA Y TURISMO | C161: 3599 | D161: Fortalecimiento y apoyo a la gestión institucional del sector Comercio, Industria y Turismo | E161: 0200 | F161: Intersubsectorial Industria y Comercio | G161: 01 | H161: Servicio de fortalecimiento y apoyo a la gestión institucional del sector Comercio, Industria y Turismo | I161: 02 | J161: Direccionamiento estratégico del sector | L161: 36 | M161: TRABAJO | N161: 3605 | O161: Fomento de la investigación, desarrollo tecnológico e innovación del sector trabajo | P161: 1300 | Q161: Intersubsectorial Trabajo y Bienestar Social
A162: 35 | B162: COMERCIO, INDUSTRIA Y TURISMO | C162: 3599 | D162: Fortalecimiento y apoyo a la gestión institucional del sector Comercio, Industria y Turismo | E162: 0200 | F162: Intersubsectorial Industria y Comercio | G162: 01 | H162: Servicio de fortalecimiento y apoyo a la gestión institucional del sector Comercio, Industria y Turismo | I162: 03 | J162: Gestión Administrativa | L162: 36 | M162: TRABAJO | N162: 3699 | O162: Fortalecimiento y apoyo a la gestión institucional del sector Trabajo | P162: 1300 | Q162: Intersubsectorial Trabajo y Bienestar Social
A163: 35 | B163: COMERCIO, INDUSTRIA Y TURISMO | C163: 3599 | D163: Fortalecimiento y apoyo a la gestión institucional del sector Comercio, Industria y Turismo | E163: 0200 | F163: Intersubsectorial Industria y Comercio | G163: 01 | H163: Servicio de fortalecimiento y apoyo a la gestión institucional del sector Comercio, Industria y Turismo | I163: 04 | J163: Gestión de comunicaciones y atención al ciudadano | L163: 36 | M163: TRABAJO | N163: 3600 | O163: No asignable a programas | P163: 1300 | Q163: Intersubsectorial Trabajo y Bienestar Social
A164: 35 | B164: COMERCIO, INDUSTRIA Y TURISMO | C164: 3599 | D164: Fortalecimiento y apoyo a la gestión institucional del sector Comercio, Industria y Turismo | E164: 0200 | F164: Intersubsectorial Industria y Comercio | G164: 01 | H164: Servicio de fortalecimiento y apoyo a la gestión institucional del sector Comercio, Industria y Turismo | I164: 05 | J164: Gestión de TIC | L164: 24 | M164: TRANSPORTE | N164: 2401 | O164: Infraestructura red vial primaria | P164: 0600 | Q164: Intersubsectorial Transporte
A165: 35 | B165: COMERCIO, INDUSTRIA Y TURISMO | C165: 3599 | D165: Fortalecimiento y apoyo a la gestión institucional del sector Comercio, Industria y Turismo | E165: 0200 | F165: Intersubsectorial Industria y Comercio | G165: 01 | H165: Servicio de fortalecimiento y apoyo a la gestión institucional del sector Comercio, Industria y Turismo | I165: 06 | J165: Gestión financiera | L165: 24 | M165: TRANSPORTE | N165: 2402 | O165: Infraestructura red vial regional | P165: 0600 | Q165: Intersubsectorial Transporte
A166: 35 | B166: COMERCIO, INDUSTRIA Y TURISMO | C166: 3599 | D166: Fortalecimiento y apoyo a la gestión institucional del sector Comercio, Industria y Turismo | E166: 0200 | F166: Intersubsectorial Industria y Comercio | G166: 01 | H166: Servicio de fortalecimiento y apoyo a la gestión institucional del sector Comercio, Industria y Turismo | I166: 07 | J166: Gestión jurídica | L166: 24 | M166: TRANSPORTE | N166: 2403 | O166: Infraestructura y servicios de transporte aéreo | P166: 0600 | Q166: Intersubsectorial Transporte
A167: 35 | B167: COMERCIO, INDUSTRIA Y TURISMO | C167: 3599 | D167: Fortalecimiento y apoyo a la gestión institucional del sector Comercio, Industria y Turismo | E167: 0200 | F167: Intersubsectorial Industria y Comercio | G167: 01 | H167: Servicio de fortalecimiento y apoyo a la gestión institucional del sector Comercio, Industria y Turismo | I167: 08 | J167: Gestión y desarrollo del talento humano | L167: 24 | M167: TRANSPORTE | N167: 2404 | O167: Infraestructura de transporte férreo | P167: 0600 | Q167: Intersubsectorial Transporte
A168: 35 | B168: COMERCIO, INDUSTRIA Y TURISMO | C168: 3599 | D168: Fortalecimiento y apoyo a la gestión institucional del sector Comercio, Industria y Turismo | E168: 0200 | F168: Intersubsectorial Industria y Comercio | G168: 01 | H168: Servicio de fortalecimiento y apoyo a la gestión institucional del sector Comercio, Industria y Turismo | I168: 09 | J168: Seguimiento y evaluación | L168: 24 | M168: TRANSPORTE | N168: 2405 | O168: Infraestructura de transporte marítimo | P168: 0600 | Q168: Intersubsectorial Transporte
A169: 35 | B169: COMERCIO, INDUSTRIA Y TURISMO | C169: 3500 | D169: No asignable a programas | E169: 0200 | F169: Intersubsectorial Industria y Comercio | G169: 01 | H169: Sin producto | I169: 01 | J169: Transferencias corrientes | L169: 24 | M169: TRANSPORTE | N169: 2406 | O169: Infraestructura de transporte fluvial | P169: 0600 | Q169: Intersubsectorial Transporte
A170: 01 | B170: CONGRESO DE LA REPÚBLICA | C170: 0101 | D170: Mejoramiento de la eficiencia y la transparencia legislativa | E170: 1000 | F170: Intersubsectorial gobierno | G170: 01 | H170: Servicio de expedición, modificación y derogación de leyes nacionales | I170: 01 | J170: Gestión legislativa | L170: 24 | M170: TRANSPORTE | N170: 2407 | O170: Infraestructura y servicios de logística de transporte | P170: 0600 | Q170: Intersubsectorial Transporte
A171: 01 | B171: CONGRESO DE LA REPÚBLICA | C171: 0101 | D171: Mejoramiento de la eficiencia y la transparencia legislativa | E171: 1000 | F171: Intersubsectorial gobierno | G171: 01 | H171: Servicio de expedición, modificación y derogación de leyes nacionales | I171: 02 | J171: Soporte técnico para la gestión legislativa | L171: 24 | M171: TRANSPORTE | N171: 2408 | O171: Prestación de servicios de transporte público de pasajeros | P171: 0600 | Q171: Intersubsectorial Transporte
A172: 01 | B172: CONGRESO DE LA REPÚBLICA | C172: 0101 | D172: Mejoramiento de la eficiencia y la transparencia legislativa | E172: 1000 | F172: Intersubsectorial gobierno | G172: 01 | H172: Servicio de expedición, modificación y derogación de leyes nacionales | I172: 03 | J172: Gestión documental | L172: 24 | M172: TRANSPORTE | N172: 2409 | O172: Seguridad de transporte | P172: 0600 | Q172: Intersubsectorial Transporte
A173: 01 | B173: CONGRESO DE LA REPÚBLICA | C173: 0199 | D173: Fortalecimiento y apoyo a la gestión institucional del sector Congreso de la República | E173: 1000 | F173: Intersubsectorial gobierno | G173: 01 | H173: Servicio de fortalecimiento y apoyo a la gestión institucional del sector Congreso de la República | I173: 01 | J173: Direccionamiento estratégico | L173: 24 | M173: TRANSPORTE | N173: 2410 | O173: Política, regulación y supervisión de la infraestructura y servicios de transporte | P173: 0600 | Q173: Intersubsectorial Transporte
A174: 01 | B174: CONGRESO DE LA REPÚBLICA | C174: 0199 | D174: Fortalecimiento y apoyo a la gestión institucional del sector Congreso de la República | E174: 1000 | F174: Intersubsectorial gobierno | G174: 01 | H174: Servicio de fortalecimiento y apoyo a la gestión institucional del sector Congreso de la República | I174: 02 | J174: Gestión de comunicaciones | L174: 24 | M174: TRANSPORTE | N174: 2499 | O174: Fortalecimiento y apoyo a la gestión institucional del sector Transporte | P174: 0600 | Q174: Intersubsectorial Transporte
A175: 01 | B175: CONGRESO DE LA REPÚBLICA | C175: 0199 | D175: Fortalecimiento y apoyo a la gestión institucional del sector Congreso de la República | E175: 1000 | F175: Intersubsectorial gobierno | G175: 01 | H175: Servicio de fortalecimiento y apoyo a la gestión institucional del sector Congreso de la República | I175: 03 | J175: Gestión de protocolo | L175: 24 | M175: TRANSPORTE | N175: 2400 | O175: No asignable a programas | P175: 0600 | Q175: Intersubsectorial Transporte
A176: 01 | B176: CONGRESO DE LA REPÚBLICA | C176: 0199 | D176: Fortalecimiento y apoyo a la gestión institucional del sector Congreso de la República | E176: 1000 | F176: Intersubsectorial gobierno | G176: 01 | H176: Servicio de fortalecimiento y apoyo a la gestión institucional del sector Congreso de la República | I176: 04 | J176: Gestión administrativa | L176: 40 | M176: VIVIENDA, CIUDAD Y TERRITORIO | N176: 4001 | O176: Acceso a soluciones de vivienda | P176: 1400 | Q176: Intersubsectorial Vivienda y Desarrollo territorial
A177: 01 | B177: CONGRESO DE LA REPÚBLICA | C177: 0199 | D177: Fortalecimiento y apoyo a la gestión institucional del sector Congreso de la República | E177: 1000 | F177: Intersubsectorial gobierno | G177: 01 | H177: Servicio de fortalecimiento y apoyo a la gestión institucional del sector Congreso de la República | I177: 05 | J177: Gestión jurídica | L177: 40 | M177: VIVIENDA, CIUDAD Y TERRITORIO | N177: 4002 | O177: Ordenamiento territorial y desarrollo urbano | P177: 1400 | Q177: Intersubsectorial Vivienda y Desarrollo territorial
A178: 01 | B178: CONGRESO DE LA REPÚBLICA | C178: 0199 | D178: Fortalecimiento y apoyo a la gestión institucional del sector Congreso de la República | E178: 1000 | F178: Intersubsectorial gobierno | G178: 01 | H178: Servicio de fortalecimiento y apoyo a la gestión institucional del sector Congreso de la República | I178: 06 | J178: Direccionamiento estratégico y gestión de las TIC | L178: 40 | M178: VIVIENDA, CIUDAD Y TERRITORIO | N178: 4003 | O178: Acceso de la población a los servicios de agua potable y saneamiento básico | P178: 1400 | Q178: Intersubsectorial Vivienda y Desarrollo territorial
A179: 01 | B179: CONGRESO DE LA REPÚBLICA | C179: 0199 | D179: Fortalecimiento y apoyo a la gestión institucional del sector Congreso de la República | E179: 1000 | F179: Intersubsectorial gobierno | G179: 01 | H179: Servicio de fortalecimiento y apoyo a la gestión institucional del sector Congreso de la República | I179: 07 | J179: Gestión y desarrollo del recurso humano | L179: 40 | M179: VIVIENDA, CIUDAD Y TERRITORIO | N179: 4099 | O179: Fortalecimiento y apoyo a la gestión institucional del sector Vivienda, Ciudad y Territorio | P179: 1400 | Q179: Intersubsectorial Vivienda y Desarrollo territorial
A180: 01 | B180: CONGRESO DE LA REPÚBLICA | C180: 0199 | D180: Fortalecimiento y apoyo a la gestión institucional del sector Congreso de la República | E180: 1000 | F180: Intersubsectorial gobierno | G180: 01 | H180: Servicio de fortalecimiento y apoyo a la gestión institucional del sector Congreso de la República | I180: 08 | J180: Gestión financiera | L180: 40 | M180: VIVIENDA, CIUDAD Y TERRITORIO | N180: 4000 | O180: No asignable a programas | P180: 1400 | Q180: Intersubsectorial Vivienda y Desarrollo territorial
A181: 01 | B181: CONGRESO DE LA REPÚBLICA | C181: 0199 | D181: Fortalecimiento y apoyo a la gestión institucional del sector Congreso de la República | E181: 1000 | F181: Intersubsectorial gobierno | G181: 01 | H181: Servicio de fortalecimiento y apoyo a la gestión institucional del sector Congreso de la República | I181: 09 | J181: Gestión de bienes y servicios
A182: 01 | B182: CONGRESO DE LA REPÚBLICA | C182: 0100 | D182: No asignable a programas | E182: 1000 | F182: Intersubsectorial gobierno | G182: 01 | H182: Sin producto | I182: 01 | J182: Transferencias Corrientes
A183: 33 | B183: CULTURA | C183: 3301 | D183: Promoción y acceso efectivo a procesos culturales y artísticos | E183: 1603 | F183: Arte y cultura | G183: 01 | H183: Servicio de promoción y acceso a procesos culturales y artísticos | I183: 01 | J183: Desarrollar estrategias de desarrollo y emprendimiento cultural
A184: 33 | B184: CULTURA | C184: 3301 | D184: Promoción y acceso efectivo a procesos culturales y artísticos | E184: 1603 | F184: Arte y cultura | G184: 01 | H184: Servicio de promoción y acceso a procesos culturales y artísticos | I184: 02 | J184: Gestionar el desarrollo de la museología y la museografía
A185: 33 | B185: CULTURA | C185: 3301 | D185: Promoción y acceso efectivo a procesos culturales y artísticos | E185: 1603 | F185: Arte y cultura | G185: 01 | H185: Servicio de promoción y acceso a procesos culturales y artísticos | I185: 03 | J185: Promoción y acceso a las artes
A186: 33 | B186: CULTURA | C186: 3301 | D186: Promoción y acceso efectivo a procesos culturales y artísticos | E186: 1603 | F186: Arte y cultura | G186: 01 | H186: Servicio de promoción y acceso a procesos culturales y artísticos | I186: 04 | J186: Promoción y acceso a las audiovisuales, cine y medios interactivos
A187: 33 | B187: CULTURA | C187: 3301 | D187: Promoción y acceso efectivo a procesos culturales y artísticos | E187: 1603 | F187: Arte y cultura | G187: 01 | H187: Servicio de promoción y acceso a procesos culturales y artísticos | I187: 05 | J187: Promoción y acceso al patrimonio bibliográfico y documental
A188: 33 | B188: CULTURA | C188: 3301 | D188: Promoción y acceso efectivo a procesos culturales y artísticos | E188: 1603 | F188: Arte y cultura | G188: 01 | H188: Servicio de promoción y acceso a procesos culturales y artísticos | I188: 06 | J188: Promoción y accesos a la actividad artística y cultural
A189: 33 | B189: CULTURA | C189: 3302 | D189: Gestión, protección y salvaguardia del patrimonio cultural colombiano | E189: 1603 | F189: Arte y cultura | G189: 01 | H189: Servicio de protección y salvaguarda del patrimonio cultural | I189: 01 | J189: Gestión académica para la salvaguarda del patrimonio lingüístico
A190: 33 | B190: CULTURA | C190: 3302 | D190: Gestión, protección y salvaguardia del patrimonio cultural colombiano | E190: 1603 | F190: Arte y cultura | G190: 01 | H190: Servicio de protección y salvaguarda del patrimonio cultural | I190: 02 | J190: Gestión archivística
A191: 33 | B191: CULTURA | C191: 3302 | D191: Gestión, protección y salvaguardia del patrimonio cultural colombiano | E191: 1603 | F191: Arte y cultura | G191: 01 | H191: Servicio de protección y salvaguarda del patrimonio cultural | I191: 03 | J191: Gestión de patrimonio y memoria
A192: 33 | B192: CULTURA | C192: 3302 | D192: Gestión, protección y salvaguardia del patrimonio cultural colombiano | E192: 1603 | F192: Arte y cultura | G192: 01 | H192: Servicio de protección y salvaguarda del patrimonio cultural | I192: 04 | J192: Gestión del emprendimiento asociado al patrimonio cultural
A193: 33 | B193: CULTURA | C193: 3302 | D193: Gestión, protección y salvaguardia del patrimonio cultural colombiano | E193: 1603 | F193: Arte y cultura | G193: 01 | H193: Servicio de protección y salvaguarda del patrimonio cultural | I193: 05 | J193: Gestión del patrimonio documental
A194: 33 | B194: CULTURA | C194: 3302 | D194: Gestión, protección y salvaguardia del patrimonio cultural colombiano | E194: 1603 | F194: Arte y cultura | G194: 01 | H194: Servicio de protección y salvaguarda del patrimonio cultural | I194: 06 | J194: Inspección y vigilancia archivística
A195: 33 | B195: CULTURA | C195: 3302 | D195: Gestión, protección y salvaguardia del patrimonio cultural colombiano | E195: 1603 | F195: Arte y cultura | G195: 01 | H195: Servicio de protección y salvaguarda del patrimonio cultural | I195: 07 | J195: Investigación y producción científica en antropología e historia
A196: 33 | B196: CULTURA | C196: 3399 | D196: Fortalecimiento y apoyo a la gestión institucional del sector Cultura | E196: 1603 | F196: Arte y cultura | G196: 01 | H196: Servicio de fortalecimiento y apoyo a la gestión institucional del sector Cultura | I196: 01 | J196: Direccionamiento estratégico
A197: 33 | B197: CULTURA | C197: 3399 | D197: Fortalecimiento y apoyo a la gestión institucional del sector Cultura | E197: 1603 | F197: Arte y cultura | G197: 01 | H197: Servicio de fortalecimiento y apoyo a la gestión institucional del sector Cultura | I197: 02 | J197: Fomento de la cultura y el patrimonio en las regiones
A198: 33 | B198: CULTURA | C198: 3399 | D198: Fortalecimiento y apoyo a la gestión institucional del sector Cultura | E198: 1603 | F198: Arte y cultura | G198: 01 | H198: Servicio de fortalecimiento y apoyo a la gestión institucional del sector Cultura | I198: 03 | J198: Gestión administrativa
A199: 33 | B199: CULTURA | C199: 3399 | D199: Fortalecimiento y apoyo a la gestión institucional del sector Cultura | E199: 1603 | F199: Arte y cultura | G199: 01 | H199: Servicio de fortalecimiento y apoyo a la gestión institucional del sector Cultura | I199: 04 | J199: Gestión contractual
A200: 33 | B200: CULTURA | C200: 3399 | D200: Fortalecimiento y apoyo a la gestión institucional del sector Cultura | E200: 1603 | F200: Arte y cultura | G200: 01 | H200: Servicio de fortalecimiento y apoyo a la gestión institucional del sector Cultura | I200: 05 | J200: Gestión de almacén
... 821 more rows
